{"text_format":"1","workbook":"xlsx","n_sheets":6,"sheets":["Formato","Instructivo","RegistroNovedades","Contraido","Listas","CalculoDígitoChequeo"],"not_rendered":{"charts":0,"images":16,"macros":1,"external_links":1,"defined_names":469,"comments":1,"pivot_tables":0},"unopened":[],"bounds":{"document_bytes":16777216,"sheet_cells":100000,"rows_first":2000,"rows_last":500,"rows_between":2000,"halvings":0,"cell_chars":16384,"cell_head_chars":4096},"cells_cut":0,"cells_raw":0,"read":"whole","date_system":"1900"}

{"sheet":"Formato","index":0,"n_rows":194,"n_cols":59,"rows_kept":194,"cut":false,"hidden":false,"merged":[[55,30,55,38],[51,39,51,48],[52,39,52,48],[47,39,47,48],[48,39,48,48],[43,52,43,57],[44,52,44,57],[45,52,45,57],[46,52,46,57],[47,52,47,57],[48,52,48,57],[49,52,49,57],[50,52,50,57],[51,52,51,57],[52,49,52,51],[53,49,53,51],[54,49,54,51],[55,49,55,51],[52,52,52,57],[53,52,53,57],[54,52,54,57],[55,52,55,57],[43,49,43,51],[44,49,44,51],[30,52,34,57],[35,52,35,57],[36,52,36,57],[37,52,37,57],[38,52,38,57],[39,52,39,57],[40,52,40,57],[41,52,41,57],[42,52,42,57],[56,49,56,51],[62,52,62,57],[63,52,63,57],[64,52,64,57],[56,52,56,57],[57,52,57,57],[58,52,58,57],[59,52,59,57],[60,52,60,57],[61,52,61,57],[57,49,57,51],[58,49,58,51],[59,49,59,51],[60,49,60,51],[61,49,61,51],[62,49,62,51],[63,49,63,51],[64,49,64,51],[30,49,34,51],[35,49,35,51],[36,49,36,51],[37,49,37,51],[38,49,38,51],[39,49,39,51],[40,49,40,51],[41,49,41,51],[42,49,42,51],[47,30,47,38],[48,30,48,38],[49,30,49,38],[51,30,51,38],[52,30,52,38],[53,30,53,38],[54,30,54,38],[45,49,45,51],[46,49,46,51],[47,49,47,51],[48,49,48,51],[49,49,49,51],[50,49,50,51],[51,49,51,51],[49,39,49,48],[50,30,50,38],[50,39,50,48],[61,30,61,38],[62,30,62,38],[63,30,63,38],[64,30,64,38],[62,39,62,48],[63,39,63,48],[64,39,64,48],[56,30,56,38],[37,39,37,48],[39,39,39,48],[41,39,41,48],[43,39,43,48],[38,39,38,48],[40,39,40,48],[44,39,44,48],[45,39,45,48],[46,39,46,48],[53,39,53,48],[54,39,54,48],[55,39,55,48],[43,30,43,38],[44,30,44,38],[45,30,45,38],[46,30,46,38],[65,27,65,29],[65,24,65,26],[39,27,39,29],[41,27,41,29],[43,27,43,29],[44,27,44,29],[45,27,45,29],[46,27,46,29],[47,27,47,29],[48,27,48,29],[49,24,49,26],[49,27,49,29],[42,24,42,26],[42,27,42,29],[50,24,50,26],[48,24,48,26],[50,27,50,29],[43,24,43,26],[30,24,34,26],[30,27,34,29],[30,30,34,38],[37,30,37,38],[39,30,39,38],[41,30,41,38],[38,27,38,29],[38,30,38,38],[40,24,40,26],[40,27,40,29],[40,30,40,38],[37,27,37,29],[35,24,35,26],[35,27,35,29],[35,30,35,38],[38,24,38,26],[37,24,37,26],[39,24,39,26],[41,24,41,26],[57,39,57,48],[58,39,58,48],[59,39,59,48],[61,39,61,48],[51,24,51,26],[52,24,52,26],[56,24,56,26],[57,24,57,26],[58,24,58,26],[51,27,51,29],[52,27,52,29],[53,27,53,29],[54,27,54,29],[55,27,55,29],[56,27,56,29],[57,27,57,29],[58,27,58,29],[53,24,53,26],[54,24,54,26],[55,24,55,26],[56,39,56,48],[57,30,57,38],[58,30,58,38],[59,30,59,38],[190,27,190,29],[190,31,190,38],[190,51,190,52],[190,53,190,54],[190,55,190,56],[143,29,143,43],[143,44,143,48],[150,2,150,10],[150,11,150,29],[150,30,150,38],[150,39,150,57],[151,2,151,10],[151,11,151,29],[151,30,151,38],[151,39,151,57],[161,2,181,57],[183,2,183,15],[183,16,183,39],[156,3,157,54],[148,16,148,18],[189,53,189,54],[189,55,189,56],[190,2,190,19],[143,20,143,28],[109,3,109,5],[109,7,110,37],[119,19,119,29],[119,30,119,40],[105,1,105,58],[119,2,119,6],[119,7,119,18],[113,23,115,54],[96,44,97,48],[97,49,97,55],[97,38,97,42],[117,15,117,17],[96,2,97,10],[96,33,97,37],[189,27,189,29],[190,22,190,23],[142,44,142,48],[67,1,67,58],[59,24,59,26],[61,24,61,26],[62,24,62,26],[63,24,63,26],[61,27,61,29],[62,27,62,29],[63,27,63,29],[64,24,64,26],[64,27,64,29],[65,17,65,23],[62,17,62,23],[63,17,63,23],[59,27,59,29],[65,30,65,38],[65,39,65,48],[65,52,65,57],[65,49,65,51],[60,2,60,16],[60,17,60,23],[60,24,60,26],[120,16,120,18],[120,19,120,20],[120,39,120,40],[30,39,34,48],[44,2,44,16],[45,2,45,16],[46,2,46,16],[193,50,193,52],[159,1,159,58],[187,53,187,54],[187,55,187,56],[187,2,187,19],[187,22,187,23],[187,24,187,25],[187,27,187,29],[187,31,187,38],[187,51,187,52],[186,2,186,19],[186,27,186,29],[186,31,186,38],[186,51,186,52],[186,53,186,54],[186,55,186,56],[189,2,189,19],[142,2,142,19],[142,20,142,28],[142,29,142,43],[189,31,189,38],[189,51,189,52],[140,20,140,22],[143,2,143,19],[190,24,190,25],[77,1,77,58],[88,22,88,31],[88,32,88,41],[102,2,102,55],[99,44,99,55],[132,4,133,56],[120,22,120,23],[120,25,120,26],[120,28,120,29],[120,30,120,31],[120,33,120,34],[120,36,120,37],[120,2,120,6],[120,7,120,8],[120,10,120,11],[120,13,120,14],[81,12,81,13],[85,16,85,18],[83,13,83,14],[73,2,73,13],[73,14,73,21],[101,6,101,15],[101,27,101,37],[92,21,92,25],[99,6,99,34],[87,2,87,12],[87,13,87,21],[87,22,87,31],[87,32,87,41],[88,2,88,12],[88,13,88,21],[97,11,97,31],[4,14,4,18],[4,19,4,22],[4,23,4,26],[11,9,11,18],[11,29,11,36],[11,49,11,56],[5,2,5,13],[5,14,5,18],[5,19,5,22],[5,23,5,26],[7,1,7,58],[9,9,9,57],[0,42,0,58],[72,29,72,33],[72,34,72,39],[73,29,73,33],[1,53,3,58],[1,14,3,52],[19,1,19,58],[50,2,50,16],[50,17,50,23],[70,14,70,16],[21,4,23,55],[25,4,26,52],[73,34,73,39],[60,27,60,29],[60,30,60,38],[60,39,60,48],[30,2,34,16],[30,17,34,23],[37,17,37,23],[39,17,39,23],[44,24,44,26],[45,24,45,26],[46,24,46,26],[47,24,47,26],[72,14,72,21],[62,2,62,16],[63,2,63,16],[64,2,64,16],[47,2,47,16],[48,2,48,16],[49,2,49,16],[51,2,51,16],[52,2,52,16],[53,2,53,16],[54,2,54,16],[55,2,55,16],[65,2,65,16],[47,17,47,23],[48,17,48,23],[49,17,49,23],[72,2,72,13],[56,17,56,23],[57,17,57,23],[58,17,58,23],[59,17,59,23],[51,17,51,23],[52,17,52,23],[53,17,53,23],[35,39,35,48],[41,2,41,16],[43,2,43,16],[36,2,36,16],[36,17,36,23],[36,24,36,26],[36,27,36,29],[36,30,36,38],[36,39,36,48],[40,2,40,16],[40,17,40,23],[39,2,39,16],[42,30,42,38],[42,39,42,48],[35,2,35,16],[35,17,35,23],[37,2,37,16],[41,17,41,23],[43,17,43,23],[38,17,38,23],[42,17,42,23],[38,2,38,16],[42,2,42,16],[59,2,59,16],[61,2,61,16],[58,2,58,16],[56,2,56,16],[57,2,57,16],[64,17,64,23],[61,17,61,23],[44,17,44,23],[45,17,45,23],[46,17,46,23],[54,17,54,23],[55,17,55,23]]}
[null,null,null,null,null,null,null,null,null,null,null,null,null,null,null,null,null,null,null,null,null,null,null,null,null,null,null,null,null,null,null,null,null,null,null,null,null,null,null,null,null,null,""]
[null,null,null,null,null,null,null,null,null,null,null,null,null,null,"Formato de solicitud de Novedades Portal Conexión en Línea",null,null,null,null,null,null,null,null,null,null,null,null,null,null,null,null,null,null,null,null,null,null,null,null,null,null,null,null,null,null,null,null,null,null,null,null,null,null,"Código: OPE_FOR_008\nVersión:  V3\nFecha de actualización: 21/02/2022"]
[]
[]
[null,null,null,null,null,null,"Ciudad",null,null,null,null,null,null,null,"*Año",null,null,null,null,"*Mes",null,null,null,"*Día"]
[null,null,"BOGOTA, D.C.",null,null,null,null,null,null,null,null,null,null,null,{"$f":"YEAR(TODAY())","v":2022},null,null,null,null,{"$f":"MONTH(TODAY())","v":9},null,null,null,{"$f":"DAY(TODAY())","v":20}]
[]
[null,"Información del Portal"]
[]
[null,null,"Nombre de la Empresa"]
[]
[null,null,"Código Compañía",null,null,null,null,null,null,null,null,null,null,null,null,null,null,null,null,null,null,"Tipo de Identificación:",null,null,null,null,null,null,null,null,null,null,null,null,null,null,null,null,null,null,"Número de Identificación:"]
[null,null,null,null,null,null,null,null,null,"Incluye el CB seguido de los 6 digitos",null,null,null,null,null,null,null,null,null,null,null,null,null,null,null,null,null,null,null,null,null,null,null,null,null,null,null,null,null,null,"Digita el Nit Principal con digito de verificación sin guiones"]
[null,null,"Selecciona el tipo de novedad que requieres"]
[]
[]
[null,null,null,null,null,null,null,0,null,null,null,null,null,null,null,null,null,null,null,null,null,0]
[null,null,null,null,null,null,null,0,null,null,null,null,null,null,null,null,null,null,null,null,null,0]
[]
[null,"Actualización de servicios y montos"]
[]
[null,null,null,null,"Los límites de servicios transaccionales serán autogestionables dentro del portal y al realizar la firma de este formato se certifica que los límites por transacción y diarios acumulados, serán asignados a cada uno de los usuarios del Portal Conexión en Línea por parte del Usuario Administrador. Esta asignación no supera los límites autorizados en sus estatutos sociales."]
[]
[]
[]
[null,null,null,null,"Los límites por transacción y diarios acumulados serán establecidos en la configuración general del portal y estos no superaran los límites autorizados en sus estatutos sociales."]
[]
[]
[null,null,null,null,"Los límites configurados a continuación aplican por Servicio, no por cuenta."]
[]
[null,null,"Servicios Transaccionales",null,null,null,null,null,null,null,null,null,null,null,null,null,null,"Tipo de Solicitud",null,null,null,null,null,null,"Manual y Archivo",null,null,"Sólo Archivo",null,null,"Límite Diario",null,null,null,null,null,null,null,null,"Límite por Transacción",null,null,null,null,null,null,null,null,null,"Tipo de Cuenta",null,null,"Número de Cuenta"]
[]
[]
[]
[]
[null,null,"Pagos de Nómina",null,null,null,null,null,null,null,null,null,null,null,null,null,null,null,null,null,null,null,null,null,null,null,null,null,null,null,null,null,null,null,null,null,null,null,null,null,null,null,null,null,null,null,null,null,null,null,null,null,"",null,null,null,null,null,0]
[null,null,"Pagos de Proveedores",null,null,null,null,null,null,null,null,null,null,null,null,null,null,null,null,null,null,null,null,null,null,null,null,null,null,null,null,null,null,null,null,null,null,null,null,null,null,null,null,null,null,null,null,null,null,null,null,null,"",null,null,null,null,null,0]
[null,null,"Pagos a Otros Terceros",null,null,null,null,null,null,null,null,null,null,null,null,null,null,null,null,null,null,null,null,null,null,null,null,null,null,null,null,null,null,null,null,null,null,null,null,null,null,null,null,null,null,null,null,null,null,null,null,null,""]
[null,null,"Giros Empresariales",null,null,null,null,null,null,null,null,null,null,null,null,null,null,null,null,null,null,null,null,null,null,null,null,null,null,null,null,null,null,null,null,null,null,null,null,null,null,null,null,null,null,null,null,null,null,null,null,null,"",null,null,null,null,null,0]
[null,null,"Pago de Libranza con archivo estándar del Banco",null,null,null,null,null,null,null,null,null,null,null,null,null,null,null,null,null,null,null,null,null,null,null,null,null,null,null,null,null,null,null,null,null,null,null,null,null,null,null,null,null,null,null,null,null,null,null,null,null,""]
[null,null,"Pago de Libranza con archivo de elaboración manual",null,null,null,null,null,null,null,null,null,null,null,null,null,null,null,null,null,null,null,null,null,null,null,null,null,null,null,null,null,null,null,null,null,null,null,null,null,null,null,null,null,null,null,null,null,null,null,null,null,"",null,null,null,null,null,0]
[null,null,"Desinversiones Cartera Colectiva",null,null,null,null,null,null,null,null,null,null,null,null,null,null,null,null,null,null,null,null,null,null,null,null,null,null,null,null,null,null,null,null,null,null,null,null,null,null,null,null,null,null,null,null,null,null,null,null,null,""]
[null,null,"Tarjeta Prepago Efectiva",null,null,null,null,null,null,null,null,null,null,null,null,null,null,null,null,null,null,null,null,null,null,null,null,null,null,null,null,null,null,null,null,null,null,null,null,null,null,null,null,null,null,null,null,null,null,null,null,null,"",null,null,null,null,null,0]
[null,null,"Validación de Beneficiarios",null,null,null,null,null,null,null,null,null,null,null,null,null,null,null,null,null,null,null,null,null,null,null,null,null,null,null,null,null,null,null,null,null,null,null,null,null,null,null,null,null,null,null,null,null,null,null,null,null,""]
[null,null,"Dispersión Pagos Pila",null,null,null,null,null,null,null,null,null,null,null,null,null,null,null,null,null,null,null,null,null,null,null,null,null,null,null,null,null,null,null,null,null,null,null,null,null,null,null,null,null,null,null,null,null,null,null,null,null,""]
[null,null,"Pagos PSE Grupo 1 – Pagos PILA",null,null,null,null,null,null,null,null,null,null,null,null,null,null,null,null,null,null,null,null,null,null,null,null,null,null,null,null,null,null,null,null,null,null,null,null,null,null,null,null,null,null,null,null,null,null,null,null,null,""]
[null,null,"Pagos PSE Grupo 2 – Pagos a Entidades del Estado e Impuestos",null,null,null,null,null,null,null,null,null,null,null,null,null,null,null,null,null,null,null,null,null,null,null,null,null,null,null,null,null,null,null,null,null,null,null,null,null,null,null,null,null,null,null,null,null,null,null,null,null,""]
[null,null,"Pagos PSE Grupo 3 – Pagos de Aerolíneas",null,null,null,null,null,null,null,null,null,null,null,null,null,null,null,null,null,null,null,null,null,null,null,null,null,null,null,null,null,null,null,null,null,null,null,null,null,null,null,null,null,null,null,null,null,null,null,null,null,""]
[null,null,"Pagos PSE Grupo 4 – Pagos de Servicios Públicos y Privados",null,null,null,null,null,null,null,null,null,null,null,null,null,null,null,null,null,null,null,null,null,null,null,null,null,null,null,null,null,null,null,null,null,null,null,null,null,null,null,null,null,null,null,null,null,null,null,null,null,""]
[null,null,"Pagos PSE Grupo 5 – Pagos de otros comercios",null,null,null,null,null,null,null,null,null,null,null,null,null,null,null,null,null,null,null,null,null,null,null,null,null,null,null,null,null,null,null,null,null,null,null,null,null,null,null,null,null,null,null,null,null,null,null,null,null,""]
[null,null,"Transferencias Internas",null,null,null,null,null,null,null,null,null,null,null,null,null,null,null,null,null,null,null,null,null,null,null,null,null,null,null,null,null,null,null,null,null,null,null,null,null,null,null,null,null,null,null,null,null,null,null,null,null,"",null,null,null,null,null,0]
[null,null,"Transferencia a Terceros",null,null,null,null,null,null,null,null,null,null,null,null,null,null,null,null,null,null,null,null,null,null,null,null,null,null,null,null,null,null,null,null,null,null,null,null,null,null,null,null,null,null,null,null,null,null,null,null,null,""]
[null,null,"Transferencia de Inversión Interna",null,null,null,null,null,null,null,null,null,null,null,null,null,null,null,null,null,null,null,null,null,null,null,null,null,null,null,null,null,null,null,null,null,null,null,null,null,null,null,null,null,null,null,null,null,null,null,null,null,""]
[null,null,"Transferencia de Inversión a Terceros",null,null,null,null,null,null,null,null,null,null,null,null,null,null,null,null,null,null,null,null,null,null,null,null,null,null,null,null,null,null,null,null,null,null,null,null,null,null,null,null,null,null,null,null,null,null,null,null,null,""]
[null,null,"Pagos de Impuestos DIAN",null,null,null,null,null,null,null,null,null,null,null,null,null,null,null,null,null,null,null,null,null,null,null,null,null,null,null,null,null,null,null,null,null,null,null,null,null,null,null,null,null,null,null,null,null,null,null,null,null,""]
[null,null,"Pagos de Impuestos Distritales y Locales",null,null,null,null,null,null,null,null,null,null,null,null,null,null,null,null,null,null,null,null,null,null,null,null,null,null,null,null,null,null,null,null,null,null,null,null,null,null,null,null,null,null,null,null,null,null,null,null,null,""]
[null,null,"Pagos de Servicios públicos y privados",null,null,null,null,null,null,null,null,null,null,null,null,null,null,null,null,null,null,null,null,null,null,null,null,null,null,null,null,null,null,null,null,null,null,null,null,null,null,null,null,null,null,null,null,null,null,null,null,null,""]
[null,null,"Pagos de Obligaciones Internas",null,null,null,null,null,null,null,null,null,null,null,null,null,null,null,null,null,null,null,null,null,null,null,null,null,null,null,null,null,null,null,null,null,null,null,null,null,null,null,null,null,null,null,null,null,null,null,null,null,""]
[null,null,"Pagos de Obligaciones a Terceros",null,null,null,null,null,null,null,null,null,null,null,null,null,null,null,null,null,null,null,null,null,null,null,null,null,null,null,null,null,null,null,null,null,null,null,null,null,null,null,null,null,null,null,null,null,null,null,null,null,""]
[null,null,"Recaudos Directos",null,null,null,null,null,null,null,null,null,null,null,null,null,null,null,null,null,null,null,null,null,null,null,null,null,null,null,null,null,null,null,null,null,null,null,null,null,null,null,null,null,null,null,null,null,null,null,null,null,""]
[null,null,"Compra de Moneda Internacional - Spot - Límite en Dólares",null,null,null,null,null,null,null,null,null,null,null,null,null,null,null,null,null,null,null,null,null,null,null,null,null,null,null,null,null,null,null,null,null,null,null,null,null,null,null,null,null,null,null,null,null,null,null,null,null,"",null,null,null,null,null,0]
[null,null,"Venta de Moneda Internacional - Spot - Límite en Dólares",null,null,null,null,null,null,null,null,null,null,null,null,null,null,null,null,null,null,null,null,null,null,null,null,null,null,null,null,null,null,null,null,null,null,null,null,null,null,null,null,null,null,null,null,null,null,null,null,null,""]
[null,null,"Transferencias Sebra",null,null,null,null,null,null,null,null,null,null,null,null,null,null,null,null,null,null,null,null,null,null,null,null,null,null,null,null,null,null,null,null,null,null,null,null,null,null,null,null,null,null,null,null,null,null,null,null,null,""]
[null,null,"Ameritransfer",null,null,null,null,null,null,null,null,null,null,null,null,null,null,null,null,null,null,null,null,null,null,null,null,null,null,null,null,null,null,null,null,null,null,null,null,null,null,null,null,null,null,null,null,null,null,null,null,null,""]
[null,null,"Dispersión Ameritransfer",null,null,null,null,null,null,null,null,null,null,null,null,null,null,null,null,null,null,null,null,null,null,null,null,null,null,null,null,null,null,null,null,null,null,null,null,null,null,null,null,null,null,null,null,null,null,null,null,null,""]
[null,null,"Tarjeta Prepago Pay +",null,null,null,null,null,null,null,null,null,null,null,null,null,null,null,null,null,null,null,null,null,null,null,null,null,null,null,null,null,null,null,null,null,null,null,null,null,null,null,null,null,null,null,null,null,null,null,null,null,""]
[]
[null,"Desbloqueo de Usuarios"]
[]
[]
[null,null,null,"Cantidad de usuarios a desbloquear:"]
[]
[null,null,"Id de Usuario",null,null,null,null,null,null,null,null,null,null,null,"Desbloquear Usuario"]
[]
[]
[null,null,null,"* Aplicará Reinicio de Contraseña sólo para usuarios Administradores. Si eres usuario funcional, solicita el reinicio de contraseña con tu administrador."]
[]
[null,"Solicitud de Token"]
[]
[null,null,null,"Adicional"]
[]
[null,null,null,"Cantidad token adicionales:"]
[]
[null,null,null,"Reposición/Bloqueo"]
[]
[null,null,null,"Cantidad de solicitudes reposición/bloqueo:"]
[]
[null,null,"Tipo de Solicitud",null,null,null,null,null,null,null,null,null,null,"Serial Token",null,null,null,null,null,null,null,null,"Motivo",null,null,null,null,null,null,null,null,null,"Id de Usuario"]
[null,0]
[]
[null,null,"!Importante¡ Si solicita reposición por perdida o robo, debe enviar el denuncio junto con el formato firmado."]
[]
[null,null,"Cantidad total de token (adicionales y reposición):",null,null,null,null,null,null,null,null,null,null,null,null,null,null,null,null,null,null,0]
[]
[null,null,"Información para la entrega de Token"]
[]
[null,null,"Nombre persona autorizada \nque recibe el o los Token:",null,null,null,null,null,null,null,null,null,null,null,null,null,null,null,null,null,null,null,null,null,null,null,null,null,null,null,null,null,null,"Tipo de Identificación:",null,null,null,null,null,null,null,null,null,null,"Número de Identificación:"]
[]
[]
[null,null,"Dirección:",null,null,null,null,null,null,null,null,null,null,null,null,null,null,null,null,null,null,null,null,null,null,null,null,null,null,null,null,null,null,null,null,null,"Teléfono de Contacto:"]
[]
[null,null,"Ciudad:",null,null,null,null,null,null,null,null,null,null,null,null,null,null,null,null,null,null,"Departamento:",null,null,null,null,null,null,null,null,null,null,null,null,null,null,null,null,null,null,null,"Entrega a través de comercial"]
[]
[null,null,"Recuerda que el Usuario Administrador debe enviar el Acuse de Recibo de Token"]
[]
[null,"Admnistración y Seguridad / Gestión de Administradores"]
[]
[null,null,null,"Cantidad de Aprobaciones por Transacción"]
[]
[null,null,null,null,null,null,null,"* Cantidad de firmas requeridas para transacciones monetarias. Para Pagos PSE los podrá realizar con la intervención de 1 sólo usuario."]
[]
[null,null,null,"Validación de IPs Fijas"]
[]
[null,null,null,null,null,null,null,null,null,null,null,null,null,null,null,null,null,null,null,null,null,null,null,"* Para cliente oficial el retiro de validación de IP también requiere la firma del representante legal. Sólo se permitirá el acceso al portal desde las Ips fijas registradas en el Banco. Máximo 30 Ips fijas por portal."]
[]
[]
[]
[null,null,null,"Cantidad de direcciones IP a actualizar:"]
[]
[null,null,"Acción",null,null,null,null,"Dirección IP 1",null,null,null,null,null,null,null,null,null,null,null,"Dirección IP 2",null,null,null,null,null,null,null,null,null,null,"Dirección IP 3"]
[null,null,null,null,null,null,null,null,null,".",null,null,".",null,null,".",null,null,null,null,null,".",null,null,".",null,null,".",null,null,null,null,".",null,null,".",null,null,"."]
[]
[null,null,null,"Tipo de Administración de Usuarios"]
[]
[null,null,null,null,null,null,null,"Administración Sencilla de Usuarios: Permite que un usuario administrador auto-gestione las actividades para la administración de usuarios"]
[null,null,null,null,null,null,null,"(crear/modificar o eliminar usuarios) sin requerir intervención de otro usuario administrador."]
[]
[null,null,null,null,null,null,null,"Administración Dual de Usuarios: Este parámetro activa la intervención de mínimo dos usuarios administradores, en donde un usuario administrador"]
[null,null,null,null,null,null,null,"crea , modifica o elimina usuarios y otro usuario administrador los aprueba."]
[]
[null,null,null,"Habilitar Usuarios Administradores sin acceso Transaccional"]
[]
[null,null,null,null,"Esta función permite que los administradores solamente tengan acceso a la gestión de usuarios. Si se activa esta opción, se recomienda activar el parámetro de control dual de administración de usuarios."]
[]
[]
[null,null,null,"Gestionar Usuarios Administradores del Portal"]
[]
[null,null,null,null,"Crear nuevo usuario Administrador"]
[]
[]
[null,null,null,null,"Cantidad de usuarios Administradores a crear:"]
[]
[null,null,"Nombre Completo",null,null,null,null,null,null,null,null,null,null,null,null,null,null,null,null,null,"Teléfono fijo / Celular",null,null,null,null,null,null,null,null,"Correo Electrónico",null,null,null,null,null,null,null,null,null,null,null,null,null,null,"Token"]
[]
[]
[null,null,null,null,"Actualizar usuario Administrador existente"]
[]
[]
[null,null,null,null,"Cantidad de usuarios a actualizar:"]
[]
[null,null,"ID de Usuario",null,null,null,null,null,null,null,null,"Nombre Completo",null,null,null,null,null,null,null,null,null,null,null,null,null,null,null,null,null,null,"Acción",null,null,null,null,null,null,null,null,"Información a Actualizar"]
[]
[]
[]
[null,null,null,"Otro"]
[]
[]
[]
[]
[]
[]
[null,null,"Diligenciar con los nombres y firmas del (de los) representante (s) legal (es) de la Compañía / Grupo Empresarial * Poder para Usuario(s) Administrador(es) .\nNosotros los abajo firmantes, identificados y obrando en la calidad de Representante(s) Legal(es) de la Compañía, otorgamos poder amplio y suficiente al (los) Usuario(s) Administrador(es), identificado(s) como aparece sobre su firma, para que en nombre y representación de la Compañía, maneje(n) el módulo administrativo (incluyendo, sin limitarse, a la creación y modificación de usuarios, determinación de límites o cupos transaccionales, definición de privilegios, generación de contraseñas, definición de reportes), las  Herramientas y los módulos transaccionales (incluyendo la realización de todas y cada una de las funciones habilitadas, especialmente, consultas, pagos y transferencias) del Portal Conexión En Línea del Banco de Bogotá, así como para realizar actualización de datos de la Compañía, adicionar y retirar cuentas, actualizar servicios de cuentas, solicitar y recibir Tokens, desbloquear usuarios, reiniciar contraseñas, reiniciar y desbloquear preguntas reto, inactivar total o parcialmente el Portal, recibir el(los) correspondiente(s) Usuario(s) y Contraseña(s) secretas para que pueda(n) usarlos para acceder al Portal Conexión En Línea, y realizar bajo nuestra responsabilidad todas las acciones permisibles dentro de él, sin ninguna limitación sobre los productos y servicios contratados por nosotros con el BANCO DE BOGOTA.  El apoderado no podrá sustituir o ceder este poder como usuario(s) administrador(es) del sistema, pero podrá autorizar a terceras personas para el manejo del Portal Conexión En Línea bajo nuestra responsabilidad –usuarios derivados-. La autorización a terceros incluirá  la facultad de subautorizar a otras personas quienes a su vez podrán subautorizar a otras sin ninguna limitación y bajo nuestra responsabilidad, todo de acuerdo con el perfil de uso diseñado por el(os) USUARIO(S) ADMINISTRADOR(ES).  Para los efectos del otorgamiento del presente poder, cada una de las sociedades poderdantes declaran de manera expresa: A) que a la fecha de la suscripción del presente poder son sociedades debidamente incorporadas y reguladas por las leyes de Colombia. B)  que tienen todas las autorizaciones, licencias, registros  y permisos legales, administrativos, corporativas, estatutarios, gubernamentales y cualesquiera otras autorizaciones licencias o permisos  requeridas para el cumplimiento de sus obligaciones para con EL BANCO y el otorgamiento de este poder. C) Las personas que otorgan este poder en nombre de los poderdantes están plenamente autorizados para celebrar y ejecutar el mismo. D) Que  el poder conferido  es válido, legalmente obligatorio y vigentes, manifestando que han sido debidamente autorizados por los órganos corporativos  pertinentes para otorgar el poder al que se refiere este escrito y sus términos y condiciones no desconocen las leyes aplicables, sus estatutos o cualquier otro acuerdo o compromiso en el que sea parte, señalando  de manera expresa que es de  cargo de los poderdantes la obtención de dichas autorizaciones, ya que el BANCO de Bogotá  asume como plenamente válidas y vinculantes para las poderdantes las declaraciones realizadas. \n\nAceptamos el Convenio del Servicio del Portal Conexión en Línea."]
[]
[]
[]
[]
[]
[]
[]
[]
[]
[]
[]
[]
[]
[]
[]
[]
[]
[]
[]
[]
[]
[null,null,"A continuación se requiere firma de",null,null,null,null,null,null,null,null,null,null,null,null,null,"Usuario Administrador"]
[null,null,"Por favor marque la casilla que corresponda según su rol (Rep Legal y/o Administrador) o ambas en caso que aplique"]
[null,null,null,null,null,null,null,null,null,null,null,null,null,null,null,null,null,null,null,null,null,null,null,null,null,null,null,null,null,null,null,null,null,null,null,null,null,null,null,null,null,null,"Firmas",null,null,null,null,null,null,null,null,null,null,"Fecha Firma"]
[null,null,"Nombre Completo",null,null,null,null,null,null,null,null,null,null,null,null,null,null,null,null,null,null,"Rep Legal",null,null,"Admin",null,null,"Tipo Doc.",null,null,null,"Número Documento",null,null,null,null,null,null,null,null,null,null,null,null,null,null,null,null,null,null,null,"dd",null,"mm",null,"aaaa",null,1]
[]
[null,1]
[null,1,"Nombre Completo",null,null,null,null,null,null,null,null,null,null,null,null,null,null,null,null,null,null,"Rep Legal",null,null,"Admin",null,null,"Tipo Doc.",null,null,null,"Número Documento",null,null,null,null,null,null,null,null,null,null,null,null,null,null,null,null,null,null,null,"dd",null,"mm",null,"aaaa",null,1]
[]
[]
[]
[null,null,null,null,null,null,null,null,null,null,null,null,null,null,null,null,null,null,null,null,null,null,null,null,null,null,null,null,null,null,null,null,null,null,null,null,null,null,null,null,"Cantidad Firmas a agregar:"]

{"sheet":"Instructivo","index":1,"n_rows":110,"n_cols":12,"rows_kept":110,"cut":false,"hidden":false,"merged":[[6,0,6,12],[8,0,8,12],[10,0,10,12],[24,0,24,12],[32,0,33,12],[0,0,3,3],[0,4,3,10],[0,11,3,12],[4,0,4,12],[5,0,5,12],[89,0,90,12],[93,0,94,12],[98,0,99,12],[105,0,106,12],[70,0,72,12],[76,0,77,12],[87,0,88,12],[85,0,85,11],[39,0,40,11],[51,0,52,11],[66,0,66,1],[81,0,82,12],[84,0,84,11]]}
[null,null,null,null,"Instrucciones diligenciamiento formato \nSolicitud de Novedades Portal Conexión en Línea",null,null,null,null,null,null,"Código: OPE_FOR_008\nVersión:  V1\nFecha de actualización: 19/11/2021"]
[]
[]
[]
[]
["INSTRUCCIONES A TENER EN CUENTA PARA EL DILIGENCIAMIENTO DEL FORMATO DE SOLICITUD DE NOVEDADES PORTAL CONEXIÓN EN LINEA"]
["POR FAVOR LEERLAS"]
[]
["Por favor lee detenidamente cada uno de los campos contenidos en el formato de novedad, su correcto diligenciamiento te evitará devoluciones"]
[]
["INFORMACIÓN DEL PORTAL"]
[]
["1. Código Compañia:"]
["Coloca el CB seguido de los 6 digitos de la Compañía. Ej:  CB009991"]
[]
["2. Nombre de la Empresa"]
["Diligencia el nombre de tu compañía. En caso de ser grupo empresarial, coloca el nombre de la compañía cabeza de grupo"]
[]
["3. Tipo de Identificación",null,null,null,null,"4. Número de Identificación"]
["Elige entre una de las siguientes opciones: ",null,null,null,null,"Coloca el número de identificación incluyendo el dígito de verificación SIN guiones"]
["NIT: Nit persona Jurídica"]
["Nit Nat: Nit persona Natural"]
["Nit Ext: Nit Extranjería"]
[]
["TIPOS DE NOVEDADES"]
[]
[]
[]
[]
["En esta sección puedes hacer solictudes de restablecimiento de tu acceso al portal."]
[]
["Id de Usuario: Diligencia el Identificador único de usuario para tu acceso al portal. Es el segundo dato que incluyes en la página de inicio de sesión."]
["Desbloquear usuario: Al marcar esta opción quedarás desbloqueado para volver a definir las preguntas. Si eres usuario administrador, recibiras en tu correo registrado ante el banco la contraseña temporal de ingreso. y debes ingresar con tu contraseña actual. Si eres usuario preparador, de consulta, aprobador (no administrador), debes ingresar con tu contraseña actual o solicitar el restablecimiento de la contraseña con tu administrador."]
[]
[]
[]
[]
["En esta sección podrás realizar alguna de las siguientes opciones por cada servicio transaccional disponible en el portal"]
[]
["Adicionar / Actualizar servicio y cuentas: Opción para agregar un nuevo servicio a la compañía o actualizar (aumentar o disminuir) límites de servicios que ya tenga habilitados en la compañía. Al seleccionar esta opción, es necesario establecer las cuentas a las que se les habilitará el servicio."]
[]
["Actualizar límites: Opción que permite aumentar o disminuir límites de servicios que la compañía ya tenga habilitados "]
["Retirar: Opción que permite inhabilitar un servicio de la compañía"]
["Incluir Cuenta: Opción que permite solamente agregar cuentas a cada servicio habilitado en la compañía"]
[]
[]
["Manual y Archivo: Esta opción permite importar información, crear, modificar, eliminar y aprobar pagos."]
["Sólo Archivo: Esta opción permite la carga, eliminación, aprobación y transmisión de archivos planos (con/sin cifrado). Los archivos no pueden ser editados."]
["Límite Diario: Valor máximo acumulado por servicio en un día sin importar el número de transacciones realizadas"]
["Límite por Transacción: Valor diario por transacción o archivo según el servicio transaccional"]
["Tipo de Cuenta: Seleccione AH para cuenta de ahorros, CC para cuenta corriente o Rot para crédito rotativo."]
["Número de Cuenta: Digite el número de la cuenta que desea activar para el servicio. Relacione el número completo según el tipo de producto seleccionado entre ahorros, corriente o rotativo."]
[]
[]
[]
[]
["3.1 Adicional"]
["Digita el número de tokens nuevos a solicitar. "]
[]
["3.2 Reposición"]
[]
["Tipo de Solicitud"]
["Reposición para Usuario: Con esta opción, se podra solicitar cambio de un token por pérdida / robo, daño o garantía para usuarios existentes en el portal."]
["Bloqueo: Utilice esta opción para inhabilitar el uso de un token de manera definitiva. Para este caso no se enviará token."]
["Serial Token: En este campo se debe registrar el número de serial de token que aparece al respaldo del dispositivo"]
["Motivo: Debes elegir el motivo de la reposición entre las siguientes opciones"]
["Pérdida / Robo"]
["Daño o Garantía",null,"Si solicitas reposición por pérdida o robo debes adjuntar el denuncio."]
["Id de Usuario: Diligencia el Identificador único de usuario para el acceso al portal. Es el segundo dato que incluyes en la página de inicio de sesión."]
[]
["Información para la entrega de Token: Debes registrar los datos de envio del usuario Administrador que va a recibir el o los Tokens solicitados. Si necesitas delegar a una persona diferente al usuario administrador, debes colocar los datos de la persona que se autoriza a recibir los dispositivos, el acuse de recibo de token lo firmaria dicha persona sin embargo se debe enviar siempre un acuse adicional firmado por el usuario Administrador"]
[]
[]
[]
[]
[]
["4.1 Cantidad de Aprobadores por Transacción: Incluir la cantidad (mínimo 1 y máximo 3) de aprobaciones requeridos  para realizar transacciones monetarias (personas adicionales al creador que intervendrán en la transacción monetaria). No aplica para transacciones realizadas a través de PSE."]
[]
["4.2 Validación de IPs Fijas: Al elegir esta opción, sólo se permitirá el acceso al portal desde las IPs fijas públicas previamente registradas en el Banco."]
["Activar Validación IP: Al seleccionar esta opción debes adicionar todas las Ips desde las cuales los usuarios de tu compañía van a acceder. (Máximo 30 ips)"]
["Actualizar IPs: Con esta opción puedes adicionar o retirar Ips desde las cuales los usuarios de tu compañía van a acceder"]
["Retirar Validación IP: Al seleccionar esta opción no es necesario relacionar las Ips que tenias registradas.  El retiro de ips para compañias Oficiales requiere de firma de representante legal y la carta retiro de IPs cliente oficial (Solicita este documento a través de la línea exclusiva de soporte 6013820020 en Bogota y 018000516737 a nivel nacional)."]
[]
["Acción: "]
["Adicionar: Elige esta opción para incluir nuevas direcciones IP. Esta acción aplicará para las Ips que relaciones en los tres campos a la derecha."]
["Retirar: Elige esta opción para eliminar direcciones IP previamente registradas.  Esta acción aplicará para las Ips que relaciones en los tres campos a la derecha."]
["4.3 Tipo de Administración de usuarios"]
["Administración Sencilla de Usuarios: Permite que un usuario administrador auto-gestione las actividades para la administración de usuarios\n(crear/modificar o eliminar usuarios) sin requerir intervención de otro usuario administrador."]
[]
["Administración Dual de Usuarios: Este parámetro activa la intervención de mínimo dos usuarios administradores, en donde un usuario administrador\ncrea , modifica o elimina usuarios y otro usuario administrador los aprueba."]
[]
["4.4 Habilitar Usuarios Administradores sin Acceso Transaccional: Restringe al rol administrador tener acceso a consultas y transacciones."]
["4.5 Gestionar Usuarios Administradores del Portal"]
["Crear nuevo usuario Administrador: Diligencia todos los datos solicitados para el nuevo usuario administrador. En el campo Token, puedes colocar el serial completo en caso que tengas libres por asignar, de lo contrario coloca \"Nuevo\" y debes dirigirte a la sección de Solicitud Token y solicitar uno adicional"]
[]
["Actualizar usuario Administrador existente: Puedes realizar alguna de las siguientes acciones a los usuarios registrados "]
["*Actualizar Token"]
["*Actualizar Correo Electrónico"]
["*Habilitar como administrador: Aplica para usuarios funcionales a los que se les quiere atribuir la opcion de usuario Administrador cuando no hayan más usuarios administradores en el portal que puedan asignar el permiso."]
[]
["*Eliminar usuario:  Digita el id del usuario administrador que será eliminado."]
[]
["Diligencia los datos del usuario administrador o Representante Legal según quien vaya a realizar la firma."]
[]
["6. EXPORTAR PDF"]
["Guarda el documento con nombre de la compañía y dar clic en el botón EXPORTAR. Luego dar clic en Aceptar para que aparezca de inmediato el Formato en PDF."]
[]
[]
["7. CERRAR"]
["El Formato se puede cerrar dando clic en el boton CERRAR o en la X que aparece en la parte superior del documento."]

{"sheet":"RegistroNovedades","index":2,"n_rows":128,"n_cols":6,"rows_kept":128,"cut":false,"hidden":true,"merged":[]}
[]
[]
[null,"NOMBRE","COMPANY ID","TIPO ID","NUMERO ID"]
[null,"Compañía de prueba de copia","CB001234","NIT",8000931173]
[null,"Compañía de prueba de copia","CB001234","NIT",8000931173]
[null,8000931173,"CB001234","NIT",8000931173]
[null,"XXX","CB001234","NIT",8000931173]
[null,"XXX","CB001234","NIT",8000931173]
[null,"XXX","CB001234","NIT",8000931173]
[null,"XXX","CB001234","NIT",8000931173]
[null,"XXX","CB001234","NIT",8000931173]
[null,"XXX","CB001234","NIT",8000931173]
[null,"XXX","CB001234","NIT",8000931173]
[null,"Compañía de prueba de copia","CB001234","NIT",8000931173]
[null,"XXX","CB001234","NIT",8000931173]
[null,"Compañía de prueba de copia"]
[null,"XXX"]
[null,"Compañía de prueba de copia"]
[null,"XXX"]
[null,"Compañía de prueba de copia"]
[null,"XXX"]
[null,"Compañía de prueba de copia"]
[null,"XXX"]
[null,"Compañía de prueba de copia"]
[null,"Compañía de prueba de copia"]
[]
[]
[]
[]
[]
[]
[]
[]
[]
[]
[]
[]
[]
[]
[]
[]
[]
[]
[]
[]
[]
[]
[]
[]
[]
[]
[]
[]
[]
[]
[]
[]
[]
[]
[]
[]
[]
[]
[]
[]
[]
[]
[]
[]
[]
[]
[]
[]
[]
[]
[]
[]
[]
[]
[]
[]
[]
[]
[]
[]
[]
[]
[]
[]
[]
[]
[]
[]
[]
[]
[]
[]
[]
[]
[]
[]
[]
[]
[]
[]
[]
[]
[]
[]
[]
[]
[]
[]
[]
[]
[]
[]
[]
[]
[]
[]
[]
[]
[]
[]
[null,"XXX"]
[null,"Compañía de prueba de copia"]
[null,null,null,null,null,"Texto"]

{"sheet":"Contraido","index":3,"n_rows":147,"n_cols":60,"rows_kept":147,"cut":false,"hidden":true,"merged":[[142,53,142,54],[142,55,142,56],[146,50,146,52],[99,21,99,25],[99,34,99,41],[142,2,142,19],[142,22,142,23],[142,24,142,25],[142,27,142,29],[142,31,142,38],[142,51,142,52],[138,53,138,54],[138,55,138,56],[141,2,141,19],[141,27,141,29],[141,31,141,38],[141,51,141,52],[141,53,141,54],[141,55,141,56],[138,2,138,19],[138,22,138,23],[138,24,138,25],[138,27,138,29],[138,31,138,38],[138,51,138,52],[134,53,134,54],[134,55,134,56],[137,2,137,19],[137,27,137,29],[137,31,137,38],[137,51,137,52],[137,53,137,54],[137,55,137,56],[134,2,134,19],[134,22,134,23],[134,24,134,25],[134,27,134,29],[134,31,134,38],[134,51,134,52],[133,2,133,19],[133,27,133,29],[133,31,133,38],[133,51,133,52],[133,53,133,54],[133,55,133,56],[129,53,129,54],[129,55,129,56],[130,2,130,19],[130,22,130,23],[130,24,130,25],[130,27,130,29],[130,31,130,38],[130,51,130,52],[130,53,130,54],[130,55,130,56],[126,2,126,15],[126,16,126,39],[129,2,129,19],[129,27,129,29],[129,31,129,38],[129,51,129,52],[97,2,97,10],[97,11,97,29],[97,30,97,38],[97,39,97,57],[102,1,102,58],[104,2,124,57],[93,2,93,10],[93,11,93,28],[93,29,93,37],[93,38,93,52],[93,53,93,57],[96,2,96,10],[96,11,96,29],[96,30,96,38],[96,39,96,57],[74,39,74,40],[85,7,86,54],[92,2,92,10],[92,11,92,28],[92,29,92,37],[92,38,92,52],[92,53,92,57],[74,22,74,23],[74,25,74,26],[74,28,74,29],[74,30,74,31],[74,33,74,34],[74,36,74,37],[74,2,74,6],[74,7,74,8],[74,10,74,11],[74,13,74,14],[74,16,74,18],[74,19,74,20],[59,1,59,58],[64,1,64,58],[66,19,66,21],[66,23,67,53],[73,2,73,6],[73,7,73,18],[73,19,73,29],[73,30,73,40],[50,2,50,55],[52,2,52,58],[55,9,55,34],[55,44,55,55],[57,9,57,19],[57,25,57,55],[44,1,44,58],[45,13,45,34],[47,6,47,34],[47,44,47,55],[49,6,49,15],[49,27,49,37],[37,2,37,12],[37,13,37,21],[37,22,37,31],[37,32,37,41],[37,42,37,57],[41,21,41,25],[28,45,28,47],[30,1,30,58],[36,2,36,12],[36,13,36,21],[36,22,36,31],[36,32,36,41],[36,42,36,57],[24,9,25,19],[26,9,26,19],[26,22,26,28],[26,29,26,33],[26,34,26,39],[26,42,26,48],[11,9,11,18],[11,29,11,36],[11,49,11,56],[20,1,20,58],[23,22,25,28],[23,29,25,33],[23,34,25,39],[23,42,25,48],[23,49,25,53],[24,2,25,8],[5,2,5,13],[5,14,5,18],[5,19,5,22],[5,23,5,26],[7,1,7,58],[9,9,9,57],[0,43,0,58],[1,14,3,52],[1,53,3,58],[4,14,4,18],[4,19,4,22],[4,23,4,26]]}
[null,null,null,null,null,null,null,null,null,null,null,null,null,null,null,null,null,null,null,null,null,null,null,null,null,null,null,null,null,null,null,null,null,null,null,null,null,null,null,null,null,null,null,""]
[null,null,null,null,null,null,null,null,null,null,null,null,null,null,"Formato de Novedades Portal Conexión en Línea",null,null,null,null,null,null,null,null,null,null,null,null,null,null,null,null,null,null,null,null,null,null,null,null,null,null,null,null,null,null,null,null,null,null,null,null,null,null,"Código: OPE_FOR_0XX\nVersión:  V5\nFecha de actualización: 04/11/2021"]
[]
[]
[null,null,null,null,null,null,"Ciudad",null,null,null,null,null,null,null,"*Año",null,null,null,null,"*Mes",null,null,null,"*Día"]
[null,null,"BOGOTA, D.C.",null,null,null,null,null,null,null,null,null,null,null,{"$f":"YEAR(TODAY())","v":2022},null,null,null,null,{"$f":"MONTH(TODAY())","v":9},null,null,null,{"$f":"DAY(TODAY())","v":20}]
[]
[null,"Información del Portal"]
[]
[null,null,"Nombre del Portal"]
[]
[null,null,"Código Compañía",null,null,null,null,null,null,null,null,null,null,null,null,null,null,null,null,null,null,"Tipo de Identificación:",null,null,null,null,null,null,null,null,null,null,null,null,null,null,null,null,null,null,"Número de Identificación:"]
[null,null,null,null,null,null,null,null,null,null,null,null,null,null,null,null,null,null,null,null,null,null,null,null,null,null,null,null,null,null,null,null,null,null,null,null,null,null,null,null,null,"Digita el Nit con digito de verificación sin guiones"]
[null,null,"Selecciona el tipo de novedad que requieres:"]
[]
[null,null,null,null,null,null,null,null,null,null,null,null,null,null,null,null,null,null,null,null,null,null,null,null,null,null,"3. Actualización de servicios y montos"]
[]
[]
[]
[]
[null,"Desbloqueo de Usuarios"]
[]
[null,null,"Selecciona el tipo de Usuario",null,null,null,null,null,null,null,null,null,null,null,null,null,null,null,null,null,null,null,null,"Administrador",null,null,null,null,null,null,null,null,null,null,null,null,null,null,null,null,null,null,null,"Funcional"]
[null,null,null,null,null,null,null,null,null,null,null,null,null,null,null,null,null,null,null,null,null,null,"Reiniciar Preguntas de Seguridad",null,null,null,null,null,null,"Reiniciar Flujo Olvido Contraseña",null,null,null,null,"Reiniciar Contraseña",null,null,null,null,null,null,null,"Reiniciar Preguntas de Seguridad",null,null,null,null,null,null,"Reiniciar Flujo Olvido Contraseña"]
[null,null,"Id Usuario",null,null,null,null,null,null,"Nombre Usuario"]
[]
[]
[]
[null,null,null,null,null,null,null,null,null,null,null,null,null,null,null,null,null,null,null,null,null,null,null,null,null,null,null,null,null,null,null,null,null,null,null,null,"Cantidad Filas a agregar:"]
[]
[null,"Solicitud de Token"]
[]
[null,null,null,"Adicional",null,null,null,null,"Cantidad token adicionales:"]
[]
[null,null,null,"Reposición"]
[]
[null,null,"Tipo Solicitud",null,null,null,null,null,null,null,null,null,null,"Serial Token",null,null,null,null,null,null,null,null,"Motivo",null,null,null,null,null,null,null,null,null,"Id de Usuario",null,null,null,null,null,null,null,null,null,"Nombre"]
[]
[null,null,"Las reposiciones de token de usuario administrador deben venir firmadas por el representante legal de la compañía."]
[null,null,"!Importante¡ Si solicita reposición por perdida o robo, debe enviar el denuncio junto con el formato firmado."]
[]
[null,null,"Cantidad total de token (adicionales y reposición):",null,null,null,null,null,null,null,null,null,null,null,null,null,null,null,null,null,null,0]
[]
[null,null,"Información para la entrega de Token"]
[]
[null,null,"Nombre Usuario Administrador:"]
[]
[null,null,"Dirección:",null,null,null,null,null,null,null,null,null,null,null,null,null,null,null,null,null,null,null,null,null,null,null,null,null,null,null,null,null,null,null,null,null,"Teléfono de Contacto:"]
[]
[null,null,"Ciudad:",null,null,null,null,null,null,null,null,null,null,null,null,null,null,null,null,null,null,"Departamento:"]
[]
[]
[null,null,"Autorizo a la siguiente persona para que pueda recibir el Token Físico:"]
[null,null,"Importante: Al diligenciar esta opción recuerda que el Usuario Administrador debe firmar el Acuse de Recibo de Token"]
[]
[null,null,"Nombre:",null,null,null,null,null,null,null,null,null,null,null,null,null,null,null,null,null,null,null,null,null,null,null,null,null,null,null,null,null,null,null,null,null,"Teléfono de Contacto:"]
[]
[null,null,"No. Identificación:",null,null,null,null,null,null,null,null,null,null,null,null,null,null,null,null,null,null,"Dirección:"]
[]
[null,"Actualización de servicios y montos"]
[]
[]
[]
[]
[null,"Admnistración y Seguridad / Gestión de Administradores"]
[]
[null,null,null,"Cantidad de Aprobaciones por Transacción",null,null,null,null,null,null,null,null,null,null,null,null,null,null,null,null,null,null,null,"* Este parametro aplica para las transacciones monetarias del Portal. Para pagos PSE sólo aplica la intervención de 1 usuario."]
[]
[null,null,null,"Validación de IPs Fijas"]
[]
[null,null,null,null,"Activar",null,null,"Actualizar",null,null,null,"Retirar",null,null,null,"* Para cliente oficial el retiro de validación de IP también requiere la firma del representante legal. "]
[]
[null,null,"* Solo se permitirá el acceso al portal desde las Ips fijas registradas en el Banco. Máximo 30 Ips fijas por portal."]
[null,null,"Acción",null,null,null,null,"Dirección IP 1",null,null,null,null,null,null,null,null,null,null,null,"Dirección IP 2",null,null,null,null,null,null,null,null,null,null,"Dirección IP 3"]
[null,null,null,null,null,null,null,null,null,".",null,null,".",null,null,".",null,null,null,null,null,".",null,null,".",null,null,".",null,null,null,null,".",null,null,".",null,null,"."]
[]
[null,null,null,"Tipo de Administración de Usuarios"]
[]
[null,null,null,null,"Secilla",null,null,"Administración Sencilla de Usuarios: Permite que un usuario administrador auto-gestione las actividades para la administración de usuarios"]
[null,null,null,null,null,null,null,"(crear/modificar o eliminar usuarios) sin requerir intervención de otro usuario administrador."]
[null,null,null,null,"Dual",null,null,"Administración Dual de Usuarios: Este parámetro activa la intervención de mínimo dos usuarios administradores, en donde un usuario administrador"]
[null,null,null,null,null,null,null,"crea , modifica o elimina usuarios y otro usuario administrador los aprueba."]
[]
[null,null,null,"Habilitar Usuarios Administradores sin acceso Transaccional"]
[]
[null,null,null,null,"Si",null,null,"Esta función permite que los administradores solamente tengan acceso a la gestión de usuarios. Si se activa esta opción, se recomienda activar el parámetro de control dual de administración de usuarios."]
[null,null,null,null,"No"]
[]
[null,null,null,"Gestionar Usuarios Administradores del Portal"]
[]
[null,null,null,null,"Crear nuevo usuario Administrador"]
[]
[null,null,"ID de Usuario",null,null,null,null,null,null,null,null,"Nombre Completo",null,null,null,null,null,null,null,null,null,null,null,null,null,null,null,null,null,"Teléfono fijo / Celular",null,null,null,null,null,null,null,null,"Correo Electrónico",null,null,null,null,null,null,null,null,null,null,null,null,null,null,"Token"]
[]
[]
[null,null,null,null,"Actualizar usuario Administrador existente"]
[null,null,"ID de Usuario",null,null,null,null,null,null,null,null,"Nombre Completo",null,null,null,null,null,null,null,null,null,null,null,null,null,null,null,null,null,null,"Acción",null,null,null,null,null,null,null,null,"Información a Actualizar"]
[]
[]
[null,null,null,null,null,null,null,null,null,null,null,null,null,null,null,"Tipo de Cuenta",null,null,null,null,null,null,null,null,null,null,null,"Número de Cuenta",null,null,null,null,null,null,null,null,null,null,null,null,null,null,null,null,null,null,null,null,null,null,null,null,null,null,null,null,null,null,null,"Corriente"]
[null,null,null,"Otro"]
[]
[]
[]
[null,null,"Diligenciar con los nombres y firmas del (de los) representante (s) legal (es) de la Compañía / Grupo Empresarial * Poder para Usuario(s) Administrador(es) .\nNosotros los abajo firmantes, identificados y obrando en la calidad de Representante(s) Legal(es) de la Compañía, otorgamos poder amplio y suficiente al (los) Usuario(s) Administrador(es), identificado(s) como aparece sobre su firma, para que en nombre y representación de la Compañía, maneje(n) el módulo administrativo (incluyendo, sin limitarse, a la creación y modificación de usuarios, definición de privilegios, generación de contraseñas, definición de reportes), las  Herramientas y los módulos transaccionales (incluyendo la realización de todas y cada una de las funciones habilitadas, especialmente, consultas, pagos y transferencias) del Portal Conexión En Línea del Banco de Bogotá, así como para realizar actualización de datos de la Compañía, adicionar y retirar cuentas, actualizar servicios de cuentas, solicitar y recibir Tokens, desbloquear usuarios, reiniciar contraseñas, reiniciar y desbloquear preguntas reto, inactivar total o parcialmente el Portal, recibir el(los) correspondiente(s) Usuario(s) y Contraseña(s) secretas para que pueda(n) usarlos para acceder al Portal Conexión En Línea, y realizar bajo nuestra responsabilidad todas las acciones permisibles dentro de él, sin ninguna limitación sobre los productos y servicios contratados por nosotros con el BANCO DE BOGOTA.  El apoderado no podrá sustituir o ceder este poder como usuario(s) administrador(es) del sistema, pero podrá autorizar a terceras personas para el manejo del Portal Conexión En Línea bajo nuestra responsabilidad –usuarios derivados-. La autorización a terceros incluirá  la facultad de subautorizar a otras personas quienes a su vez podrán subautorizar a otras sin ninguna limitación y bajo nuestra responsabilidad, todo de acuerdo con el perfil de uso diseñado por el(os) USUARIO(S) ADMINISTRADOR(ES).  Para los efectos del otorgamiento del presente poder, cada una de las sociedades poderdantes declaran de manera expresa: A) que a la fecha de la suscripción del presente poder son sociedades debidamente incorporadas y reguladas por las leyes de Colombia. B)  que tienen todas las autorizaciones, licencias, registros  y permisos legales, administrativos, corporativas, estatutarios, gubernamentales y cualesquiera otras autorizaciones licencias o permisos  requeridas para el cumplimiento de sus obligaciones para con EL BANCO y el otorgamiento de este poder. C) Las personas que otorgan este poder en nombre de los poderdantes están plenamente autorizados para celebrar y ejecutar el mismo. D) Que  el poder conferido  es válido, legalmente obligatorio y vigentes, manifestando que han sido debidamente autorizados por los órganos corporativos  pertinentes para otorgar el poder al que se refiere este escrito y sus términos y condiciones no desconocen las leyes aplicables, sus estatutos o cualquier otro acuerdo o compromiso en el que sea parte, señalando  de manera expresa que es de  cargo de los poderdantes la obtención de dichas autorizaciones, ya que el BANCO de Bogotá  asume como plenamente válidas y vinculantes para las poderdantes las declaraciones realizadas. \n\nAceptamos el Convenio del Servicio del Portal Conexión en Línea."]
[]
[]
[]
[]
[]
[]
[]
[]
[]
[]
[]
[]
[]
[]
[]
[]
[]
[]
[]
[]
[]
[null,null,"A continuación se requiere firma de",null,null,null,null,null,null,null,null,null,null,null,null,null,"Rep. Legal Actual Compañía Principal del Portal"]
[null,null,"Por favor marque la casilla que corresponda según su rol (Rep Legal y/o Administrador) o ambas en caso que aplique"]
[null,null,null,null,null,null,null,null,null,null,null,null,null,null,null,null,null,null,null,null,null,null,null,null,null,null,null,null,null,null,null,null,null,null,null,null,null,null,null,null,null,null,"Firmas",null,null,null,null,null,null,null,null,null,null,"Fecha Firma"]
[null,null,"Nombre Completo",null,null,null,null,null,null,null,null,null,null,null,null,null,null,null,null,null,null,"Rep Legal",null,null,"Admin",null,null,"Tipo Doc.",null,null,null,"Número Documento",null,null,null,null,null,null,null,null,null,null,null,null,null,null,null,null,null,null,null,"dd",null,"mm",null,"aaaa"]
[]
[]
[]
[null,null,"Nombre Completo Compañía",null,null,null,null,null,null,null,null,null,null,null,null,null,null,null,null,null,null,"Rep Legal",null,null,"Admin",null,null,"Tipo Doc.",null,null,null,"Número Documento",null,null,null,null,null,null,null,null,null,null,null,null,null,null,null,null,null,null,null,"dd",null,"mm",null,"aaaa"]
[]
[]
[]
[null,null,"Nombre Completo",null,null,null,null,null,null,null,null,null,null,null,null,null,null,null,null,null,null,"Rep Legal",null,null,"Admin",null,null,"Tipo Doc.",null,null,null,"Número Documento",null,null,null,null,null,null,null,null,null,null,null,null,null,null,null,null,null,null,null,"dd",null,"mm",null,"aaaa"]
[]
[]
[]
[null,null,"Nombre Completo",null,null,null,null,null,null,null,null,null,null,null,null,null,null,null,null,null,null,"Rep Legal",null,null,"Admin",null,null,"Tipo Doc",null,null,null,"Número Documento",null,null,null,null,null,null,null,null,null,null,null,null,null,null,null,null,null,null,null,"dd",null,"mm",null,"aaaa"]
[]
[]
[]
[]
[null,null,null,null,null,null,null,null,null,null,null,null,null,null,null,null,null,null,null,null,null,null,null,null,null,null,null,null,null,null,null,null,null,null,null,null,null,null,null,null,"Cantidad Firmas a agregar:"]

{"sheet":"Listas","index":4,"n_rows":1123,"n_cols":30,"rows_kept":1123,"cut":false,"hidden":true,"merged":[]}
[null,null,"CheckManual","Cargos",null,"Tipos Cuenta","Tipos Cuenta","Tipo Usuario","Tipos Compañía","Tipos Novedad Administrador","Tipos Documento Compañía","Tipos Documento Persona",null,null,null,"CodDepartamento","Codigo","Ciudad","CIUDAD",null,"Departamentso"]
["Adic. Prod.","Reactivar Portal","x","Consultor Cash",null,"Ahorros","Ahorros","Administrador","Compañía","Crear Usuario Administrador","NIT","Cedula","Adicionar",1,null,"00",null,"000","Seleccione",null,"ANTIOQUIA",null,"Reposición para Usuario","Pérdida / Robo","Actualizar Token","AH","Adicionar / Actualizar servicio y Cuenta",null,null,"AH"]
["Retirar Prod.","Retirar Portal","X","Ejecutivo Comercial",null,"Corriente","Corriente","Funcional","Holding","Actualizar Información Usuario Administrador","Nit Nat","Cedula Extr","Retirar",2,null,"05","ANTIOQUIA","002","ABEJORRAL",null,"ATLANTICO",null,"Bloqueo","Daño ó Garantía","Actualizar Correo electrónico","CC","Actualizar límites",null,null,"CC"]
["Adic. Serv.","Inactivar Portal",null,"Gerente CEO",null,"Crédito Rot","Crédito Rot",null,null,"Activar Usuario Administrador","Nit Ext","Pasaporte",null,3,null,"54","N. DE SANTANDER","003","ABREGO",null,"BOGOTA",null,null,null,"Habilitar como administrador","Rot","Retirar",null,null,"TC"]
["Retirar serv",null,null,null,null,"Tarj Crédito","CDT",null,null,"Inactivar Usuario Administrador",null,null,null,null,null,"05","ANTIOQUIA","004","ABRIAQUI",null,"BOLIVAR",null,null,null,"Eliminar Usuario","Fiducia","Incluir Cuenta"]
[null,null,null,null,null,"Cartera","Tarj Crédito",null,null,null,null,null,null,null,null,"50","META","006","ACACIAS",null,"BOYACA"]
[null,null,null,null,null,"Fiducia","Cartera",null,null,null,null,null,null,null,null,"27","CHOCO","006","ACANDI",null,"CALDAS"]
[null,null,null,null,null,"Ahorros Int.","Fiducia",null,null,null,null,null,null,null,null,"41","HUILA","006","ACEVEDO",null,"CAQUETA"]
[null,null,null,null,null,"Corriente Int.","Ahorros Int.",null,null,null,null,null,null,null,null,"13","BOLIVAR","006","ACHI",null,"CAUCA"]
[null,null,null,null,null,null,"Corriente Int.",null,null,null,null,null,null,null,null,"41","HUILA","013","AGRADO",null,"CESAR"]
[null,null,null,null,null,null,null,null,null,null,null,null,null,null,null,"25","CUNDINAMARCA","001","AGUA DE DIOS",null,"CORDOBA"]
[null,null,null,null,null,null,null,null,null,null,null,null,null,null,null,"20","CESAR","011","AGUACHICA",null,"CUNDINAMARCA"]
[null,null,null,null,null,null,null,null,null,null,null,null,null,null,null,"68","SANTANDER","013","AGUADA",null,"CHOCO"]
[null,null,null,null,null,null,null,null,null,null,null,null,null,null,null,"17","CALDAS","013","AGUADAS",null,"HUILA"]
[null,null,null,null,null,null,null,null,null,null,null,null,null,null,null,"85","CASANARE","010","AGUAZUL",null,"LA GUAJIRA"]
[null,null,null,null,null,null,null,null,null,null,null,null,null,null,null,"20","CESAR","013","AGUSTIN CODAZZI",null,"MAGDALENA"]
[null,null,null,null,null,null,null,null,null,null,null,null,null,null,null,"41","HUILA","016","AIPE",null,"META"]
[null,null,null,null,null,null,null,null,null,null,null,null,null,null,null,"25","CUNDINAMARCA","019","ALBAN",null,"NARIÑO"]
[null,null,null,null,null,null,null,null,null,null,null,null,null,null,null,"52","NARIÑO","019","ALBAN",null,"N. DE SANTANDER"]
[null,null,null,null,null,null,null,null,null,null,null,null,null,null,null,"18","CAQUETA","029","ALBANIA",null,"QUINDIO"]
[null,null,null,null,null,null,null,null,null,null,null,null,null,null,null,"44","LA GUAJIRA","035","ALBANIA",null,"RISARALDA"]
[null,null,null,null,null,null,null,null,null,null,null,null,null,null,null,"68","SANTANDER","020","ALBANIA",null,"SANTANDER"]
[null,null,null,null,null,null,null,null,null,null,null,null,null,null,null,"76","VALLE DEL CAUCA","020","ALCALA",null,"SUCRE"]
[null,null,null,null,null,null,null,null,null,null,null,null,null,null,null,"52","NARIÑO","022","ALDANA",null,"TOLIMA"]
[null,null,null,null,null,null,null,null,null,null,null,null,null,null,null,"05","ANTIOQUIA","021","ALEJANDRIA",null,"VALLE DEL CAUCA"]
[null,null,null,null,null,null,null,null,null,null,null,null,null,null,null,"47","MAGDALENA","030","ALGARROBO",null,"ARAUCA"]
[null,null,null,null,null,null,null,null,null,null,null,null,null,null,null,"41","HUILA","020","ALGECIRAS",null,"CASANARE"]
[null,null,null,null,null,null,null,null,null,null,null,null,null,null,null,"19","CAUCA","022","ALMAGUER",null,"PUTUMAYO"]
[null,null,null,null,null,null,null,null,null,null,null,null,null,null,null,"15","BOYACA","022","ALMEIDA",null,"SAN ANDRES"]
[null,null,null,null,null,null,null,null,null,null,null,null,null,null,null,"73","TOLIMA","024","ALPUJARRA",null,"AMAZONAS"]
[null,null,null,null,null,null,null,null,null,null,null,null,null,null,null,"41","HUILA","026","ALTAMIRA",null,"GUAINIA"]
[null,null,null,null,null,null,null,null,null,null,null,null,null,null,null,"27","CHOCO","025","ALTO BAUDO",null,"GUAVIARE"]
[null,null,null,null,null,null,null,null,null,null,null,null,null,null,null,"13","BOLIVAR","030","ALTOS DEL ROSARIO",null,"VAUPES"]
[null,null,null,null,null,null,null,null,null,null,null,null,null,null,null,"73","TOLIMA","026","ALVARADO",null,"VICHADA"]
[null,null,null,null,null,null,null,null,null,null,null,null,null,null,null,"05","ANTIOQUIA","030","AMAGA"]
[null,null,null,null,null,null,null,null,null,null,null,null,null,null,null,"05","ANTIOQUIA","031","AMALFI"]
[null,null,null,null,null,null,null,null,null,null,null,null,null,null,null,"73","TOLIMA","030","AMBALEMA"]
[null,null,null,null,null,null,null,null,null,null,null,null,null,null,null,"25","CUNDINAMARCA","035","ANAPOIMA"]
[null,null,null,null,null,null,null,null,null,null,null,null,null,null,null,"52","NARIÑO","036","ANCUYA"]
[null,null,null,null,null,null,null,null,null,null,null,null,null,null,null,"76","VALLE DEL CAUCA","036","ANDALUCIA"]
[null,null,null,null,null,null,null,null,null,null,null,null,null,null,null,"05","ANTIOQUIA","034","ANDES"]
[null,null,null,null,null,null,null,null,null,null,null,null,null,null,null,"05","ANTIOQUIA","036","ANGELOPOLIS"]
[null,null,null,null,null,null,null,null,null,null,null,null,null,null,null,"05","ANTIOQUIA","038","ANGOSTURA"]
[null,null,null,null,null,null,null,null,null,null,null,null,null,null,null,"25","CUNDINAMARCA","040","ANOLAIMA"]
[null,null,null,null,null,null,null,null,null,null,null,null,null,null,null,"05","ANTIOQUIA","040","ANORI"]
[null,null,null,null,null,null,null,null,null,null,null,null,null,null,null,"17","CALDAS","042","ANSERMA"]
[null,null,null,null,null,null,null,null,null,null,null,null,null,null,null,"76","VALLE DEL CAUCA","041","ANSERMANUEVO"]
[null,null,null,null,null,null,null,null,null,null,null,null,null,null,null,"05","ANTIOQUIA","044","ANZA"]
[null,null,null,null,null,null,null,null,null,null,null,null,null,null,null,"73","TOLIMA","043","ANZOATEGUI"]
[null,null,null,null,null,null,null,null,null,null,null,null,null,null,null,"05","ANTIOQUIA","045","APARTADO"]
[null,null,null,null,null,null,null,null,null,null,null,null,null,null,null,"66","RISARALDA","045","APIA"]
[null,null,null,null,null,null,null,null,null,null,null,null,null,null,null,"25","CUNDINAMARCA","599","APULO"]
[null,null,null,null,null,null,null,null,null,null,null,null,null,null,null,"15","BOYACA","047","AQUITANIA"]
[null,null,null,null,null,null,null,null,null,null,null,null,null,null,null,"47","MAGDALENA","053","ARACATACA"]
[null,null,null,null,null,null,null,null,null,null,null,null,null,null,null,"17","CALDAS","050","ARANZAZU"]
[null,null,null,null,null,null,null,null,null,null,null,null,null,null,null,"68","SANTANDER","051","ARATOCA"]
[null,null,null,null,null,null,null,null,null,null,null,null,null,null,null,"81","ARAUCA","001","ARAUCA"]
[null,null,null,null,null,null,null,null,null,null,null,null,null,null,null,"81","ARAUCA","065","ARAUQUITA"]
[null,null,null,null,null,null,null,null,null,null,null,null,null,null,null,"25","CUNDINAMARCA","053","ARBELAEZ"]
[null,null,null,null,null,null,null,null,null,null,null,null,null,null,null,"52","NARIÑO","051","ARBOLEDA"]
[null,null,null,null,null,null,null,null,null,null,null,null,null,null,null,"54","N. DE SANTANDER","051","ARBOLEDAS"]
[null,null,null,null,null,null,null,null,null,null,null,null,null,null,null,"05","ANTIOQUIA","051","ARBOLETES"]
[null,null,null,null,null,null,null,null,null,null,null,null,null,null,null,"15","BOYACA","051","ARCABUCO"]
[null,null,null,null,null,null,null,null,null,null,null,null,null,null,null,"13","BOLIVAR","042","ARENAL"]
[null,null,null,null,null,null,null,null,null,null,null,null,null,null,null,"05","ANTIOQUIA","055","ARGELIA"]
[null,null,null,null,null,null,null,null,null,null,null,null,null,null,null,"19","CAUCA","050","ARGELIA"]
[null,null,null,null,null,null,null,null,null,null,null,null,null,null,null,"76","VALLE DEL CAUCA","054","ARGELIA"]
[null,null,null,null,null,null,null,null,null,null,null,null,null,null,null,"47","MAGDALENA","058","ARIGUANI"]
[null,null,null,null,null,null,null,null,null,null,null,null,null,null,null,"13","BOLIVAR","052","ARJONA"]
[null,null,null,null,null,null,null,null,null,null,null,null,null,null,null,"05","ANTIOQUIA","059","ARMENIA"]
[null,null,null,null,null,null,null,null,null,null,null,null,null,null,null,"63","QUINDIO","001","ARMENIA"]
[null,null,null,null,null,null,null,null,null,null,null,null,null,null,null,"73","TOLIMA","055","ARMERO"]
[null,null,null,null,null,null,null,null,null,null,null,null,null,null,null,"13","BOLIVAR","062","ARROYOHONDO"]
[null,null,null,null,null,null,null,null,null,null,null,null,null,null,null,"20","CESAR","032","ASTREA"]
[null,null,null,null,null,null,null,null,null,null,null,null,null,null,null,"73","TOLIMA","067","ATACO"]
[null,null,null,null,null,null,null,null,null,null,null,null,null,null,null,"27","CHOCO","050","ATRATO"]
[null,null,null,null,null,null,null,null,null,null,null,null,null,null,null,"23","CORDOBA","068","AYAPEL"]
[null,null,null,null,null,null,null,null,null,null,null,null,null,null,null,"27","CHOCO","073","BAGADO"]
[null,null,null,null,null,null,null,null,null,null,null,null,null,null,null,"27","CHOCO","075","BAHIA SOLANO"]
[null,null,null,null,null,null,null,null,null,null,null,null,null,null,null,"27","CHOCO","077","BAJO BAUDO"]
[null,null,null,null,null,null,null,null,null,null,null,null,null,null,null,"19","CAUCA","075","BALBOA"]
[null,null,null,null,null,null,null,null,null,null,null,null,null,null,null,"66","RISARALDA","075","BALBOA"]
[null,null,null,null,null,null,null,null,null,null,null,null,null,null,null,"08","ATLANTICO","078","BARANOA"]
[null,null,null,null,null,null,null,null,null,null,null,null,null,null,null,"41","HUILA","078","BARAYA"]
[null,null,null,null,null,null,null,null,null,null,null,null,null,null,null,"52","NARIÑO","079","BARBACOAS"]
[null,null,null,null,null,null,null,null,null,null,null,null,null,null,null,"05","ANTIOQUIA","079","BARBOSA"]
[null,null,null,null,null,null,null,null,null,null,null,null,null,null,null,"68","SANTANDER","077","BARBOSA"]
[null,null,null,null,null,null,null,null,null,null,null,null,null,null,null,"68","SANTANDER","079","BARICHARA"]
[null,null,null,null,null,null,null,null,null,null,null,null,null,null,null,"50","META","110","BARRANCA DE UPIA"]
[null,null,null,null,null,null,null,null,null,null,null,null,null,null,null,"68","SANTANDER","081","BARRANCABERMEJA"]
[null,null,null,null,null,null,null,null,null,null,null,null,null,null,null,"44","LA GUAJIRA","078","BARRANCAS"]
[null,null,null,null,null,null,null,null,null,null,null,null,null,null,null,"13","BOLIVAR","074","BARRANCO DE LOBA"]
[null,null,null,null,null,null,null,null,null,null,null,null,null,null,null,"94","GUAINIA","343","BARRANCO MINAS"]
[null,null,null,null,null,null,null,null,null,null,null,null,null,null,null,"08","ATLANTICO","001","BARRANQUILLA"]
[null,null,null,null,null,null,null,null,null,null,null,null,null,null,null,"20","CESAR","045","BECERRIL"]
[null,null,null,null,null,null,null,null,null,null,null,null,null,null,null,"17","CALDAS","088","BELALCAZAR"]
[null,null,null,null,null,null,null,null,null,null,null,null,null,null,null,"15","BOYACA","087","BELEN"]
[null,null,null,null,null,null,null,null,null,null,null,null,null,null,null,"52","NARIÑO","083","BELEN"]
[null,null,null,null,null,null,null,null,null,null,null,null,null,null,null,"18","CAQUETA","094","BELEN DE LOS ANDAQUIES"]
[null,null,null,null,null,null,null,null,null,null,null,null,null,null,null,"66","RISARALDA","088","BELEN DE UMBRIA"]
[null,null,null,null,null,null,null,null,null,null,null,null,null,null,null,"05","ANTIOQUIA","088","BELLO"]
[null,null,null,null,null,null,null,null,null,null,null,null,null,null,null,"05","ANTIOQUIA","086","BELMIRA"]
[null,null,null,null,null,null,null,null,null,null,null,null,null,null,null,"25","CUNDINAMARCA","086","BELTRAN"]
[null,null,null,null,null,null,null,null,null,null,null,null,null,null,null,"15","BOYACA","090","BERBEO"]
[null,null,null,null,null,null,null,null,null,null,null,null,null,null,null,"05","ANTIOQUIA","091","BETANIA"]
[null,null,null,null,null,null,null,null,null,null,null,null,null,null,null,"15","BOYACA","092","BETEITIVA"]
[null,null,null,null,null,null,null,null,null,null,null,null,null,null,null,"05","ANTIOQUIA","093","BETULIA"]
[null,null,null,null,null,null,null,null,null,null,null,null,null,null,null,"68","SANTANDER","092","BETULIA"]
[null,null,null,null,null,null,null,null,null,null,null,null,null,null,null,"25","CUNDINAMARCA","095","BITUIMA"]
[null,null,null,null,null,null,null,null,null,null,null,null,null,null,null,"15","BOYACA","097","BOAVITA"]
[null,null,null,null,null,null,null,null,null,null,null,null,null,null,null,"54","N. DE SANTANDER","099","BOCHALEMA"]
[null,null,null,null,null,null,null,null,null,null,null,null,null,null,null,"11","CUNDINAMARCA","001","BOGOTA, D.C."]
[null,null,null,null,null,null,null,null,null,null,null,null,null,null,null,"25","CUNDINAMARCA","099","BOJACA"]
[null,null,null,null,null,null,null,null,null,null,null,null,null,null,null,"27","CHOCO","099","BOJAYA"]
[null,null,null,null,null,null,null,null,null,null,null,null,null,null,null,"19","CAUCA","100","BOLIVAR"]
[null,null,null,null,null,null,null,null,null,null,null,null,null,null,null,"68","SANTANDER","101","BOLIVAR"]
[null,null,null,null,null,null,null,null,null,null,null,null,null,null,null,"76","VALLE DEL CAUCA","100","BOLIVAR"]
[null,null,null,null,null,null,null,null,null,null,null,null,null,null,null,"20","CESAR","060","BOSCONIA"]
[null,null,null,null,null,null,null,null,null,null,null,null,null,null,null,"15","BOYACA","104","BOYACA"]
[null,null,null,null,null,null,null,null,null,null,null,null,null,null,null,"05","ANTIOQUIA","107","BRICEÑO"]
[null,null,null,null,null,null,null,null,null,null,null,null,null,null,null,"15","BOYACA","106","BRICEÑO"]
[null,null,null,null,null,null,null,null,null,null,null,null,null,null,null,"68","SANTANDER","001","BUCARAMANGA"]
[null,null,null,null,null,null,null,null,null,null,null,null,null,null,null,"54","N. DE SANTANDER","109","BUCARASICA"]
[null,null,null,null,null,null,null,null,null,null,null,null,null,null,null,"76","VALLE DEL CAUCA","109","BUENAVENTURA"]
[null,null,null,null,null,null,null,null,null,null,null,null,null,null,null,"15","BOYACA","109","BUENAVISTA"]
[null,null,null,null,null,null,null,null,null,null,null,null,null,null,null,"23","CORDOBA","079","BUENAVISTA"]
[null,null,null,null,null,null,null,null,null,null,null,null,null,null,null,"63","QUINDIO","111","BUENAVISTA"]
[null,null,null,null,null,null,null,null,null,null,null,null,null,null,null,"70","SUCRE","110","BUENAVISTA"]
[null,null,null,null,null,null,null,null,null,null,null,null,null,null,null,"19","CAUCA","110","BUENOS AIRES"]
[null,null,null,null,null,null,null,null,null,null,null,null,null,null,null,"52","NARIÑO","110","BUESACO"]
[null,null,null,null,null,null,null,null,null,null,null,null,null,null,null,"76","VALLE DEL CAUCA","111","BUGA"]
[null,null,null,null,null,null,null,null,null,null,null,null,null,null,null,"76","VALLE DEL CAUCA","113","BUGALAGRANDE"]
[null,null,null,null,null,null,null,null,null,null,null,null,null,null,null,"05","ANTIOQUIA","113","BURITICA"]
[null,null,null,null,null,null,null,null,null,null,null,null,null,null,null,"15","BOYACA","114","BUSBANZA"]
[null,null,null,null,null,null,null,null,null,null,null,null,null,null,null,"25","CUNDINAMARCA","120","CABRERA"]
[null,null,null,null,null,null,null,null,null,null,null,null,null,null,null,"68","SANTANDER","121","CABRERA"]
[null,null,null,null,null,null,null,null,null,null,null,null,null,null,null,"50","META","124","CABUYARO"]
[null,null,null,null,null,null,null,null,null,null,null,null,null,null,null,"94","GUAINIA","886","CACAHUAL"]
[null,null,null,null,null,null,null,null,null,null,null,null,null,null,null,"05","ANTIOQUIA","120","CACERES"]
[null,null,null,null,null,null,null,null,null,null,null,null,null,null,null,"25","CUNDINAMARCA","123","CACHIPAY"]
[null,null,null,null,null,null,null,null,null,null,null,null,null,null,null,"54","N. DE SANTANDER","128","CACHIRA"]
[null,null,null,null,null,null,null,null,null,null,null,null,null,null,null,"54","N. DE SANTANDER","125","CACOTA"]
[null,null,null,null,null,null,null,null,null,null,null,null,null,null,null,"05","ANTIOQUIA","125","CAICEDO"]
[null,null,null,null,null,null,null,null,null,null,null,null,null,null,null,"76","VALLE DEL CAUCA","122","CAICEDONIA"]
[null,null,null,null,null,null,null,null,null,null,null,null,null,null,null,"70","SUCRE","124","CAIMITO"]
[null,null,null,null,null,null,null,null,null,null,null,null,null,null,null,"73","TOLIMA","124","CAJAMARCA"]
[null,null,null,null,null,null,null,null,null,null,null,null,null,null,null,"19","CAUCA","130","CAJIBIO"]
[null,null,null,null,null,null,null,null,null,null,null,null,null,null,null,"25","CUNDINAMARCA","126","CAJICA"]
[null,null,null,null,null,null,null,null,null,null,null,null,null,null,null,"13","BOLIVAR","140","CALAMAR"]
[null,null,null,null,null,null,null,null,null,null,null,null,null,null,null,"95","GUAVIARE","015","CALAMAR"]
[null,null,null,null,null,null,null,null,null,null,null,null,null,null,null,"63","QUINDIO","130","CALARCA"]
[null,null,null,null,null,null,null,null,null,null,null,null,null,null,null,"05","ANTIOQUIA","129","CALDAS"]
[null,null,null,null,null,null,null,null,null,null,null,null,null,null,null,"15","BOYACA","131","CALDAS"]
[null,null,null,null,null,null,null,null,null,null,null,null,null,null,null,"19","CAUCA","137","CALDONO"]
[null,null,null,null,null,null,null,null,null,null,null,null,null,null,null,"76","VALLE DEL CAUCA","001","CALI"]
[null,null,null,null,null,null,null,null,null,null,null,null,null,null,null,"68","SANTANDER","132","CALIFORNIA"]
[null,null,null,null,null,null,null,null,null,null,null,null,null,null,null,"76","VALLE DEL CAUCA","126","CALIMA"]
[null,null,null,null,null,null,null,null,null,null,null,null,null,null,null,"19","CAUCA","142","CALOTO"]
[null,null,null,null,null,null,null,null,null,null,null,null,null,null,null,"05","ANTIOQUIA","134","CAMPAMENTO"]
[null,null,null,null,null,null,null,null,null,null,null,null,null,null,null,"08","ATLANTICO","137","CAMPO DE LA CRUZ"]
[null,null,null,null,null,null,null,null,null,null,null,null,null,null,null,"41","HUILA","132","CAMPOALEGRE"]
[null,null,null,null,null,null,null,null,null,null,null,null,null,null,null,"15","BOYACA","135","CAMPOHERMOSO"]
[null,null,null,null,null,null,null,null,null,null,null,null,null,null,null,"23","CORDOBA","090","CANALETE"]
[null,null,null,null,null,null,null,null,null,null,null,null,null,null,null,"08","ATLANTICO","141","CANDELARIA"]
[null,null,null,null,null,null,null,null,null,null,null,null,null,null,null,"76","VALLE DEL CAUCA","130","CANDELARIA"]
[null,null,null,null,null,null,null,null,null,null,null,null,null,null,null,"13","BOLIVAR","160","CANTAGALLO"]
[null,null,null,null,null,null,null,null,null,null,null,null,null,null,null,"05","ANTIOQUIA","138","CAÑASGORDAS"]
[null,null,null,null,null,null,null,null,null,null,null,null,null,null,null,"25","CUNDINAMARCA","148","CAPARRAPI"]
[null,null,null,null,null,null,null,null,null,null,null,null,null,null,null,"68","SANTANDER","147","CAPITANEJO"]
[null,null,null,null,null,null,null,null,null,null,null,null,null,null,null,"25","CUNDINAMARCA","151","CAQUEZA"]
[null,null,null,null,null,null,null,null,null,null,null,null,null,null,null,"05","ANTIOQUIA","142","CARACOLI"]
[null,null,null,null,null,null,null,null,null,null,null,null,null,null,null,"05","ANTIOQUIA","145","CARAMANTA"]
[null,null,null,null,null,null,null,null,null,null,null,null,null,null,null,"68","SANTANDER","152","CARCASI"]
[null,null,null,null,null,null,null,null,null,null,null,null,null,null,null,"05","ANTIOQUIA","147","CAREPA"]
[null,null,null,null,null,null,null,null,null,null,null,null,null,null,null,"73","TOLIMA","148","CARMEN DE APICALA"]
[null,null,null,null,null,null,null,null,null,null,null,null,null,null,null,"25","CUNDINAMARCA","154","CARMEN DE CARUPA"]
[null,null,null,null,null,null,null,null,null,null,null,null,null,null,null,"27","CHOCO","150","CARMEN DEL DARIEN"]
[null,null,null,null,null,null,null,null,null,null,null,null,null,null,null,"05","ANTIOQUIA","150","CAROLINA"]
[null,null,null,null,null,null,null,null,null,null,null,null,null,null,null,"13","BOLIVAR","001","CARTAGENA"]
[null,null,null,null,null,null,null,null,null,null,null,null,null,null,null,"18","CAQUETA","150","CARTAGENA DEL CHAIRA"]
[null,null,null,null,null,null,null,null,null,null,null,null,null,null,null,"76","VALLE DEL CAUCA","147","CARTAGO"]
[null,null,null,null,null,null,null,null,null,null,null,null,null,null,null,"97","VAUPES","161","CARURU"]
[null,null,null,null,null,null,null,null,null,null,null,null,null,null,null,"73","TOLIMA","152","CASABIANCA"]
[null,null,null,null,null,null,null,null,null,null,null,null,null,null,null,"50","META","150","CASTILLA LA NUEVA"]
[null,null,null,null,null,null,null,null,null,null,null,null,null,null,null,"05","ANTIOQUIA","154","CAUCASIA"]
[null,null,null,null,null,null,null,null,null,null,null,null,null,null,null,"68","SANTANDER","160","CEPITA"]
[null,null,null,null,null,null,null,null,null,null,null,null,null,null,null,"23","CORDOBA","162","CERETE"]
[null,null,null,null,null,null,null,null,null,null,null,null,null,null,null,"15","BOYACA","162","CERINZA"]
[null,null,null,null,null,null,null,null,null,null,null,null,null,null,null,"68","SANTANDER","162","CERRITO"]
[null,null,null,null,null,null,null,null,null,null,null,null,null,null,null,"47","MAGDALENA","161","CERRO SAN ANTONIO"]
[null,null,null,null,null,null,null,null,null,null,null,null,null,null,null,"27","CHOCO","160","CERTEGUI"]
[null,null,null,null,null,null,null,null,null,null,null,null,null,null,null,"52","NARIÑO","240","CHACHAGsI"]
[null,null,null,null,null,null,null,null,null,null,null,null,null,null,null,"25","CUNDINAMARCA","168","CHAGUANI"]
[null,null,null,null,null,null,null,null,null,null,null,null,null,null,null,"70","SUCRE","230","CHALAN"]
[null,null,null,null,null,null,null,null,null,null,null,null,null,null,null,"85","CASANARE","015","CHAMEZA"]
[null,null,null,null,null,null,null,null,null,null,null,null,null,null,null,"73","TOLIMA","168","CHAPARRAL"]
[null,null,null,null,null,null,null,null,null,null,null,null,null,null,null,"68","SANTANDER","167","CHARALA"]
[null,null,null,null,null,null,null,null,null,null,null,null,null,null,null,"68","SANTANDER","169","CHARTA"]
[null,null,null,null,null,null,null,null,null,null,null,null,null,null,null,"25","CUNDINAMARCA","175","CHIA"]
[null,null,null,null,null,null,null,null,null,null,null,null,null,null,null,"47","MAGDALENA","170","CHIBOLO"]
[null,null,null,null,null,null,null,null,null,null,null,null,null,null,null,"05","ANTIOQUIA","172","CHIGORODO"]
[null,null,null,null,null,null,null,null,null,null,null,null,null,null,null,"23","CORDOBA","168","CHIMA"]
[null,null,null,null,null,null,null,null,null,null,null,null,null,null,null,"68","SANTANDER","176","CHIMA"]
[null,null,null,null,null,null,null,null,null,null,null,null,null,null,null,"20","CESAR","175","CHIMICHAGUA"]
[null,null,null,null,null,null,null,null,null,null,null,null,null,null,null,"54","N. DE SANTANDER","172","CHINACOTA"]
[null,null,null,null,null,null,null,null,null,null,null,null,null,null,null,"15","BOYACA","172","CHINAVITA"]
[null,null,null,null,null,null,null,null,null,null,null,null,null,null,null,"17","CALDAS","174","CHINCHINA"]
[null,null,null,null,null,null,null,null,null,null,null,null,null,null,null,"23","CORDOBA","182","CHINU"]
[null,null,null,null,null,null,null,null,null,null,null,null,null,null,null,"25","CUNDINAMARCA","178","CHIPAQUE"]
[null,null,null,null,null,null,null,null,null,null,null,null,null,null,null,"68","SANTANDER","179","CHIPATA"]
[null,null,null,null,null,null,null,null,null,null,null,null,null,null,null,"15","BOYACA","176","CHIQUINQUIRA"]
[null,null,null,null,null,null,null,null,null,null,null,null,null,null,null,"15","BOYACA","232","CHIQUIZA"]
[null,null,null,null,null,null,null,null,null,null,null,null,null,null,null,"20","CESAR","178","CHIRIGUANA"]
[null,null,null,null,null,null,null,null,null,null,null,null,null,null,null,"15","BOYACA","180","CHISCAS"]
[null,null,null,null,null,null,null,null,null,null,null,null,null,null,null,"15","BOYACA","183","CHITA"]
[null,null,null,null,null,null,null,null,null,null,null,null,null,null,null,"54","N. DE SANTANDER","174","CHITAGA"]
[null,null,null,null,null,null,null,null,null,null,null,null,null,null,null,"15","BOYACA","185","CHITARAQUE"]
[null,null,null,null,null,null,null,null,null,null,null,null,null,null,null,"15","BOYACA","187","CHIVATA"]
[null,null,null,null,null,null,null,null,null,null,null,null,null,null,null,"15","BOYACA","236","CHIVOR"]
[null,null,null,null,null,null,null,null,null,null,null,null,null,null,null,"25","CUNDINAMARCA","181","CHOACHI"]
[null,null,null,null,null,null,null,null,null,null,null,null,null,null,null,"25","CUNDINAMARCA","183","CHOCONTA"]
[null,null,null,null,null,null,null,null,null,null,null,null,null,null,null,"13","BOLIVAR","188","CICUCO"]
[null,null,null,null,null,null,null,null,null,null,null,null,null,null,null,"47","MAGDALENA","189","CIENAGA"]
[null,null,null,null,null,null,null,null,null,null,null,null,null,null,null,"23","CORDOBA","189","CIENAGA DE ORO"]
[null,null,null,null,null,null,null,null,null,null,null,null,null,null,null,"15","BOYACA","189","CIENEGA"]
[null,null,null,null,null,null,null,null,null,null,null,null,null,null,null,"68","SANTANDER","190","CIMITARRA"]
[null,null,null,null,null,null,null,null,null,null,null,null,null,null,null,"63","QUINDIO","190","CIRCASIA"]
[null,null,null,null,null,null,null,null,null,null,null,null,null,null,null,"05","ANTIOQUIA","190","CISNEROS"]
[null,null,null,null,null,null,null,null,null,null,null,null,null,null,null,"05","ANTIOQUIA","101","CIUDAD BOLIVAR"]
[null,null,null,null,null,null,null,null,null,null,null,null,null,null,null,"13","BOLIVAR","222","CLEMENCIA"]
[null,null,null,null,null,null,null,null,null,null,null,null,null,null,null,"05","ANTIOQUIA","197","COCORNA"]
[null,null,null,null,null,null,null,null,null,null,null,null,null,null,null,"73","TOLIMA","200","COELLO"]
[null,null,null,null,null,null,null,null,null,null,null,null,null,null,null,"25","CUNDINAMARCA","200","COGUA"]
[null,null,null,null,null,null,null,null,null,null,null,null,null,null,null,"41","HUILA","206","COLOMBIA"]
[null,null,null,null,null,null,null,null,null,null,null,null,null,null,null,"52","NARIÑO","203","COLON"]
[null,null,null,null,null,null,null,null,null,null,null,null,null,null,null,"86","PUTUMAYO","219","COLON"]
[null,null,null,null,null,null,null,null,null,null,null,null,null,null,null,"70","SUCRE","204","COLOSO"]
[null,null,null,null,null,null,null,null,null,null,null,null,null,null,null,"15","BOYACA","204","COMBITA"]
[null,null,null,null,null,null,null,null,null,null,null,null,null,null,null,"05","ANTIOQUIA","206","CONCEPCION"]
[null,null,null,null,null,null,null,null,null,null,null,null,null,null,null,"68","SANTANDER","207","CONCEPCION"]
[null,null,null,null,null,null,null,null,null,null,null,null,null,null,null,"05","ANTIOQUIA","209","CONCORDIA"]
[null,null,null,null,null,null,null,null,null,null,null,null,null,null,null,"47","MAGDALENA","205","CONCORDIA"]
[null,null,null,null,null,null,null,null,null,null,null,null,null,null,null,"27","CHOCO","205","CONDOTO"]
[null,null,null,null,null,null,null,null,null,null,null,null,null,null,null,"68","SANTANDER","209","CONFINES"]
[null,null,null,null,null,null,null,null,null,null,null,null,null,null,null,"52","NARIÑO","207","CONSACA"]
[null,null,null,null,null,null,null,null,null,null,null,null,null,null,null,"52","NARIÑO","210","CONTADERO"]
[null,null,null,null,null,null,null,null,null,null,null,null,null,null,null,"68","SANTANDER","211","CONTRATACION"]
[null,null,null,null,null,null,null,null,null,null,null,null,null,null,null,"54","N. DE SANTANDER","206","CONVENCION"]
[null,null,null,null,null,null,null,null,null,null,null,null,null,null,null,"05","ANTIOQUIA","212","COPACABANA"]
[null,null,null,null,null,null,null,null,null,null,null,null,null,null,null,"15","BOYACA","212","COPER"]
[null,null,null,null,null,null,null,null,null,null,null,null,null,null,null,"13","BOLIVAR","212","CORDOBA"]
[null,null,null,null,null,null,null,null,null,null,null,null,null,null,null,"52","NARIÑO","215","CORDOBA"]
[null,null,null,null,null,null,null,null,null,null,null,null,null,null,null,"63","QUINDIO","212","CORDOBA"]
[null,null,null,null,null,null,null,null,null,null,null,null,null,null,null,"19","CAUCA","212","CORINTO"]
[null,null,null,null,null,null,null,null,null,null,null,null,null,null,null,"68","SANTANDER","217","COROMORO"]
[null,null,null,null,null,null,null,null,null,null,null,null,null,null,null,"70","SUCRE","215","COROZAL"]
[null,null,null,null,null,null,null,null,null,null,null,null,null,null,null,"15","BOYACA","215","CORRALES"]
[null,null,null,null,null,null,null,null,null,null,null,null,null,null,null,"25","CUNDINAMARCA","214","COTA"]
[null,null,null,null,null,null,null,null,null,null,null,null,null,null,null,"23","CORDOBA","300","COTORRA"]
[null,null,null,null,null,null,null,null,null,null,null,null,null,null,null,"15","BOYACA","218","COVARACHIA"]
[null,null,null,null,null,null,null,null,null,null,null,null,null,null,null,"70","SUCRE","221","COVEÑAS"]
[null,null,null,null,null,null,null,null,null,null,null,null,null,null,null,"73","TOLIMA","217","COYAIMA"]
[null,null,null,null,null,null,null,null,null,null,null,null,null,null,null,"81","ARAUCA","220","CRAVO NORTE"]
[null,null,null,null,null,null,null,null,null,null,null,null,null,null,null,"52","NARIÑO","224","CUASPUD"]
[null,null,null,null,null,null,null,null,null,null,null,null,null,null,null,"15","BOYACA","223","CUBARA"]
[null,null,null,null,null,null,null,null,null,null,null,null,null,null,null,"50","META","223","CUBARRAL"]
[null,null,null,null,null,null,null,null,null,null,null,null,null,null,null,"15","BOYACA","224","CUCAITA"]
[null,null,null,null,null,null,null,null,null,null,null,null,null,null,null,"25","CUNDINAMARCA","224","CUCUNUBA"]
[null,null,null,null,null,null,null,null,null,null,null,null,null,null,null,"54","N. DE SANTANDER","001","CUCUTA"]
[null,null,null,null,null,null,null,null,null,null,null,null,null,null,null,"54","N. DE SANTANDER","223","CUCUTILLA"]
[null,null,null,null,null,null,null,null,null,null,null,null,null,null,null,"15","BOYACA","226","CUITIVA"]
[null,null,null,null,null,null,null,null,null,null,null,null,null,null,null,"50","META","226","CUMARAL"]
[null,null,null,null,null,null,null,null,null,null,null,null,null,null,null,"99","VICHADA","773","CUMARIBO"]
[null,null,null,null,null,null,null,null,null,null,null,null,null,null,null,"52","NARIÑO","227","CUMBAL"]
[null,null,null,null,null,null,null,null,null,null,null,null,null,null,null,"52","NARIÑO","233","CUMBITARA"]
[null,null,null,null,null,null,null,null,null,null,null,null,null,null,null,"73","TOLIMA","226","CUNDAY"]
[null,null,null,null,null,null,null,null,null,null,null,null,null,null,null,"18","CAQUETA","205","CURILLO"]
[null,null,null,null,null,null,null,null,null,null,null,null,null,null,null,"68","SANTANDER","229","CURITI"]
[null,null,null,null,null,null,null,null,null,null,null,null,null,null,null,"20","CESAR","228","CURUMANI"]
[null,null,null,null,null,null,null,null,null,null,null,null,null,null,null,"05","ANTIOQUIA","234","DABEIBA"]
[null,null,null,null,null,null,null,null,null,null,null,null,null,null,null,"76","VALLE DEL CAUCA","233","DAGUA"]
[null,null,null,null,null,null,null,null,null,null,null,null,null,null,null,"44","LA GUAJIRA","090","DIBULLA"]
[null,null,null,null,null,null,null,null,null,null,null,null,null,null,null,"44","LA GUAJIRA","098","DISTRACCION"]
[null,null,null,null,null,null,null,null,null,null,null,null,null,null,null,"73","TOLIMA","236","DOLORES"]
[null,null,null,null,null,null,null,null,null,null,null,null,null,null,null,"05","ANTIOQUIA","237","DON MATIAS"]
[null,null,null,null,null,null,null,null,null,null,null,null,null,null,null,"66","RISARALDA","170","DOSQUEBRADAS"]
[null,null,null,null,null,null,null,null,null,null,null,null,null,null,null,"15","BOYACA","238","DUITAMA"]
[null,null,null,null,null,null,null,null,null,null,null,null,null,null,null,"54","N. DE SANTANDER","239","DURANIA"]
[null,null,null,null,null,null,null,null,null,null,null,null,null,null,null,"05","ANTIOQUIA","240","EBEJICO"]
[null,null,null,null,null,null,null,null,null,null,null,null,null,null,null,"76","VALLE DEL CAUCA","243","EL AGUILA"]
[null,null,null,null,null,null,null,null,null,null,null,null,null,null,null,"05","ANTIOQUIA","250","EL BAGRE"]
[null,null,null,null,null,null,null,null,null,null,null,null,null,null,null,"47","MAGDALENA","245","EL BANCO"]
[null,null,null,null,null,null,null,null,null,null,null,null,null,null,null,"76","VALLE DEL CAUCA","246","EL CAIRO"]
[null,null,null,null,null,null,null,null,null,null,null,null,null,null,null,"50","META","245","EL CALVARIO"]
[null,null,null,null,null,null,null,null,null,null,null,null,null,null,null,"27","CHOCO","135","EL CANTON DEL SAN PABLO"]
[null,null,null,null,null,null,null,null,null,null,null,null,null,null,null,"54","N. DE SANTANDER","245","EL CARMEN"]
[null,null,null,null,null,null,null,null,null,null,null,null,null,null,null,"27","CHOCO","245","EL CARMEN DE ATRATO"]
[null,null,null,null,null,null,null,null,null,null,null,null,null,null,null,"13","BOLIVAR","244","EL CARMEN DE BOLIVAR"]
[null,null,null,null,null,null,null,null,null,null,null,null,null,null,null,"68","SANTANDER","235","EL CARMEN DE CHUCURI"]
[null,null,null,null,null,null,null,null,null,null,null,null,null,null,null,"05","ANTIOQUIA","148","EL CARMEN DE VIBORAL"]
[null,null,null,null,null,null,null,null,null,null,null,null,null,null,null,"50","META","251","EL CASTILLO"]
[null,null,null,null,null,null,null,null,null,null,null,null,null,null,null,"76","VALLE DEL CAUCA","248","EL CERRITO"]
[null,null,null,null,null,null,null,null,null,null,null,null,null,null,null,"52","NARIÑO","250","EL CHARCO"]
[null,null,null,null,null,null,null,null,null,null,null,null,null,null,null,"15","BOYACA","244","EL COCUY"]
[null,null,null,null,null,null,null,null,null,null,null,null,null,null,null,"25","CUNDINAMARCA","245","EL COLEGIO"]
[null,null,null,null,null,null,null,null,null,null,null,null,null,null,null,"20","CESAR","238","EL COPEY"]
[null,null,null,null,null,null,null,null,null,null,null,null,null,null,null,"18","CAQUETA","247","EL DONCELLO"]
[null,null,null,null,null,null,null,null,null,null,null,null,null,null,null,"50","META","270","EL DORADO"]
[null,null,null,null,null,null,null,null,null,null,null,null,null,null,null,"76","VALLE DEL CAUCA","250","EL DOVIO"]
[null,null,null,null,null,null,null,null,null,null,null,null,null,null,null,"91","AMAZONAS","263","EL ENCANTO"]
[null,null,null,null,null,null,null,null,null,null,null,null,null,null,null,"15","BOYACA","248","EL ESPINO"]
[null,null,null,null,null,null,null,null,null,null,null,null,null,null,null,"68","SANTANDER","245","EL GUACAMAYO"]
[null,null,null,null,null,null,null,null,null,null,null,null,null,null,null,"13","BOLIVAR","248","EL GUAMO"]
[null,null,null,null,null,null,null,null,null,null,null,null,null,null,null,"27","CHOCO","250","EL LITORAL DEL SAN JUAN"]
[null,null,null,null,null,null,null,null,null,null,null,null,null,null,null,"44","LA GUAJIRA","110","EL MOLINO"]
[null,null,null,null,null,null,null,null,null,null,null,null,null,null,null,"20","CESAR","250","EL PASO"]
[null,null,null,null,null,null,null,null,null,null,null,null,null,null,null,"18","CAQUETA","256","EL PAUJIL"]
[null,null,null,null,null,null,null,null,null,null,null,null,null,null,null,"52","NARIÑO","254","EL PEÑOL"]
[null,null,null,null,null,null,null,null,null,null,null,null,null,null,null,"13","BOLIVAR","268","EL PEÑON"]
[null,null,null,null,null,null,null,null,null,null,null,null,null,null,null,"25","CUNDINAMARCA","258","EL PEÑON"]
[null,null,null,null,null,null,null,null,null,null,null,null,null,null,null,"68","SANTANDER","250","EL PEÑON"]
[null,null,null,null,null,null,null,null,null,null,null,null,null,null,null,"47","MAGDALENA","258","EL PIÑON"]
[null,null,null,null,null,null,null,null,null,null,null,null,null,null,null,"68","SANTANDER","255","EL PLAYON"]
[null,null,null,null,null,null,null,null,null,null,null,null,null,null,null,"47","MAGDALENA","268","EL RETEN"]
[null,null,null,null,null,null,null,null,null,null,null,null,null,null,null,"95","GUAVIARE","025","EL RETORNO"]
[null,null,null,null,null,null,null,null,null,null,null,null,null,null,null,"70","SUCRE","233","EL ROBLE"]
[null,null,null,null,null,null,null,null,null,null,null,null,null,null,null,"25","CUNDINAMARCA","260","EL ROSAL"]
[null,null,null,null,null,null,null,null,null,null,null,null,null,null,null,"52","NARIÑO","256","EL ROSARIO"]
[null,null,null,null,null,null,null,null,null,null,null,null,null,null,null,"05","ANTIOQUIA","697","EL SANTUARIO"]
[null,null,null,null,null,null,null,null,null,null,null,null,null,null,null,"52","NARIÑO","258","EL TABLON DE GOMEZ"]
[null,null,null,null,null,null,null,null,null,null,null,null,null,null,null,"19","CAUCA","256","EL TAMBO"]
[null,null,null,null,null,null,null,null,null,null,null,null,null,null,null,"52","NARIÑO","260","EL TAMBO"]
[null,null,null,null,null,null,null,null,null,null,null,null,null,null,null,"54","N. DE SANTANDER","250","EL TARRA"]
[null,null,null,null,null,null,null,null,null,null,null,null,null,null,null,"54","N. DE SANTANDER","261","EL ZULIA"]
[null,null,null,null,null,null,null,null,null,null,null,null,null,null,null,"41","HUILA","244","ELIAS"]
[null,null,null,null,null,null,null,null,null,null,null,null,null,null,null,"68","SANTANDER","264","ENCINO"]
[null,null,null,null,null,null,null,null,null,null,null,null,null,null,null,"68","SANTANDER","266","ENCISO"]
[null,null,null,null,null,null,null,null,null,null,null,null,null,null,null,"05","ANTIOQUIA","264","ENTRERRIOS"]
[null,null,null,null,null,null,null,null,null,null,null,null,null,null,null,"05","ANTIOQUIA","266","ENVIGADO"]
[null,null,null,null,null,null,null,null,null,null,null,null,null,null,null,"73","TOLIMA","268","ESPINAL"]
[null,null,null,null,null,null,null,null,null,null,null,null,null,null,null,"25","CUNDINAMARCA","269","FACATATIVA"]
[null,null,null,null,null,null,null,null,null,null,null,null,null,null,null,"73","TOLIMA","270","FALAN"]
[null,null,null,null,null,null,null,null,null,null,null,null,null,null,null,"17","CALDAS","272","FILADELFIA"]
[null,null,null,null,null,null,null,null,null,null,null,null,null,null,null,"63","QUINDIO","272","FILANDIA"]
[null,null,null,null,null,null,null,null,null,null,null,null,null,null,null,"15","BOYACA","272","FIRAVITOBA"]
[null,null,null,null,null,null,null,null,null,null,null,null,null,null,null,"73","TOLIMA","275","FLANDES"]
[null,null,null,null,null,null,null,null,null,null,null,null,null,null,null,"18","CAQUETA","001","FLORENCIA"]
[null,null,null,null,null,null,null,null,null,null,null,null,null,null,null,"19","CAUCA","290","FLORENCIA"]
[null,null,null,null,null,null,null,null,null,null,null,null,null,null,null,"15","BOYACA","276","FLORESTA"]
[null,null,null,null,null,null,null,null,null,null,null,null,null,null,null,"68","SANTANDER","271","FLORIAN"]
[null,null,null,null,null,null,null,null,null,null,null,null,null,null,null,"76","VALLE DEL CAUCA","275","FLORIDA"]
[null,null,null,null,null,null,null,null,null,null,null,null,null,null,null,"68","SANTANDER","276","FLORIDABLANCA"]
[null,null,null,null,null,null,null,null,null,null,null,null,null,null,null,"25","CUNDINAMARCA","279","FOMEQUE"]
[null,null,null,null,null,null,null,null,null,null,null,null,null,null,null,"44","LA GUAJIRA","279","FONSECA"]
[null,null,null,null,null,null,null,null,null,null,null,null,null,null,null,"81","ARAUCA","300","FORTUL"]
[null,null,null,null,null,null,null,null,null,null,null,null,null,null,null,"25","CUNDINAMARCA","281","FOSCA"]
[null,null,null,null,null,null,null,null,null,null,null,null,null,null,null,"52","NARIÑO","520","FRANCISCO PIZARRO"]
[null,null,null,null,null,null,null,null,null,null,null,null,null,null,null,"05","ANTIOQUIA","282","FREDONIA"]
[null,null,null,null,null,null,null,null,null,null,null,null,null,null,null,"73","TOLIMA","283","FRESNO"]
[null,null,null,null,null,null,null,null,null,null,null,null,null,null,null,"05","ANTIOQUIA","284","FRONTINO"]
[null,null,null,null,null,null,null,null,null,null,null,null,null,null,null,"50","META","287","FUENTE DE ORO"]
[null,null,null,null,null,null,null,null,null,null,null,null,null,null,null,"47","MAGDALENA","288","FUNDACION"]
[null,null,null,null,null,null,null,null,null,null,null,null,null,null,null,"52","NARIÑO","287","FUNES"]
[null,null,null,null,null,null,null,null,null,null,null,null,null,null,null,"25","CUNDINAMARCA","286","FUNZA"]
[null,null,null,null,null,null,null,null,null,null,null,null,null,null,null,"25","CUNDINAMARCA","288","FUQUENE"]
[null,null,null,null,null,null,null,null,null,null,null,null,null,null,null,"25","CUNDINAMARCA","290","FUSAGASUGA"]
[null,null,null,null,null,null,null,null,null,null,null,null,null,null,null,"25","CUNDINAMARCA","293","GACHALA"]
[null,null,null,null,null,null,null,null,null,null,null,null,null,null,null,"25","CUNDINAMARCA","295","GACHANCIPA"]
[null,null,null,null,null,null,null,null,null,null,null,null,null,null,null,"15","BOYACA","293","GACHANTIVA"]
[null,null,null,null,null,null,null,null,null,null,null,null,null,null,null,"25","CUNDINAMARCA","297","GACHETA"]
[null,null,null,null,null,null,null,null,null,null,null,null,null,null,null,"68","SANTANDER","296","GALAN"]
[null,null,null,null,null,null,null,null,null,null,null,null,null,null,null,"08","ATLANTICO","296","GALAPA"]
[null,null,null,null,null,null,null,null,null,null,null,null,null,null,null,"70","SUCRE","235","GALERAS"]
[null,null,null,null,null,null,null,null,null,null,null,null,null,null,null,"25","CUNDINAMARCA","299","GAMA"]
[null,null,null,null,null,null,null,null,null,null,null,null,null,null,null,"20","CESAR","295","GAMARRA"]
[null,null,null,null,null,null,null,null,null,null,null,null,null,null,null,"68","SANTANDER","298","GAMBITA"]
[null,null,null,null,null,null,null,null,null,null,null,null,null,null,null,"15","BOYACA","296","GAMEZA"]
[null,null,null,null,null,null,null,null,null,null,null,null,null,null,null,"15","BOYACA","299","GARAGOA"]
[null,null,null,null,null,null,null,null,null,null,null,null,null,null,null,"41","HUILA","298","GARZON"]
[null,null,null,null,null,null,null,null,null,null,null,null,null,null,null,"63","QUINDIO","302","GENOVA"]
[null,null,null,null,null,null,null,null,null,null,null,null,null,null,null,"41","HUILA","306","GIGANTE"]
[null,null,null,null,null,null,null,null,null,null,null,null,null,null,null,"76","VALLE DEL CAUCA","306","GINEBRA"]
[null,null,null,null,null,null,null,null,null,null,null,null,null,null,null,"05","ANTIOQUIA","306","GIRALDO"]
[null,null,null,null,null,null,null,null,null,null,null,null,null,null,null,"25","CUNDINAMARCA","307","GIRARDOT"]
[null,null,null,null,null,null,null,null,null,null,null,null,null,null,null,"05","ANTIOQUIA","308","GIRARDOTA"]
[null,null,null,null,null,null,null,null,null,null,null,null,null,null,null,"68","SANTANDER","307","GIRON"]
[null,null,null,null,null,null,null,null,null,null,null,null,null,null,null,"05","ANTIOQUIA","310","GOMEZ PLATA"]
[null,null,null,null,null,null,null,null,null,null,null,null,null,null,null,"20","CESAR","310","GONZALEZ"]
[null,null,null,null,null,null,null,null,null,null,null,null,null,null,null,"54","N. DE SANTANDER","313","GRAMALOTE"]
[null,null,null,null,null,null,null,null,null,null,null,null,null,null,null,"05","ANTIOQUIA","313","GRANADA"]
[null,null,null,null,null,null,null,null,null,null,null,null,null,null,null,"25","CUNDINAMARCA","312","GRANADA"]
[null,null,null,null,null,null,null,null,null,null,null,null,null,null,null,"50","META","313","GRANADA"]
[null,null,null,null,null,null,null,null,null,null,null,null,null,null,null,"68","SANTANDER","327","GsEPSA"]
[null,null,null,null,null,null,null,null,null,null,null,null,null,null,null,"15","BOYACA","332","GsICAN"]
[null,null,null,null,null,null,null,null,null,null,null,null,null,null,null,"68","SANTANDER","318","GUACA"]
[null,null,null,null,null,null,null,null,null,null,null,null,null,null,null,"15","BOYACA","317","GUACAMAYAS"]
[null,null,null,null,null,null,null,null,null,null,null,null,null,null,null,"76","VALLE DEL CAUCA","318","GUACARI"]
[null,null,null,null,null,null,null,null,null,null,null,null,null,null,null,"19","CAUCA",300,"GUACHENE"]
[null,null,null,null,null,null,null,null,null,null,null,null,null,null,null,"25","CUNDINAMARCA","317","GUACHETA"]
[null,null,null,null,null,null,null,null,null,null,null,null,null,null,null,"52","NARIÑO","317","GUACHUCAL"]
[null,null,null,null,null,null,null,null,null,null,null,null,null,null,null,"05","ANTIOQUIA","315","GUADALUPE"]
[null,null,null,null,null,null,null,null,null,null,null,null,null,null,null,"41","HUILA","319","GUADALUPE"]
[null,null,null,null,null,null,null,null,null,null,null,null,null,null,null,"68","SANTANDER","320","GUADALUPE"]
[null,null,null,null,null,null,null,null,null,null,null,null,null,null,null,"25","CUNDINAMARCA","320","GUADUAS"]
[null,null,null,null,null,null,null,null,null,null,null,null,null,null,null,"52","NARIÑO","320","GUAITARILLA"]
[null,null,null,null,null,null,null,null,null,null,null,null,null,null,null,"52","NARIÑO","323","GUALMATAN"]
[null,null,null,null,null,null,null,null,null,null,null,null,null,null,null,"47","MAGDALENA","318","GUAMAL"]
[null,null,null,null,null,null,null,null,null,null,null,null,null,null,null,"50","META","318","GUAMAL"]
[null,null,null,null,null,null,null,null,null,null,null,null,null,null,null,"73","TOLIMA","319","GUAMO"]
[null,null,null,null,null,null,null,null,null,null,null,null,null,null,null,"19","CAUCA","318","GUAPI"]
[null,null,null,null,null,null,null,null,null,null,null,null,null,null,null,"68","SANTANDER","322","GUAPOTA"]
[null,null,null,null,null,null,null,null,null,null,null,null,null,null,null,"70","SUCRE","265","GUARANDA"]
[null,null,null,null,null,null,null,null,null,null,null,null,null,null,null,"05","ANTIOQUIA","318","GUARNE"]
[null,null,null,null,null,null,null,null,null,null,null,null,null,null,null,"25","CUNDINAMARCA","322","GUASCA"]
[null,null,null,null,null,null,null,null,null,null,null,null,null,null,null,"05","ANTIOQUIA","321","GUATAPE"]
[null,null,null,null,null,null,null,null,null,null,null,null,null,null,null,"25","CUNDINAMARCA","324","GUATAQUI"]
[null,null,null,null,null,null,null,null,null,null,null,null,null,null,null,"25","CUNDINAMARCA","326","GUATAVITA"]
[null,null,null,null,null,null,null,null,null,null,null,null,null,null,null,"15","BOYACA","322","GUATEQUE"]
[null,null,null,null,null,null,null,null,null,null,null,null,null,null,null,"66","RISARALDA","318","GUATICA"]
[null,null,null,null,null,null,null,null,null,null,null,null,null,null,null,"68","SANTANDER","324","GUAVATA"]
[null,null,null,null,null,null,null,null,null,null,null,null,null,null,null,"25","CUNDINAMARCA","328","GUAYABAL DE SIQUIMA"]
[null,null,null,null,null,null,null,null,null,null,null,null,null,null,null,"25","CUNDINAMARCA","335","GUAYABETAL"]
[null,null,null,null,null,null,null,null,null,null,null,null,null,null,null,"15","BOYACA","325","GUAYATA"]
[null,null,null,null,null,null,null,null,null,null,null,null,null,null,null,"25","CUNDINAMARCA","339","GUTIERREZ"]
[null,null,null,null,null,null,null,null,null,null,null,null,null,null,null,"54","N. DE SANTANDER","344","HACARI"]
[null,null,null,null,null,null,null,null,null,null,null,null,null,null,null,"13","BOLIVAR","300","HATILLO DE LOBA"]
[null,null,null,null,null,null,null,null,null,null,null,null,null,null,null,"68","SANTANDER","344","HATO"]
[null,null,null,null,null,null,null,null,null,null,null,null,null,null,null,"85","CASANARE","125","HATO COROZAL"]
[null,null,null,null,null,null,null,null,null,null,null,null,null,null,null,"44","LA GUAJIRA","378","HATONUEVO"]
[null,null,null,null,null,null,null,null,null,null,null,null,null,null,null,"05","ANTIOQUIA","347","HELICONIA"]
[null,null,null,null,null,null,null,null,null,null,null,null,null,null,null,"54","N. DE SANTANDER","347","HERRAN"]
[null,null,null,null,null,null,null,null,null,null,null,null,null,null,null,"73","TOLIMA","347","HERVEO"]
[null,null,null,null,null,null,null,null,null,null,null,null,null,null,null,"05","ANTIOQUIA","353","HISPANIA"]
[null,null,null,null,null,null,null,null,null,null,null,null,null,null,null,"41","HUILA","349","HOBO"]
[null,null,null,null,null,null,null,null,null,null,null,null,null,null,null,"73","TOLIMA","349","HONDA"]
[null,null,null,null,null,null,null,null,null,null,null,null,null,null,null,"73","TOLIMA","001","IBAGUE"]
[null,null,null,null,null,null,null,null,null,null,null,null,null,null,null,"73","TOLIMA","352","ICONONZO"]
[null,null,null,null,null,null,null,null,null,null,null,null,null,null,null,"52","NARIÑO","352","ILES"]
[null,null,null,null,null,null,null,null,null,null,null,null,null,null,null,"52","NARIÑO","354","IMUES"]
[null,null,null,null,null,null,null,null,null,null,null,null,null,null,null,"94","GUAINIA","001","INIRIDA"]
[null,null,null,null,null,null,null,null,null,null,null,null,null,null,null,"19","CAUCA","355","INZA"]
[null,null,null,null,null,null,null,null,null,null,null,null,null,null,null,"52","NARIÑO","356","IPIALES"]
[null,null,null,null,null,null,null,null,null,null,null,null,null,null,null,"41","HUILA","357","IQUIRA"]
[null,null,null,null,null,null,null,null,null,null,null,null,null,null,null,"41","HUILA","359","ISNOS"]
[null,null,null,null,null,null,null,null,null,null,null,null,null,null,null,"27","CHOCO","361","ISTMINA"]
[null,null,null,null,null,null,null,null,null,null,null,null,null,null,null,"05","ANTIOQUIA","360","ITAGUI"]
[null,null,null,null,null,null,null,null,null,null,null,null,null,null,null,"05","ANTIOQUIA","361","ITUANGO"]
[null,null,null,null,null,null,null,null,null,null,null,null,null,null,null,"15","BOYACA","362","IZA"]
[null,null,null,null,null,null,null,null,null,null,null,null,null,null,null,"19","CAUCA","364","JAMBALO"]
[null,null,null,null,null,null,null,null,null,null,null,null,null,null,null,"76","VALLE DEL CAUCA","364","JAMUNDI"]
[null,null,null,null,null,null,null,null,null,null,null,null,null,null,null,"05","ANTIOQUIA","364","JARDIN"]
[null,null,null,null,null,null,null,null,null,null,null,null,null,null,null,"15","BOYACA","367","JENESANO"]
[null,null,null,null,null,null,null,null,null,null,null,null,null,null,null,"05","ANTIOQUIA","368","JERICO"]
[null,null,null,null,null,null,null,null,null,null,null,null,null,null,null,"15","BOYACA","368","JERICO"]
[null,null,null,null,null,null,null,null,null,null,null,null,null,null,null,"25","CUNDINAMARCA","368","JERUSALEN"]
[null,null,null,null,null,null,null,null,null,null,null,null,null,null,null,"68","SANTANDER","368","JESUS MARIA"]
[null,null,null,null,null,null,null,null,null,null,null,null,null,null,null,"68","SANTANDER","370","JORDAN"]
[null,null,null,null,null,null,null,null,null,null,null,null,null,null,null,"08","ATLANTICO","372","JUAN DE ACOSTA"]
[null,null,null,null,null,null,null,null,null,null,null,null,null,null,null,"25","CUNDINAMARCA","372","JUNIN"]
[null,null,null,null,null,null,null,null,null,null,null,null,null,null,null,"27","CHOCO","372","JURADO"]
[null,null,null,null,null,null,null,null,null,null,null,null,null,null,null,"23","CORDOBA","350","LA APARTADA"]
[null,null,null,null,null,null,null,null,null,null,null,null,null,null,null,"41","HUILA","378","LA ARGENTINA"]
[null,null,null,null,null,null,null,null,null,null,null,null,null,null,null,"68","SANTANDER","377","LA BELLEZA"]
[null,null,null,null,null,null,null,null,null,null,null,null,null,null,null,"25","CUNDINAMARCA","377","LA CALERA"]
[null,null,null,null,null,null,null,null,null,null,null,null,null,null,null,"15","BOYACA","380","LA CAPILLA"]
[null,null,null,null,null,null,null,null,null,null,null,null,null,null,null,"05","ANTIOQUIA","376","LA CEJA"]
[null,null,null,null,null,null,null,null,null,null,null,null,null,null,null,"66","RISARALDA","383","LA CELIA"]
[null,null,null,null,null,null,null,null,null,null,null,null,null,null,null,"91","AMAZONAS","405","LA CHORRERA"]
[null,null,null,null,null,null,null,null,null,null,null,null,null,null,null,"52","NARIÑO","378","LA CRUZ"]
[null,null,null,null,null,null,null,null,null,null,null,null,null,null,null,"76","VALLE DEL CAUCA","377","LA CUMBRE"]
[null,null,null,null,null,null,null,null,null,null,null,null,null,null,null,"17","CALDAS","380","LA DORADA"]
[null,null,null,null,null,null,null,null,null,null,null,null,null,null,null,"54","N. DE SANTANDER","385","LA ESPERANZA"]
[null,null,null,null,null,null,null,null,null,null,null,null,null,null,null,"05","ANTIOQUIA","380","LA ESTRELLA"]
[null,null,null,null,null,null,null,null,null,null,null,null,null,null,null,"52","NARIÑO","381","LA FLORIDA"]
[null,null,null,null,null,null,null,null,null,null,null,null,null,null,null,"20","CESAR","383","LA GLORIA"]
[null,null,null,null,null,null,null,null,null,null,null,null,null,null,null,"94","GUAINIA","885","LA GUADALUPE"]
[null,null,null,null,null,null,null,null,null,null,null,null,null,null,null,"20","CESAR","400","LA JAGUA DE IBIRICO"]
[null,null,null,null,null,null,null,null,null,null,null,null,null,null,null,"44","LA GUAJIRA","420","LA JAGUA DEL PILAR"]
[null,null,null,null,null,null,null,null,null,null,null,null,null,null,null,"52","NARIÑO","385","LA LLANADA"]
[null,null,null,null,null,null,null,null,null,null,null,null,null,null,null,"50","META","350","LA MACARENA"]
[null,null,null,null,null,null,null,null,null,null,null,null,null,null,null,"17","CALDAS","388","LA MERCED"]
[null,null,null,null,null,null,null,null,null,null,null,null,null,null,null,"25","CUNDINAMARCA","386","LA MESA"]
[null,null,null,null,null,null,null,null,null,null,null,null,null,null,null,"18","CAQUETA","410","LA MONTAÑITA"]
[null,null,null,null,null,null,null,null,null,null,null,null,null,null,null,"25","CUNDINAMARCA","394","LA PALMA"]
[null,null,null,null,null,null,null,null,null,null,null,null,null,null,null,"20","CESAR","621","LA PAZ"]
[null,null,null,null,null,null,null,null,null,null,null,null,null,null,null,"68","SANTANDER","397","LA PAZ"]
[null,null,null,null,null,null,null,null,null,null,null,null,null,null,null,"91","AMAZONAS","407","LA PEDRERA"]
[null,null,null,null,null,null,null,null,null,null,null,null,null,null,null,"25","CUNDINAMARCA","398","LA PEÑA"]
[null,null,null,null,null,null,null,null,null,null,null,null,null,null,null,"05","ANTIOQUIA","390","LA PINTADA"]
[null,null,null,null,null,null,null,null,null,null,null,null,null,null,null,"41","HUILA","396","LA PLATA"]
[null,null,null,null,null,null,null,null,null,null,null,null,null,null,null,"54","N. DE SANTANDER","398","LA PLAYA"]
[null,null,null,null,null,null,null,null,null,null,null,null,null,null,null,"99","VICHADA","524","LA PRIMAVERA"]
[null,null,null,null,null,null,null,null,null,null,null,null,null,null,null,"85","CASANARE","136","LA SALINA"]
[null,null,null,null,null,null,null,null,null,null,null,null,null,null,null,"19","CAUCA","392","LA SIERRA"]
[null,null,null,null,null,null,null,null,null,null,null,null,null,null,null,"63","QUINDIO","401","LA TEBAIDA"]
[null,null,null,null,null,null,null,null,null,null,null,null,null,null,null,"52","NARIÑO","390","LA TOLA"]
[null,null,null,null,null,null,null,null,null,null,null,null,null,null,null,"05","ANTIOQUIA","400","LA UNION"]
[null,null,null,null,null,null,null,null,null,null,null,null,null,null,null,"52","NARIÑO","399","LA UNION"]
[null,null,null,null,null,null,null,null,null,null,null,null,null,null,null,"70","SUCRE","400","LA UNION"]
[null,null,null,null,null,null,null,null,null,null,null,null,null,null,null,"76","VALLE DEL CAUCA","400","LA UNION"]
[null,null,null,null,null,null,null,null,null,null,null,null,null,null,null,"15","BOYACA","403","LA UVITA"]
[null,null,null,null,null,null,null,null,null,null,null,null,null,null,null,"19","CAUCA","397","LA VEGA"]
[null,null,null,null,null,null,null,null,null,null,null,null,null,null,null,"25","CUNDINAMARCA","402","LA VEGA"]
[null,null,null,null,null,null,null,null,null,null,null,null,null,null,null,"15","BOYACA","401","LA VICTORIA"]
[null,null,null,null,null,null,null,null,null,null,null,null,null,null,null,"76","VALLE DEL CAUCA","403","LA VICTORIA"]
[null,null,null,null,null,null,null,null,null,null,null,null,null,null,null,"91","AMAZONAS",430,"LA VICTORIA"]
[null,null,null,null,null,null,null,null,null,null,null,null,null,null,null,"66","RISARALDA","400","LA VIRGINIA"]
[null,null,null,null,null,null,null,null,null,null,null,null,null,null,null,"54","N. DE SANTANDER","377","LABATECA"]
[null,null,null,null,null,null,null,null,null,null,null,null,null,null,null,"15","BOYACA","377","LABRANZAGRANDE"]
[null,null,null,null,null,null,null,null,null,null,null,null,null,null,null,"68","SANTANDER","385","LANDAZURI"]
[null,null,null,null,null,null,null,null,null,null,null,null,null,null,null,"68","SANTANDER","406","LEBRIJA"]
[null,null,null,null,null,null,null,null,null,null,null,null,null,null,null,"86","PUTUMAYO","573","LEGUIZAMO"]
[null,null,null,null,null,null,null,null,null,null,null,null,null,null,null,"52","NARIÑO","405","LEIVA"]
[null,null,null,null,null,null,null,null,null,null,null,null,null,null,null,"50","META","400","LEJANIAS"]
[null,null,null,null,null,null,null,null,null,null,null,null,null,null,null,"25","CUNDINAMARCA","407","LENGUAZAQUE"]
[null,null,null,null,null,null,null,null,null,null,null,null,null,null,null,"73","TOLIMA","408","LERIDA"]
[null,null,null,null,null,null,null,null,null,null,null,null,null,null,null,"91","AMAZONAS","001","LETICIA"]
[null,null,null,null,null,null,null,null,null,null,null,null,null,null,null,"73","TOLIMA","411","LIBANO"]
[null,null,null,null,null,null,null,null,null,null,null,null,null,null,null,"05","ANTIOQUIA","411","LIBORINA"]
[null,null,null,null,null,null,null,null,null,null,null,null,null,null,null,"52","NARIÑO","411","LINARES"]
[null,null,null,null,null,null,null,null,null,null,null,null,null,null,null,"27","CHOCO","413","LLORO"]
[null,null,null,null,null,null,null,null,null,null,null,null,null,null,null,"19","CAUCA","418","LOPEZ"]
[null,null,null,null,null,null,null,null,null,null,null,null,null,null,null,"23","CORDOBA","417","LORICA"]
[null,null,null,null,null,null,null,null,null,null,null,null,null,null,null,"52","NARIÑO","418","LOS ANDES"]
[null,null,null,null,null,null,null,null,null,null,null,null,null,null,null,"23","CORDOBA","419","LOS CORDOBAS"]
[null,null,null,null,null,null,null,null,null,null,null,null,null,null,null,"70","SUCRE","418","LOS PALMITOS"]
[null,null,null,null,null,null,null,null,null,null,null,null,null,null,null,"54","N. DE SANTANDER","405","LOS PATIOS"]
[null,null,null,null,null,null,null,null,null,null,null,null,null,null,null,"68","SANTANDER","418","LOS SANTOS"]
[null,null,null,null,null,null,null,null,null,null,null,null,null,null,null,"54","N. DE SANTANDER","418","LOURDES"]
[null,null,null,null,null,null,null,null,null,null,null,null,null,null,null,"08","ATLANTICO","421","LURUACO"]
[null,null,null,null,null,null,null,null,null,null,null,null,null,null,null,"15","BOYACA","425","MACANAL"]
[null,null,null,null,null,null,null,null,null,null,null,null,null,null,null,"68","SANTANDER","425","MACARAVITA"]
[null,null,null,null,null,null,null,null,null,null,null,null,null,null,null,"05","ANTIOQUIA","425","MACEO"]
[null,null,null,null,null,null,null,null,null,null,null,null,null,null,null,"25","CUNDINAMARCA","426","MACHETA"]
[null,null,null,null,null,null,null,null,null,null,null,null,null,null,null,"25","CUNDINAMARCA","430","MADRID"]
[null,null,null,null,null,null,null,null,null,null,null,null,null,null,null,"13","BOLIVAR","430","MAGANGUE"]
[null,null,null,null,null,null,null,null,null,null,null,null,null,null,null,"52","NARIÑO","427","MAGsI"]
[null,null,null,null,null,null,null,null,null,null,null,null,null,null,null,"13","BOLIVAR","433","MAHATES"]
[null,null,null,null,null,null,null,null,null,null,null,null,null,null,null,"44","LA GUAJIRA","430","MAICAO"]
[null,null,null,null,null,null,null,null,null,null,null,null,null,null,null,"70","SUCRE","429","MAJAGUAL"]
[null,null,null,null,null,null,null,null,null,null,null,null,null,null,null,"68","SANTANDER","432","MALAGA"]
[null,null,null,null,null,null,null,null,null,null,null,null,null,null,null,"08","ATLANTICO","433","MALAMBO"]
[null,null,null,null,null,null,null,null,null,null,null,null,null,null,null,"52","NARIÑO","435","MALLAMA"]
[null,null,null,null,null,null,null,null,null,null,null,null,null,null,null,"08","ATLANTICO","436","MANATI"]
[null,null,null,null,null,null,null,null,null,null,null,null,null,null,null,"20","CESAR","443","MANAURE"]
[null,null,null,null,null,null,null,null,null,null,null,null,null,null,null,"44","LA GUAJIRA","560","MANAURE"]
[null,null,null,null,null,null,null,null,null,null,null,null,null,null,null,"85","CASANARE","139","MANI"]
[null,null,null,null,null,null,null,null,null,null,null,null,null,null,null,"17","CALDAS","001","MANIZALES"]
[null,null,null,null,null,null,null,null,null,null,null,null,null,null,null,"25","CUNDINAMARCA","436","MANTA"]
[null,null,null,null,null,null,null,null,null,null,null,null,null,null,null,"17","CALDAS","433","MANZANARES"]
[null,null,null,null,null,null,null,null,null,null,null,null,null,null,null,"50","META","325","MAPIRIPAN"]
[null,null,null,null,null,null,null,null,null,null,null,null,null,null,null,"94","GUAINIA",663,"MAPIRIPANA"]
[null,null,null,null,null,null,null,null,null,null,null,null,null,null,null,"13","BOLIVAR","440","MARGARITA"]
[null,null,null,null,null,null,null,null,null,null,null,null,null,null,null,"13","BOLIVAR","442","MARIA LA BAJA"]
[null,null,null,null,null,null,null,null,null,null,null,null,null,null,null,"05","ANTIOQUIA","440","MARINILLA"]
[null,null,null,null,null,null,null,null,null,null,null,null,null,null,null,"15","BOYACA","442","MARIPI"]
[null,null,null,null,null,null,null,null,null,null,null,null,null,null,null,"73","TOLIMA","443","MARIQUITA"]
[null,null,null,null,null,null,null,null,null,null,null,null,null,null,null,"17","CALDAS","442","MARMATO"]
[null,null,null,null,null,null,null,null,null,null,null,null,null,null,null,"17","CALDAS","444","MARQUETALIA"]
[null,null,null,null,null,null,null,null,null,null,null,null,null,null,null,"66","RISARALDA","440","MARSELLA"]
[null,null,null,null,null,null,null,null,null,null,null,null,null,null,null,"17","CALDAS","446","MARULANDA"]
[null,null,null,null,null,null,null,null,null,null,null,null,null,null,null,"68","SANTANDER","444","MATANZA"]
[null,null,null,null,null,null,null,null,null,null,null,null,null,null,null,"05","ANTIOQUIA","001","MEDELLIN"]
[null,null,null,null,null,null,null,null,null,null,null,null,null,null,null,"25","CUNDINAMARCA","438","MEDINA"]
[null,null,null,null,null,null,null,null,null,null,null,null,null,null,null,"27","CHOCO","425","MEDIO ATRATO"]
[null,null,null,null,null,null,null,null,null,null,null,null,null,null,null,"27","CHOCO","430","MEDIO BAUDO"]
[null,null,null,null,null,null,null,null,null,null,null,null,null,null,null,"27","CHOCO","450","MEDIO SAN JUAN"]
[null,null,null,null,null,null,null,null,null,null,null,null,null,null,null,"73","TOLIMA","449","MELGAR"]
[null,null,null,null,null,null,null,null,null,null,null,null,null,null,null,"19","CAUCA","450","MERCADERES"]
[null,null,null,null,null,null,null,null,null,null,null,null,null,null,null,"50","META","330","MESETAS"]
[null,null,null,null,null,null,null,null,null,null,null,null,null,null,null,"18","CAQUETA","460","MILAN"]
[null,null,null,null,null,null,null,null,null,null,null,null,null,null,null,"15","BOYACA","455","MIRAFLORES"]
[null,null,null,null,null,null,null,null,null,null,null,null,null,null,null,"95","GUAVIARE","200","MIRAFLORES"]
[null,null,null,null,null,null,null,null,null,null,null,null,null,null,null,"19","CAUCA","455","MIRANDA"]
[null,null,null,null,null,null,null,null,null,null,null,null,null,null,null,"91","AMAZONAS","460","MIRITI - PARANA"]
[null,null,null,null,null,null,null,null,null,null,null,null,null,null,null,"66","RISARALDA","456","MISTRATO"]
[null,null,null,null,null,null,null,null,null,null,null,null,null,null,null,"97","VAUPES","001","MITU"]
[null,null,null,null,null,null,null,null,null,null,null,null,null,null,null,"86","PUTUMAYO","001","MOCOA"]
[null,null,null,null,null,null,null,null,null,null,null,null,null,null,null,"68","SANTANDER","464","MOGOTES"]
[null,null,null,null,null,null,null,null,null,null,null,null,null,null,null,"68","SANTANDER","468","MOLAGAVITA"]
[null,null,null,null,null,null,null,null,null,null,null,null,null,null,null,"23","CORDOBA","464","MOMIL"]
[null,null,null,null,null,null,null,null,null,null,null,null,null,null,null,"13","BOLIVAR","468","MOMPOS"]
[null,null,null,null,null,null,null,null,null,null,null,null,null,null,null,"15","BOYACA","464","MONGUA"]
[null,null,null,null,null,null,null,null,null,null,null,null,null,null,null,"15","BOYACA","466","MONGUI"]
[null,null,null,null,null,null,null,null,null,null,null,null,null,null,null,"15","BOYACA","469","MONIQUIRA"]
[null,null,null,null,null,null,null,null,null,null,null,null,null,null,null,"05","ANTIOQUIA","467","MONTEBELLO"]
[null,null,null,null,null,null,null,null,null,null,null,null,null,null,null,"13","BOLIVAR","458","MONTECRISTO"]
[null,null,null,null,null,null,null,null,null,null,null,null,null,null,null,"23","CORDOBA","466","MONTELIBANO"]
[null,null,null,null,null,null,null,null,null,null,null,null,null,null,null,"63","QUINDIO","470","MONTENEGRO"]
[null,null,null,null,null,null,null,null,null,null,null,null,null,null,null,"23","CORDOBA","001","MONTERIA"]
[null,null,null,null,null,null,null,null,null,null,null,null,null,null,null,"85","CASANARE","162","MONTERREY"]
[null,null,null,null,null,null,null,null,null,null,null,null,null,null,null,"23","CORDOBA","500","MOÑITOS"]
[null,null,null,null,null,null,null,null,null,null,null,null,null,null,null,"13","BOLIVAR","473","MORALES"]
[null,null,null,null,null,null,null,null,null,null,null,null,null,null,null,"19","CAUCA","473","MORALES"]
[null,null,null,null,null,null,null,null,null,null,null,null,null,null,null,"18","CAQUETA","479","MORELIA"]
[null,null,null,null,null,null,null,null,null,null,null,null,null,null,null,"94","GUAINIA",888,"MORICHAL"]
[null,null,null,null,null,null,null,null,null,null,null,null,null,null,null,"70","SUCRE","473","MORROA"]
[null,null,null,null,null,null,null,null,null,null,null,null,null,null,null,"25","CUNDINAMARCA","473","MOSQUERA"]
[null,null,null,null,null,null,null,null,null,null,null,null,null,null,null,"52","NARIÑO","473","MOSQUERA"]
[null,null,null,null,null,null,null,null,null,null,null,null,null,null,null,"15","BOYACA","476","MOTAVITA"]
[null,null,null,null,null,null,null,null,null,null,null,null,null,null,null,"73","TOLIMA","461","MURILLO"]
[null,null,null,null,null,null,null,null,null,null,null,null,null,null,null,"05","ANTIOQUIA","475","MURINDO"]
[null,null,null,null,null,null,null,null,null,null,null,null,null,null,null,"05","ANTIOQUIA","480","MUTATA"]
[null,null,null,null,null,null,null,null,null,null,null,null,null,null,null,"54","N. DE SANTANDER","480","MUTISCUA"]
[null,null,null,null,null,null,null,null,null,null,null,null,null,null,null,"15","BOYACA","480","MUZO"]
[null,null,null,null,null,null,null,null,null,null,null,null,null,null,null,"05","ANTIOQUIA","483","NARIÑO"]
[null,null,null,null,null,null,null,null,null,null,null,null,null,null,null,"25","CUNDINAMARCA","483","NARIÑO"]
[null,null,null,null,null,null,null,null,null,null,null,null,null,null,null,"52","NARIÑO","480","NARIÑO"]
[null,null,null,null,null,null,null,null,null,null,null,null,null,null,null,"41","HUILA","483","NATAGA"]
[null,null,null,null,null,null,null,null,null,null,null,null,null,null,null,"73","TOLIMA","483","NATAGAIMA"]
[null,null,null,null,null,null,null,null,null,null,null,null,null,null,null,"05","ANTIOQUIA","495","NECHI"]
[null,null,null,null,null,null,null,null,null,null,null,null,null,null,null,"05","ANTIOQUIA","490","NECOCLI"]
[null,null,null,null,null,null,null,null,null,null,null,null,null,null,null,"17","CALDAS","486","NEIRA"]
[null,null,null,null,null,null,null,null,null,null,null,null,null,null,null,"41","HUILA","001","NEIVA"]
[null,null,null,null,null,null,null,null,null,null,null,null,null,null,null,"25","CUNDINAMARCA","486","NEMOCON"]
[null,null,null,null,null,null,null,null,null,null,null,null,null,null,null,"25","CUNDINAMARCA","488","NILO"]
[null,null,null,null,null,null,null,null,null,null,null,null,null,null,null,"25","CUNDINAMARCA","489","NIMAIMA"]
[null,null,null,null,null,null,null,null,null,null,null,null,null,null,null,"15","BOYACA","491","NOBSA"]
[null,null,null,null,null,null,null,null,null,null,null,null,null,null,null,"25","CUNDINAMARCA","491","NOCAIMA"]
[null,null,null,null,null,null,null,null,null,null,null,null,null,null,null,"17","CALDAS","495","NORCASIA"]
[null,null,null,null,null,null,null,null,null,null,null,null,null,null,null,"13","BOLIVAR","490","NOROSI"]
[null,null,null,null,null,null,null,null,null,null,null,null,null,null,null,"27","CHOCO","491","NOVITA"]
[null,null,null,null,null,null,null,null,null,null,null,null,null,null,null,"47","MAGDALENA","460","NUEVA GRANADA"]
[null,null,null,null,null,null,null,null,null,null,null,null,null,null,null,"15","BOYACA","494","NUEVO COLON"]
[null,null,null,null,null,null,null,null,null,null,null,null,null,null,null,"85","CASANARE","225","NUNCHIA"]
[null,null,null,null,null,null,null,null,null,null,null,null,null,null,null,"27","CHOCO","495","NUQUI"]
[null,null,null,null,null,null,null,null,null,null,null,null,null,null,null,"76","VALLE DEL CAUCA","497","OBANDO"]
[null,null,null,null,null,null,null,null,null,null,null,null,null,null,null,"68","SANTANDER","498","OCAMONTE"]
[null,null,null,null,null,null,null,null,null,null,null,null,null,null,null,"54","N. DE SANTANDER","498","OCAÑA"]
[null,null,null,null,null,null,null,null,null,null,null,null,null,null,null,"68","SANTANDER","500","OIBA"]
[null,null,null,null,null,null,null,null,null,null,null,null,null,null,null,"15","BOYACA","500","OICATA"]
[null,null,null,null,null,null,null,null,null,null,null,null,null,null,null,"05","ANTIOQUIA","501","OLAYA"]
[null,null,null,null,null,null,null,null,null,null,null,null,null,null,null,"52","NARIÑO","490","OLAYA HERRERA"]
[null,null,null,null,null,null,null,null,null,null,null,null,null,null,null,"68","SANTANDER","502","ONZAGA"]
[null,null,null,null,null,null,null,null,null,null,null,null,null,null,null,"41","HUILA","503","OPORAPA"]
[null,null,null,null,null,null,null,null,null,null,null,null,null,null,null,"86","PUTUMAYO","320","ORITO"]
[null,null,null,null,null,null,null,null,null,null,null,null,null,null,null,"85","CASANARE","230","OROCUE"]
[null,null,null,null,null,null,null,null,null,null,null,null,null,null,null,"73","TOLIMA","504","ORTEGA"]
[null,null,null,null,null,null,null,null,null,null,null,null,null,null,null,"52","NARIÑO","506","OSPINA"]
[null,null,null,null,null,null,null,null,null,null,null,null,null,null,null,"15","BOYACA","507","OTANCHE"]
[null,null,null,null,null,null,null,null,null,null,null,null,null,null,null,"70","SUCRE","508","OVEJAS"]
[null,null,null,null,null,null,null,null,null,null,null,null,null,null,null,"15","BOYACA","511","PACHAVITA"]
[null,null,null,null,null,null,null,null,null,null,null,null,null,null,null,"25","CUNDINAMARCA","513","PACHO"]
[null,null,null,null,null,null,null,null,null,null,null,null,null,null,null,97,"VAUPES",511,"PACOA"]
[null,null,null,null,null,null,null,null,null,null,null,null,null,null,null,"17","CALDAS","513","PACORA"]
[null,null,null,null,null,null,null,null,null,null,null,null,null,null,null,"19","CAUCA","513","PADILLA"]
[null,null,null,null,null,null,null,null,null,null,null,null,null,null,null,"15","BOYACA","514","PAEZ"]
[null,null,null,null,null,null,null,null,null,null,null,null,null,null,null,"19","CAUCA","517","PAEZ"]
[null,null,null,null,null,null,null,null,null,null,null,null,null,null,null,"41","HUILA","518","PAICOL"]
[null,null,null,null,null,null,null,null,null,null,null,null,null,null,null,"20","CESAR","517","PAILITAS"]
[null,null,null,null,null,null,null,null,null,null,null,null,null,null,null,"25","CUNDINAMARCA","518","PAIME"]
[null,null,null,null,null,null,null,null,null,null,null,null,null,null,null,"15","BOYACA","516","PAIPA"]
[null,null,null,null,null,null,null,null,null,null,null,null,null,null,null,"15","BOYACA","518","PAJARITO"]
[null,null,null,null,null,null,null,null,null,null,null,null,null,null,null,"41","HUILA","524","PALERMO"]
[null,null,null,null,null,null,null,null,null,null,null,null,null,null,null,"17","CALDAS","524","PALESTINA"]
[null,null,null,null,null,null,null,null,null,null,null,null,null,null,null,"41","HUILA","530","PALESTINA"]
[null,null,null,null,null,null,null,null,null,null,null,null,null,null,null,"68","SANTANDER","522","PALMAR"]
[null,null,null,null,null,null,null,null,null,null,null,null,null,null,null,"08","ATLANTICO","520","PALMAR DE VARELA"]
[null,null,null,null,null,null,null,null,null,null,null,null,null,null,null,"68","SANTANDER","524","PALMAS DEL SOCORRO"]
[null,null,null,null,null,null,null,null,null,null,null,null,null,null,null,"76","VALLE DEL CAUCA","520","PALMIRA"]
[null,null,null,null,null,null,null,null,null,null,null,null,null,null,null,"70","SUCRE","523","PALMITO"]
[null,null,null,null,null,null,null,null,null,null,null,null,null,null,null,"73","TOLIMA","520","PALOCABILDO"]
[null,null,null,null,null,null,null,null,null,null,null,null,null,null,null,"54","N. DE SANTANDER","518","PAMPLONA"]
[null,null,null,null,null,null,null,null,null,null,null,null,null,null,null,"54","N. DE SANTANDER","520","PAMPLONITA"]
[null,null,null,null,null,null,null,null,null,null,null,null,null,null,null,"94","GUAINIA",887,"PANA PANA"]
[null,null,null,null,null,null,null,null,null,null,null,null,null,null,null,"25","CUNDINAMARCA","524","PANDI"]
[null,null,null,null,null,null,null,null,null,null,null,null,null,null,null,"15","BOYACA","522","PANQUEBA"]
[null,null,null,null,null,null,null,null,null,null,null,null,null,null,null,"97","VAUPES","777","PAPUNAUA"]
[null,null,null,null,null,null,null,null,null,null,null,null,null,null,null,"68","SANTANDER","533","PARAMO"]
[null,null,null,null,null,null,null,null,null,null,null,null,null,null,null,"25","CUNDINAMARCA","530","PARATEBUENO"]
[null,null,null,null,null,null,null,null,null,null,null,null,null,null,null,"25","CUNDINAMARCA","535","PASCA"]
[null,null,null,null,null,null,null,null,null,null,null,null,null,null,null,"52","NARIÑO","001","PASTO"]
[null,null,null,null,null,null,null,null,null,null,null,null,null,null,null,"19","CAUCA","532","PATIA"]
[null,null,null,null,null,null,null,null,null,null,null,null,null,null,null,"15","BOYACA","531","PAUNA"]
[null,null,null,null,null,null,null,null,null,null,null,null,null,null,null,"15","BOYACA","533","PAYA"]
[null,null,null,null,null,null,null,null,null,null,null,null,null,null,null,"85","CASANARE","250","PAZ DE ARIPORO"]
[null,null,null,null,null,null,null,null,null,null,null,null,null,null,null,"15","BOYACA","537","PAZ DE RIO"]
[null,null,null,null,null,null,null,null,null,null,null,null,null,null,null,"05","ANTIOQUIA","541","PEÐOL"]
[null,null,null,null,null,null,null,null,null,null,null,null,null,null,null,"47","MAGDALENA","541","PEDRAZA"]
[null,null,null,null,null,null,null,null,null,null,null,null,null,null,null,"20","CESAR","550","PELAYA"]
[null,null,null,null,null,null,null,null,null,null,null,null,null,null,null,"17","CALDAS","541","PENSILVANIA"]
[null,null,null,null,null,null,null,null,null,null,null,null,null,null,null,"05","ANTIOQUIA","543","PEQUE"]
[null,null,null,null,null,null,null,null,null,null,null,null,null,null,null,"66","RISARALDA","001","PEREIRA"]
[null,null,null,null,null,null,null,null,null,null,null,null,null,null,null,"15","BOYACA","542","PESCA"]
[null,null,null,null,null,null,null,null,null,null,null,null,null,null,null,"19","CAUCA","533","PIAMONTE"]
[null,null,null,null,null,null,null,null,null,null,null,null,null,null,null,"68","SANTANDER","547","PIEDECUESTA"]
[null,null,null,null,null,null,null,null,null,null,null,null,null,null,null,"73","TOLIMA","547","PIEDRAS"]
[null,null,null,null,null,null,null,null,null,null,null,null,null,null,null,"19","CAUCA","548","PIENDAMO"]
[null,null,null,null,null,null,null,null,null,null,null,null,null,null,null,"63","QUINDIO","548","PIJAO"]
[null,null,null,null,null,null,null,null,null,null,null,null,null,null,null,"47","MAGDALENA","545","PIJIÑO DEL CARMEN"]
[null,null,null,null,null,null,null,null,null,null,null,null,null,null,null,"68","SANTANDER","549","PINCHOTE"]
[null,null,null,null,null,null,null,null,null,null,null,null,null,null,null,"13","BOLIVAR","549","PINILLOS"]
[null,null,null,null,null,null,null,null,null,null,null,null,null,null,null,"08","ATLANTICO","549","PIOJO"]
[null,null,null,null,null,null,null,null,null,null,null,null,null,null,null,"15","BOYACA","550","PISBA"]
[null,null,null,null,null,null,null,null,null,null,null,null,null,null,null,"41","HUILA","548","PITAL"]
[null,null,null,null,null,null,null,null,null,null,null,null,null,null,null,"41","HUILA","551","PITALITO"]
[null,null,null,null,null,null,null,null,null,null,null,null,null,null,null,"47","MAGDALENA","551","PIVIJAY"]
[null,null,null,null,null,null,null,null,null,null,null,null,null,null,null,"73","TOLIMA","555","PLANADAS"]
[null,null,null,null,null,null,null,null,null,null,null,null,null,null,null,"23","CORDOBA","555","PLANETA RICA"]
[null,null,null,null,null,null,null,null,null,null,null,null,null,null,null,"47","MAGDALENA","555","PLATO"]
[null,null,null,null,null,null,null,null,null,null,null,null,null,null,null,"52","NARIÑO","540","POLICARPA"]
[null,null,null,null,null,null,null,null,null,null,null,null,null,null,null,"08","ATLANTICO","558","POLONUEVO"]
[null,null,null,null,null,null,null,null,null,null,null,null,null,null,null,"08","ATLANTICO","560","PONEDERA"]
[null,null,null,null,null,null,null,null,null,null,null,null,null,null,null,"19","CAUCA","001","POPAYAN"]
[null,null,null,null,null,null,null,null,null,null,null,null,null,null,null,"85","CASANARE","263","PORE"]
[null,null,null,null,null,null,null,null,null,null,null,null,null,null,null,"52","NARIÑO","560","POTOSI"]
[null,null,null,null,null,null,null,null,null,null,null,null,null,null,null,"76","VALLE DEL CAUCA","563","PRADERA"]
[null,null,null,null,null,null,null,null,null,null,null,null,null,null,null,"73","TOLIMA","563","PRADO"]
[null,null,null,null,null,null,null,null,null,null,null,null,null,null,null,"52","NARIÑO","565","PROVIDENCIA"]
[null,null,null,null,null,null,null,null,null,null,null,null,null,null,null,"88","SAN ANDRES","564","PROVIDENCIA"]
[null,null,null,null,null,null,null,null,null,null,null,null,null,null,null,"20","CESAR","570","PUEBLO BELLO"]
[null,null,null,null,null,null,null,null,null,null,null,null,null,null,null,"23","CORDOBA","570","PUEBLO NUEVO"]
[null,null,null,null,null,null,null,null,null,null,null,null,null,null,null,"66","RISARALDA","572","PUEBLO RICO"]
[null,null,null,null,null,null,null,null,null,null,null,null,null,null,null,"05","ANTIOQUIA","576","PUEBLORRICO"]
[null,null,null,null,null,null,null,null,null,null,null,null,null,null,null,"47","MAGDALENA","570","PUEBLOVIEJO"]
[null,null,null,null,null,null,null,null,null,null,null,null,null,null,null,"68","SANTANDER","572","PUENTE NACIONAL"]
[null,null,null,null,null,null,null,null,null,null,null,null,null,null,null,"52","NARIÑO","573","PUERRES"]
[null,null,null,null,null,null,null,null,null,null,null,null,null,null,null,"91","AMAZONAS","530","PUERTO ALEGRIA"]
[null,null,null,null,null,null,null,null,null,null,null,null,null,null,null,"91","AMAZONAS","536","PUERTO ARICA"]
[null,null,null,null,null,null,null,null,null,null,null,null,null,null,null,"86","PUTUMAYO","568","PUERTO ASIS"]
[null,null,null,null,null,null,null,null,null,null,null,null,null,null,null,"05","ANTIOQUIA","579","PUERTO BERRIO"]
[null,null,null,null,null,null,null,null,null,null,null,null,null,null,null,"15","BOYACA","572","PUERTO BOYACA"]
[null,null,null,null,null,null,null,null,null,null,null,null,null,null,null,"86","PUTUMAYO","569","PUERTO CAICEDO"]
[null,null,null,null,null,null,null,null,null,null,null,null,null,null,null,"99","VICHADA","001","PUERTO CARREÑO"]
[null,null,null,null,null,null,null,null,null,null,null,null,null,null,null,"08","ATLANTICO","573","PUERTO COLOMBIA"]
[null,null,null,null,null,null,null,null,null,null,null,null,null,null,null,"94","GUAINIA","884","PUERTO COLOMBIA"]
[null,null,null,null,null,null,null,null,null,null,null,null,null,null,null,"50","META","450","PUERTO CONCORDIA"]
[null,null,null,null,null,null,null,null,null,null,null,null,null,null,null,"23","CORDOBA","574","PUERTO ESCONDIDO"]
[null,null,null,null,null,null,null,null,null,null,null,null,null,null,null,"50","META","568","PUERTO GAITAN"]
[null,null,null,null,null,null,null,null,null,null,null,null,null,null,null,"86","PUTUMAYO","571","PUERTO GUZMAN"]
[null,null,null,null,null,null,null,null,null,null,null,null,null,null,null,"23","CORDOBA","580","PUERTO LIBERTADOR"]
[null,null,null,null,null,null,null,null,null,null,null,null,null,null,null,"50","META","577","PUERTO LLERAS"]
[null,null,null,null,null,null,null,null,null,null,null,null,null,null,null,"50","META","573","PUERTO LOPEZ"]
[null,null,null,null,null,null,null,null,null,null,null,null,null,null,null,"05","ANTIOQUIA","585","PUERTO NARE"]
[null,null,null,null,null,null,null,null,null,null,null,null,null,null,null,"91","AMAZONAS","540","PUERTO NARIÑO"]
[null,null,null,null,null,null,null,null,null,null,null,null,null,null,null,"68","SANTANDER","573","PUERTO PARRA"]
[null,null,null,null,null,null,null,null,null,null,null,null,null,null,null,"18","CAQUETA","592","PUERTO RICO"]
[null,null,null,null,null,null,null,null,null,null,null,null,null,null,null,"50","META","590","PUERTO RICO"]
[null,null,null,null,null,null,null,null,null,null,null,null,null,null,null,"81","ARAUCA","591","PUERTO RONDON"]
[null,null,null,null,null,null,null,null,null,null,null,null,null,null,null,"25","CUNDINAMARCA","572","PUERTO SALGAR"]
[null,null,null,null,null,null,null,null,null,null,null,null,null,null,null,"54","N. DE SANTANDER","553","PUERTO SANTANDER"]
[null,null,null,null,null,null,null,null,null,null,null,null,null,null,null,"91","AMAZONAS","669","PUERTO SANTANDER"]
[null,null,null,null,null,null,null,null,null,null,null,null,null,null,null,"19","CAUCA","573","PUERTO TEJADA"]
[null,null,null,null,null,null,null,null,null,null,null,null,null,null,null,"05","ANTIOQUIA","591","PUERTO TRIUNFO"]
[null,null,null,null,null,null,null,null,null,null,null,null,null,null,null,"68","SANTANDER","575","PUERTO WILCHES"]
[null,null,null,null,null,null,null,null,null,null,null,null,null,null,null,"25","CUNDINAMARCA","580","PULI"]
[null,null,null,null,null,null,null,null,null,null,null,null,null,null,null,"52","NARIÑO","585","PUPIALES"]
[null,null,null,null,null,null,null,null,null,null,null,null,null,null,null,"19","CAUCA","585","PURACE"]
[null,null,null,null,null,null,null,null,null,null,null,null,null,null,null,"73","TOLIMA","585","PURIFICACION"]
[null,null,null,null,null,null,null,null,null,null,null,null,null,null,null,"23","CORDOBA","586","PURISIMA"]
[null,null,null,null,null,null,null,null,null,null,null,null,null,null,null,"25","CUNDINAMARCA","592","QUEBRADANEGRA"]
[null,null,null,null,null,null,null,null,null,null,null,null,null,null,null,"25","CUNDINAMARCA","594","QUETAME"]
[null,null,null,null,null,null,null,null,null,null,null,null,null,null,null,"27","CHOCO","001","QUIBDO"]
[null,null,null,null,null,null,null,null,null,null,null,null,null,null,null,"63","QUINDIO","594","QUIMBAYA"]
[null,null,null,null,null,null,null,null,null,null,null,null,null,null,null,"66","RISARALDA","594","QUINCHIA"]
[null,null,null,null,null,null,null,null,null,null,null,null,null,null,null,"15","BOYACA","580","QUIPAMA"]
[null,null,null,null,null,null,null,null,null,null,null,null,null,null,null,"25","CUNDINAMARCA","596","QUIPILE"]
[null,null,null,null,null,null,null,null,null,null,null,null,null,null,null,"54","N. DE SANTANDER","599","RAGONVALIA"]
[null,null,null,null,null,null,null,null,null,null,null,null,null,null,null,"15","BOYACA","599","RAMIRIQUI"]
[null,null,null,null,null,null,null,null,null,null,null,null,null,null,null,"15","BOYACA","600","RAQUIRA"]
[null,null,null,null,null,null,null,null,null,null,null,null,null,null,null,"85","CASANARE","279","RECETOR"]
[null,null,null,null,null,null,null,null,null,null,null,null,null,null,null,"13","BOLIVAR","580","REGIDOR"]
[null,null,null,null,null,null,null,null,null,null,null,null,null,null,null,"05","ANTIOQUIA","604","REMEDIOS"]
[null,null,null,null,null,null,null,null,null,null,null,null,null,null,null,"47","MAGDALENA","605","REMOLINO"]
[null,null,null,null,null,null,null,null,null,null,null,null,null,null,null,"08","ATLANTICO","606","REPELON"]
[null,null,null,null,null,null,null,null,null,null,null,null,null,null,null,"50","META","606","RESTREPO"]
[null,null,null,null,null,null,null,null,null,null,null,null,null,null,null,"76","VALLE DEL CAUCA","606","RESTREPO"]
[null,null,null,null,null,null,null,null,null,null,null,null,null,null,null,"05","ANTIOQUIA","607","RETIRO"]
[null,null,null,null,null,null,null,null,null,null,null,null,null,null,null,"25","CUNDINAMARCA","612","RICAURTE"]
[null,null,null,null,null,null,null,null,null,null,null,null,null,null,null,"52","NARIÑO","612","RICAURTE"]
[null,null,null,null,null,null,null,null,null,null,null,null,null,null,null,"20","CESAR","614","RIO DE ORO"]
[null,null,null,null,null,null,null,null,null,null,null,null,null,null,null,"27","CHOCO","580","RIO IRO"]
[null,null,null,null,null,null,null,null,null,null,null,null,null,null,null,"27","CHOCO","600","RIO QUITO"]
[null,null,null,null,null,null,null,null,null,null,null,null,null,null,null,"13","BOLIVAR","600","RIO VIEJO"]
[null,null,null,null,null,null,null,null,null,null,null,null,null,null,null,"73","TOLIMA","616","RIOBLANCO"]
[null,null,null,null,null,null,null,null,null,null,null,null,null,null,null,"76","VALLE DEL CAUCA","616","RIOFRIO"]
[null,null,null,null,null,null,null,null,null,null,null,null,null,null,null,"44","LA GUAJIRA","001","RIOHACHA"]
[null,null,null,null,null,null,null,null,null,null,null,null,null,null,null,"05","ANTIOQUIA","615","RIONEGRO"]
[null,null,null,null,null,null,null,null,null,null,null,null,null,null,null,"68","SANTANDER","615","RIONEGRO"]
[null,null,null,null,null,null,null,null,null,null,null,null,null,null,null,"17","CALDAS","614","RIOSUCIO"]
[null,null,null,null,null,null,null,null,null,null,null,null,null,null,null,"27","CHOCO","615","RIOSUCIO"]
[null,null,null,null,null,null,null,null,null,null,null,null,null,null,null,"17","CALDAS","616","RISARALDA"]
[null,null,null,null,null,null,null,null,null,null,null,null,null,null,null,"41","HUILA","615","RIVERA"]
[null,null,null,null,null,null,null,null,null,null,null,null,null,null,null,"52","NARIÑO","621","ROBERTO PAYAN"]
[null,null,null,null,null,null,null,null,null,null,null,null,null,null,null,"76","VALLE DEL CAUCA","622","ROLDANILLO"]
[null,null,null,null,null,null,null,null,null,null,null,null,null,null,null,"73","TOLIMA","622","RONCESVALLES"]
[null,null,null,null,null,null,null,null,null,null,null,null,null,null,null,"15","BOYACA","621","RONDON"]
[null,null,null,null,null,null,null,null,null,null,null,null,null,null,null,"19","CAUCA","622","ROSAS"]
[null,null,null,null,null,null,null,null,null,null,null,null,null,null,null,"73","TOLIMA","624","ROVIRA"]
[null,null,null,null,null,null,null,null,null,null,null,null,null,null,null,"68","SANTANDER","655","SABANA DE TORRES"]
[null,null,null,null,null,null,null,null,null,null,null,null,null,null,null,"08","ATLANTICO","634","SABANAGRANDE"]
[null,null,null,null,null,null,null,null,null,null,null,null,null,null,null,"05","ANTIOQUIA","628","SABANALARGA"]
[null,null,null,null,null,null,null,null,null,null,null,null,null,null,null,"08","ATLANTICO","638","SABANALARGA"]
[null,null,null,null,null,null,null,null,null,null,null,null,null,null,null,"85","CASANARE","300","SABANALARGA"]
[null,null,null,null,null,null,null,null,null,null,null,null,null,null,null,"47","MAGDALENA","660","SABANAS DE SAN ANGEL"]
[null,null,null,null,null,null,null,null,null,null,null,null,null,null,null,"05","ANTIOQUIA","631","SABANETA"]
[null,null,null,null,null,null,null,null,null,null,null,null,null,null,null,"15","BOYACA","632","SABOYA"]
[null,null,null,null,null,null,null,null,null,null,null,null,null,null,null,"85","CASANARE","315","SACAMA"]
[null,null,null,null,null,null,null,null,null,null,null,null,null,null,null,"15","BOYACA","638","SACHICA"]
[null,null,null,null,null,null,null,null,null,null,null,null,null,null,null,"23","CORDOBA","660","SAHAGUN"]
[null,null,null,null,null,null,null,null,null,null,null,null,null,null,null,"41","HUILA","660","SALADOBLANCO"]
[null,null,null,null,null,null,null,null,null,null,null,null,null,null,null,"17","CALDAS","653","SALAMINA"]
[null,null,null,null,null,null,null,null,null,null,null,null,null,null,null,"47","MAGDALENA","675","SALAMINA"]
[null,null,null,null,null,null,null,null,null,null,null,null,null,null,null,"54","N. DE SANTANDER","660","SALAZAR"]
[null,null,null,null,null,null,null,null,null,null,null,null,null,null,null,"73","TOLIMA","671","SALDAÑA"]
[null,null,null,null,null,null,null,null,null,null,null,null,null,null,null,"63","QUINDIO","690","SALENTO"]
[null,null,null,null,null,null,null,null,null,null,null,null,null,null,null,"05","ANTIOQUIA","642","SALGAR"]
[null,null,null,null,null,null,null,null,null,null,null,null,null,null,null,"15","BOYACA","646","SAMACA"]
[null,null,null,null,null,null,null,null,null,null,null,null,null,null,null,"17","CALDAS","662","SAMANA"]
[null,null,null,null,null,null,null,null,null,null,null,null,null,null,null,"52","NARIÑO","678","SAMANIEGO"]
[null,null,null,null,null,null,null,null,null,null,null,null,null,null,null,"70","SUCRE","670","SAMPUES"]
[null,null,null,null,null,null,null,null,null,null,null,null,null,null,null,"41","HUILA","668","SAN AGUSTIN"]
[null,null,null,null,null,null,null,null,null,null,null,null,null,null,null,"20","CESAR","710","SAN ALBERTO"]
[null,null,null,null,null,null,null,null,null,null,null,null,null,null,null,"68","SANTANDER","669","SAN ANDRES"]
[null,null,null,null,null,null,null,null,null,null,null,null,null,null,null,"88","SAN ANDRES","001","SAN ANDRES"]
[null,null,null,null,null,null,null,null,null,null,null,null,null,null,null,"05","ANTIOQUIA","647","SAN ANDRES DE CUERQUIA"]
[null,null,null,null,null,null,null,null,null,null,null,null,null,null,null,"52","NARIÑO","835","SAN ANDRES DE TUMACO"]
[null,null,null,null,null,null,null,null,null,null,null,null,null,null,null,"23","CORDOBA","670","SAN ANDRES SOTAVENTO"]
[null,null,null,null,null,null,null,null,null,null,null,null,null,null,null,"23","CORDOBA","672","SAN ANTERO"]
[null,null,null,null,null,null,null,null,null,null,null,null,null,null,null,"73","TOLIMA","675","SAN ANTONIO"]
[null,null,null,null,null,null,null,null,null,null,null,null,null,null,null,"25","CUNDINAMARCA","645","SAN ANTONIO DEL TEQUENDAMA"]
[null,null,null,null,null,null,null,null,null,null,null,null,null,null,null,"68","SANTANDER","673","SAN BENITO"]
[null,null,null,null,null,null,null,null,null,null,null,null,null,null,null,"70","SUCRE","678","SAN BENITO ABAD"]
[null,null,null,null,null,null,null,null,null,null,null,null,null,null,null,"25","CUNDINAMARCA","649","SAN BERNARDO"]
[null,null,null,null,null,null,null,null,null,null,null,null,null,null,null,"52","NARIÑO","685","SAN BERNARDO"]
[null,null,null,null,null,null,null,null,null,null,null,null,null,null,null,"23","CORDOBA","675","SAN BERNARDO DEL VIENTO"]
[null,null,null,null,null,null,null,null,null,null,null,null,null,null,null,"54","N. DE SANTANDER","670","SAN CALIXTO"]
[null,null,null,null,null,null,null,null,null,null,null,null,null,null,null,"05","ANTIOQUIA","649","SAN CARLOS"]
[null,null,null,null,null,null,null,null,null,null,null,null,null,null,null,"23","CORDOBA","678","SAN CARLOS"]
[null,null,null,null,null,null,null,null,null,null,null,null,null,null,null,"50","META","680","SAN CARLOS DE GUAROA"]
[null,null,null,null,null,null,null,null,null,null,null,null,null,null,null,"25","CUNDINAMARCA","653","SAN CAYETANO"]
[null,null,null,null,null,null,null,null,null,null,null,null,null,null,null,"54","N. DE SANTANDER","673","SAN CAYETANO"]
[null,null,null,null,null,null,null,null,null,null,null,null,null,null,null,"13","BOLIVAR","620","SAN CRISTOBAL"]
[null,null,null,null,null,null,null,null,null,null,null,null,null,null,null,"20","CESAR","750","SAN DIEGO"]
[null,null,null,null,null,null,null,null,null,null,null,null,null,null,null,"15","BOYACA","660","SAN EDUARDO"]
[null,null,null,null,null,null,null,null,null,null,null,null,null,null,null,"13","BOLIVAR","647","SAN ESTANISLAO"]
[null,null,null,null,null,null,null,null,null,null,null,null,null,null,null,"94","GUAINIA","883","SAN FELIPE"]
[null,null,null,null,null,null,null,null,null,null,null,null,null,null,null,"13","BOLIVAR","650","SAN FERNANDO"]
[null,null,null,null,null,null,null,null,null,null,null,null,null,null,null,"05","ANTIOQUIA","652","SAN FRANCISCO"]
[null,null,null,null,null,null,null,null,null,null,null,null,null,null,null,"25","CUNDINAMARCA","658","SAN FRANCISCO"]
[null,null,null,null,null,null,null,null,null,null,null,null,null,null,null,"86","PUTUMAYO","755","SAN FRANCISCO"]
[null,null,null,null,null,null,null,null,null,null,null,null,null,null,null,"68","SANTANDER","679","SAN GIL"]
[null,null,null,null,null,null,null,null,null,null,null,null,null,null,null,"13","BOLIVAR","654","SAN JACINTO"]
[null,null,null,null,null,null,null,null,null,null,null,null,null,null,null,"13","BOLIVAR","655","SAN JACINTO DEL CAUCA"]
[null,null,null,null,null,null,null,null,null,null,null,null,null,null,null,"05","ANTIOQUIA","656","SAN JERONIMO"]
[null,null,null,null,null,null,null,null,null,null,null,null,null,null,null,"68","SANTANDER","682","SAN JOAQUIN"]
[null,null,null,null,null,null,null,null,null,null,null,null,null,null,null,"17","CALDAS","665","SAN JOSE"]
[null,null,null,null,null,null,null,null,null,null,null,null,null,null,null,"05","ANTIOQUIA","658","SAN JOSE DE LA MONTAÑA"]
[null,null,null,null,null,null,null,null,null,null,null,null,null,null,null,"68","SANTANDER","684","SAN JOSE DE MIRANDA"]
[null,null,null,null,null,null,null,null,null,null,null,null,null,null,null,"15","BOYACA","664","SAN JOSE DE PARE"]
[null,null,null,null,null,null,null,null,null,null,null,null,null,null,null,"18","CAQUETA","610","SAN JOSE DEL FRAGUA"]
[null,null,null,null,null,null,null,null,null,null,null,null,null,null,null,"95","GUAVIARE","001","SAN JOSE DEL GUAVIARE"]
[null,null,null,null,null,null,null,null,null,null,null,null,null,null,null,"27","CHOCO","660","SAN JOSE DEL PALMAR"]
[null,null,null,null,null,null,null,null,null,null,null,null,null,null,null,"50","META","683","SAN JUAN DE ARAMA"]
[null,null,null,null,null,null,null,null,null,null,null,null,null,null,null,"70","SUCRE","702","SAN JUAN DE BETULIA"]
[null,null,null,null,null,null,null,null,null,null,null,null,null,null,null,"25","CUNDINAMARCA","662","SAN JUAN DE RIO SECO"]
[null,null,null,null,null,null,null,null,null,null,null,null,null,null,null,"05","ANTIOQUIA","659","SAN JUAN DE URABA"]
[null,null,null,null,null,null,null,null,null,null,null,null,null,null,null,"44","LA GUAJIRA","650","SAN JUAN DEL CESAR"]
[null,null,null,null,null,null,null,null,null,null,null,null,null,null,null,"13","BOLIVAR","657","SAN JUAN NEPOMUCENO"]
[null,null,null,null,null,null,null,null,null,null,null,null,null,null,null,"50","META","686","SAN JUANITO"]
[null,null,null,null,null,null,null,null,null,null,null,null,null,null,null,"52","NARIÑO","687","SAN LORENZO"]
[null,null,null,null,null,null,null,null,null,null,null,null,null,null,null,"05","ANTIOQUIA","660","SAN LUIS"]
[null,null,null,null,null,null,null,null,null,null,null,null,null,null,null,"73","TOLIMA","678","SAN LUIS"]
[null,null,null,null,null,null,null,null,null,null,null,null,null,null,null,"15","BOYACA","667","SAN LUIS DE GACENO"]
[null,null,null,null,null,null,null,null,null,null,null,null,null,null,null,"85","CASANARE","325","SAN LUIS DE PALENQUE"]
[null,null,null,null,null,null,null,null,null,null,null,null,null,null,null,"70","SUCRE","742","SAN LUIS DE SINCE"]
[null,null,null,null,null,null,null,null,null,null,null,null,null,null,null,"70","SUCRE","708","SAN MARCOS"]
[null,null,null,null,null,null,null,null,null,null,null,null,null,null,null,"20","CESAR","770","SAN MARTIN"]
[null,null,null,null,null,null,null,null,null,null,null,null,null,null,null,"50","META","689","SAN MARTIN"]
[null,null,null,null,null,null,null,null,null,null,null,null,null,null,null,"13","BOLIVAR","667","SAN MARTIN DE LOBA"]
[null,null,null,null,null,null,null,null,null,null,null,null,null,null,null,"15","BOYACA","673","SAN MATEO"]
[null,null,null,null,null,null,null,null,null,null,null,null,null,null,null,"68","SANTANDER","686","SAN MIGUEL"]
[null,null,null,null,null,null,null,null,null,null,null,null,null,null,null,"86","PUTUMAYO","757","SAN MIGUEL"]
[null,null,null,null,null,null,null,null,null,null,null,null,null,null,null,"15","BOYACA","676","SAN MIGUEL DE SEMA"]
[null,null,null,null,null,null,null,null,null,null,null,null,null,null,null,"70","SUCRE","713","SAN ONOFRE"]
[null,null,null,null,null,null,null,null,null,null,null,null,null,null,null,"13","BOLIVAR","670","SAN PABLO"]
[null,null,null,null,null,null,null,null,null,null,null,null,null,null,null,"52","NARIÑO","693","SAN PABLO"]
[null,null,null,null,null,null,null,null,null,null,null,null,null,null,null,"15","BOYACA","681","SAN PABLO DE BORBUR"]
[null,null,null,null,null,null,null,null,null,null,null,null,null,null,null,"05","ANTIOQUIA","664","SAN PEDRO"]
[null,null,null,null,null,null,null,null,null,null,null,null,null,null,null,"70","SUCRE","717","SAN PEDRO"]
[null,null,null,null,null,null,null,null,null,null,null,null,null,null,null,"76","VALLE DEL CAUCA","670","SAN PEDRO"]
[null,null,null,null,null,null,null,null,null,null,null,null,null,null,null,"52","NARIÑO","694","SAN PEDRO DE CARTAGO"]
[null,null,null,null,null,null,null,null,null,null,null,null,null,null,null,"05","ANTIOQUIA","665","SAN PEDRO DE URABA"]
[null,null,null,null,null,null,null,null,null,null,null,null,null,null,null,"23","CORDOBA","686","SAN PELAYO"]
[null,null,null,null,null,null,null,null,null,null,null,null,null,null,null,"05","ANTIOQUIA","667","SAN RAFAEL"]
[null,null,null,null,null,null,null,null,null,null,null,null,null,null,null,"05","ANTIOQUIA","670","SAN ROQUE"]
[null,null,null,null,null,null,null,null,null,null,null,null,null,null,null,"19","CAUCA","693","SAN SEBASTIAN"]
[null,null,null,null,null,null,null,null,null,null,null,null,null,null,null,"47","MAGDALENA","692","SAN SEBASTIAN DE BUENAVISTA"]
[null,null,null,null,null,null,null,null,null,null,null,null,null,null,null,"05","ANTIOQUIA","674","SAN VICENTE"]
[null,null,null,null,null,null,null,null,null,null,null,null,null,null,null,"68","SANTANDER","689","SAN VICENTE DE CHUCURI"]
[null,null,null,null,null,null,null,null,null,null,null,null,null,null,null,"18","CAQUETA","753","SAN VICENTE DEL CAGUAN"]
[null,null,null,null,null,null,null,null,null,null,null,null,null,null,null,"47","MAGDALENA","703","SAN ZENON"]
[null,null,null,null,null,null,null,null,null,null,null,null,null,null,null,"52","NARIÑO","683","SANDONA"]
[null,null,null,null,null,null,null,null,null,null,null,null,null,null,null,"47","MAGDALENA","707","SANTA ANA"]
[null,null,null,null,null,null,null,null,null,null,null,null,null,null,null,"05","ANTIOQUIA","679","SANTA BARBARA"]
[null,null,null,null,null,null,null,null,null,null,null,null,null,null,null,"52","NARIÑO","696","SANTA BARBARA"]
[null,null,null,null,null,null,null,null,null,null,null,null,null,null,null,"68","SANTANDER","705","SANTA BARBARA"]
[null,null,null,null,null,null,null,null,null,null,null,null,null,null,null,"47","MAGDALENA","720","SANTA BARBARA DE PINTO"]
[null,null,null,null,null,null,null,null,null,null,null,null,null,null,null,"13","BOLIVAR","673","SANTA CATALINA"]
[null,null,null,null,null,null,null,null,null,null,null,null,null,null,null,"68","SANTANDER","720","SANTA HELENA DEL OPON"]
[null,null,null,null,null,null,null,null,null,null,null,null,null,null,null,"73","TOLIMA","686","SANTA ISABEL"]
[null,null,null,null,null,null,null,null,null,null,null,null,null,null,null,"08","ATLANTICO","675","SANTA LUCIA"]
[null,null,null,null,null,null,null,null,null,null,null,null,null,null,null,"15","BOYACA","690","SANTA MARIA"]
[null,null,null,null,null,null,null,null,null,null,null,null,null,null,null,"41","HUILA","676","SANTA MARIA"]
[null,null,null,null,null,null,null,null,null,null,null,null,null,null,null,"47","MAGDALENA","001","SANTA MARTA"]
[null,null,null,null,null,null,null,null,null,null,null,null,null,null,null,"13","BOLIVAR","683","SANTA ROSA"]
[null,null,null,null,null,null,null,null,null,null,null,null,null,null,null,"19","CAUCA","701","SANTA ROSA"]
[null,null,null,null,null,null,null,null,null,null,null,null,null,null,null,"66","RISARALDA","682","SANTA ROSA DE CABAL"]
[null,null,null,null,null,null,null,null,null,null,null,null,null,null,null,"05","ANTIOQUIA","686","SANTA ROSA DE OSOS"]
[null,null,null,null,null,null,null,null,null,null,null,null,null,null,null,"15","BOYACA","693","SANTA ROSA DE VITERBO"]
[null,null,null,null,null,null,null,null,null,null,null,null,null,null,null,"13","BOLIVAR","688","SANTA ROSA DEL SUR"]
[null,null,null,null,null,null,null,null,null,null,null,null,null,null,null,"99","VICHADA","624","SANTA ROSALIA"]
[null,null,null,null,null,null,null,null,null,null,null,null,null,null,null,"15","BOYACA","696","SANTA SOFIA"]
[null,null,null,null,null,null,null,null,null,null,null,null,null,null,null,"52","NARIÑO","699","SANTACRUZ"]
[null,null,null,null,null,null,null,null,null,null,null,null,null,null,null,"05","ANTIOQUIA","042","SANTAFE DE ANTIOQUIA"]
[null,null,null,null,null,null,null,null,null,null,null,null,null,null,null,"15","BOYACA","686","SANTANA"]
[null,null,null,null,null,null,null,null,null,null,null,null,null,null,null,"19","CAUCA","698","SANTANDER DE QUILICHAO"]
[null,null,null,null,null,null,null,null,null,null,null,null,null,null,null,"54","N. DE SANTANDER","680","SANTIAGO"]
[null,null,null,null,null,null,null,null,null,null,null,null,null,null,null,"86","PUTUMAYO","760","SANTIAGO"]
[null,null,null,null,null,null,null,null,null,null,null,null,null,null,null,"70","SUCRE","820","SANTIAGO DE TOLU"]
[null,null,null,null,null,null,null,null,null,null,null,null,null,null,null,"05","ANTIOQUIA","690","SANTO DOMINGO"]
[null,null,null,null,null,null,null,null,null,null,null,null,null,null,null,"08","ATLANTICO","685","SANTO TOMAS"]
[null,null,null,null,null,null,null,null,null,null,null,null,null,null,null,"66","RISARALDA","687","SANTUARIO"]
[null,null,null,null,null,null,null,null,null,null,null,null,null,null,null,"52","NARIÑO","720","SAPUYES"]
[null,null,null,null,null,null,null,null,null,null,null,null,null,null,null,"81","ARAUCA","736","SARAVENA"]
[null,null,null,null,null,null,null,null,null,null,null,null,null,null,null,"54","N. DE SANTANDER","720","SARDINATA"]
[null,null,null,null,null,null,null,null,null,null,null,null,null,null,null,"25","CUNDINAMARCA","718","SASAIMA"]
[null,null,null,null,null,null,null,null,null,null,null,null,null,null,null,"15","BOYACA","720","SATIVANORTE"]
[null,null,null,null,null,null,null,null,null,null,null,null,null,null,null,"15","BOYACA","723","SATIVASUR"]
[null,null,null,null,null,null,null,null,null,null,null,null,null,null,null,"05","ANTIOQUIA","736","SEGOVIA"]
[null,null,null,null,null,null,null,null,null,null,null,null,null,null,null,"25","CUNDINAMARCA","736","SESQUILE"]
[null,null,null,null,null,null,null,null,null,null,null,null,null,null,null,"76","VALLE DEL CAUCA","736","SEVILLA"]
[null,null,null,null,null,null,null,null,null,null,null,null,null,null,null,"15","BOYACA","740","SIACHOQUE"]
[null,null,null,null,null,null,null,null,null,null,null,null,null,null,null,"25","CUNDINAMARCA","740","SIBATE"]
[null,null,null,null,null,null,null,null,null,null,null,null,null,null,null,"86","PUTUMAYO","749","SIBUNDOY"]
[null,null,null,null,null,null,null,null,null,null,null,null,null,null,null,"54","N. DE SANTANDER","743","SILOS"]
[null,null,null,null,null,null,null,null,null,null,null,null,null,null,null,"25","CUNDINAMARCA","743","SILVANIA"]
[null,null,null,null,null,null,null,null,null,null,null,null,null,null,null,"19","CAUCA","743","SILVIA"]
[null,null,null,null,null,null,null,null,null,null,null,null,null,null,null,"68","SANTANDER","745","SIMACOTA"]
[null,null,null,null,null,null,null,null,null,null,null,null,null,null,null,"25","CUNDINAMARCA","745","SIMIJACA"]
[null,null,null,null,null,null,null,null,null,null,null,null,null,null,null,"13","BOLIVAR","744","SIMITI"]
[null,null,null,null,null,null,null,null,null,null,null,null,null,null,null,"70","SUCRE","001","SINCELEJO"]
[null,null,null,null,null,null,null,null,null,null,null,null,null,null,null,"27","CHOCO","745","SIPI"]
[null,null,null,null,null,null,null,null,null,null,null,null,null,null,null,"47","MAGDALENA","745","SITIONUEVO"]
[null,null,null,null,null,null,null,null,null,null,null,null,null,null,null,"25","CUNDINAMARCA","754","SOACHA"]
[null,null,null,null,null,null,null,null,null,null,null,null,null,null,null,"15","BOYACA","753","SOATA"]
[null,null,null,null,null,null,null,null,null,null,null,null,null,null,null,"15","BOYACA","757","SOCHA"]
[null,null,null,null,null,null,null,null,null,null,null,null,null,null,null,"68","SANTANDER","755","SOCORRO"]
[null,null,null,null,null,null,null,null,null,null,null,null,null,null,null,"15","BOYACA","755","SOCOTA"]
[null,null,null,null,null,null,null,null,null,null,null,null,null,null,null,"15","BOYACA","759","SOGAMOSO"]
[null,null,null,null,null,null,null,null,null,null,null,null,null,null,null,"18","CAQUETA","756","SOLANO"]
[null,null,null,null,null,null,null,null,null,null,null,null,null,null,null,"08","ATLANTICO","758","SOLEDAD"]
[null,null,null,null,null,null,null,null,null,null,null,null,null,null,null,"18","CAQUETA","785","SOLITA"]
[null,null,null,null,null,null,null,null,null,null,null,null,null,null,null,"15","BOYACA","761","SOMONDOCO"]
[null,null,null,null,null,null,null,null,null,null,null,null,null,null,null,"05","ANTIOQUIA","756","SONSON"]
[null,null,null,null,null,null,null,null,null,null,null,null,null,null,null,"05","ANTIOQUIA","761","SOPETRAN"]
[null,null,null,null,null,null,null,null,null,null,null,null,null,null,null,"13","BOLIVAR","760","SOPLAVIENTO"]
[null,null,null,null,null,null,null,null,null,null,null,null,null,null,null,"25","CUNDINAMARCA","758","SOPO"]
[null,null,null,null,null,null,null,null,null,null,null,null,null,null,null,"15","BOYACA","762","SORA"]
[null,null,null,null,null,null,null,null,null,null,null,null,null,null,null,"15","BOYACA","764","SORACA"]
[null,null,null,null,null,null,null,null,null,null,null,null,null,null,null,"15","BOYACA","763","SOTAQUIRA"]
[null,null,null,null,null,null,null,null,null,null,null,null,null,null,null,"19","CAUCA","760","SOTARA"]
[null,null,null,null,null,null,null,null,null,null,null,null,null,null,null,"68","SANTANDER","770","SUAITA"]
[null,null,null,null,null,null,null,null,null,null,null,null,null,null,null,"08","ATLANTICO","770","SUAN"]
[null,null,null,null,null,null,null,null,null,null,null,null,null,null,null,"19","CAUCA","780","SUAREZ"]
[null,null,null,null,null,null,null,null,null,null,null,null,null,null,null,"73","TOLIMA","770","SUAREZ"]
[null,null,null,null,null,null,null,null,null,null,null,null,null,null,null,"41","HUILA","770","SUAZA"]
[null,null,null,null,null,null,null,null,null,null,null,null,null,null,null,"25","CUNDINAMARCA","769","SUBACHOQUE"]
[null,null,null,null,null,null,null,null,null,null,null,null,null,null,null,"19","CAUCA","785","SUCRE"]
[null,null,null,null,null,null,null,null,null,null,null,null,null,null,null,"68","SANTANDER","773","SUCRE"]
[null,null,null,null,null,null,null,null,null,null,null,null,null,null,null,"70","SUCRE","771","SUCRE"]
[null,null,null,null,null,null,null,null,null,null,null,null,null,null,null,"25","CUNDINAMARCA","772","SUESCA"]
[null,null,null,null,null,null,null,null,null,null,null,null,null,null,null,"25","CUNDINAMARCA","777","SUPATA"]
[null,null,null,null,null,null,null,null,null,null,null,null,null,null,null,"17","CALDAS","777","SUPIA"]
[null,null,null,null,null,null,null,null,null,null,null,null,null,null,null,"68","SANTANDER","780","SURATA"]
[null,null,null,null,null,null,null,null,null,null,null,null,null,null,null,"25","CUNDINAMARCA","779","SUSA"]
[null,null,null,null,null,null,null,null,null,null,null,null,null,null,null,"15","BOYACA","774","SUSACON"]
[null,null,null,null,null,null,null,null,null,null,null,null,null,null,null,"15","BOYACA","776","SUTAMARCHAN"]
[null,null,null,null,null,null,null,null,null,null,null,null,null,null,null,"25","CUNDINAMARCA","781","SUTATAUSA"]
[null,null,null,null,null,null,null,null,null,null,null,null,null,null,null,"15","BOYACA","778","SUTATENZA"]
[null,null,null,null,null,null,null,null,null,null,null,null,null,null,null,"25","CUNDINAMARCA","785","TABIO"]
[null,null,null,null,null,null,null,null,null,null,null,null,null,null,null,"27","CHOCO","787","TADO"]
[null,null,null,null,null,null,null,null,null,null,null,null,null,null,null,"13","BOLIVAR","780","TALAIGUA NUEVO"]
[null,null,null,null,null,null,null,null,null,null,null,null,null,null,null,"20","CESAR","787","TAMALAMEQUE"]
[null,null,null,null,null,null,null,null,null,null,null,null,null,null,null,"85","CASANARE","400","TAMARA"]
[null,null,null,null,null,null,null,null,null,null,null,null,null,null,null,"81","ARAUCA","794","TAME"]
[null,null,null,null,null,null,null,null,null,null,null,null,null,null,null,"05","ANTIOQUIA","789","TAMESIS"]
[null,null,null,null,null,null,null,null,null,null,null,null,null,null,null,"52","NARIÑO","786","TAMINANGO"]
[null,null,null,null,null,null,null,null,null,null,null,null,null,null,null,"52","NARIÑO","788","TANGUA"]
[null,null,null,null,null,null,null,null,null,null,null,null,null,null,null,"97","VAUPES","666","TARAIRA"]
[null,null,null,null,null,null,null,null,null,null,null,null,null,null,null,"91","AMAZONAS","798","TARAPACA"]
[null,null,null,null,null,null,null,null,null,null,null,null,null,null,null,"05","ANTIOQUIA","790","TARAZA"]
[null,null,null,null,null,null,null,null,null,null,null,null,null,null,null,"41","HUILA","791","TARQUI"]
[null,null,null,null,null,null,null,null,null,null,null,null,null,null,null,"05","ANTIOQUIA","792","TARSO"]
[null,null,null,null,null,null,null,null,null,null,null,null,null,null,null,"15","BOYACA","790","TASCO"]
[null,null,null,null,null,null,null,null,null,null,null,null,null,null,null,"85","CASANARE","410","TAURAMENA"]
[null,null,null,null,null,null,null,null,null,null,null,null,null,null,null,"25","CUNDINAMARCA","793","TAUSA"]
[null,null,null,null,null,null,null,null,null,null,null,null,null,null,null,"41","HUILA","799","TELLO"]
[null,null,null,null,null,null,null,null,null,null,null,null,null,null,null,"25","CUNDINAMARCA","797","TENA"]
[null,null,null,null,null,null,null,null,null,null,null,null,null,null,null,"47","MAGDALENA","798","TENERIFE"]
[null,null,null,null,null,null,null,null,null,null,null,null,null,null,null,"25","CUNDINAMARCA","799","TENJO"]
[null,null,null,null,null,null,null,null,null,null,null,null,null,null,null,"15","BOYACA","798","TENZA"]
[null,null,null,null,null,null,null,null,null,null,null,null,null,null,null,"54","N. DE SANTANDER","800","TEORAMA"]
[null,null,null,null,null,null,null,null,null,null,null,null,null,null,null,"41","HUILA","801","TERUEL"]
[null,null,null,null,null,null,null,null,null,null,null,null,null,null,null,"41","HUILA","797","TESALIA"]
[null,null,null,null,null,null,null,null,null,null,null,null,null,null,null,"25","CUNDINAMARCA","805","TIBACUY"]
[null,null,null,null,null,null,null,null,null,null,null,null,null,null,null,"15","BOYACA","804","TIBANA"]
[null,null,null,null,null,null,null,null,null,null,null,null,null,null,null,"15","BOYACA","806","TIBASOSA"]
[null,null,null,null,null,null,null,null,null,null,null,null,null,null,null,"25","CUNDINAMARCA","807","TIBIRITA"]
[null,null,null,null,null,null,null,null,null,null,null,null,null,null,null,"54","N. DE SANTANDER","810","TIBU"]
[null,null,null,null,null,null,null,null,null,null,null,null,null,null,null,"23","CORDOBA","807","TIERRALTA"]
[null,null,null,null,null,null,null,null,null,null,null,null,null,null,null,"41","HUILA","807","TIMANA"]
[null,null,null,null,null,null,null,null,null,null,null,null,null,null,null,"19","CAUCA","807","TIMBIO"]
[null,null,null,null,null,null,null,null,null,null,null,null,null,null,null,"19","CAUCA","809","TIMBIQUI"]
[null,null,null,null,null,null,null,null,null,null,null,null,null,null,null,"15","BOYACA","808","TINJACA"]
[null,null,null,null,null,null,null,null,null,null,null,null,null,null,null,"15","BOYACA","810","TIPACOQUE"]
[null,null,null,null,null,null,null,null,null,null,null,null,null,null,null,"13","BOLIVAR","810","TIQUISIO"]
[null,null,null,null,null,null,null,null,null,null,null,null,null,null,null,"05","ANTIOQUIA","809","TITIRIBI"]
[null,null,null,null,null,null,null,null,null,null,null,null,null,null,null,"15","BOYACA","814","TOCA"]
[null,null,null,null,null,null,null,null,null,null,null,null,null,null,null,"25","CUNDINAMARCA","815","TOCAIMA"]
[null,null,null,null,null,null,null,null,null,null,null,null,null,null,null,"25","CUNDINAMARCA","817","TOCANCIPA"]
[null,null,null,null,null,null,null,null,null,null,null,null,null,null,null,"15","BOYACA","816","TOGsI"]
[null,null,null,null,null,null,null,null,null,null,null,null,null,null,null,"05","ANTIOQUIA","819","TOLEDO"]
[null,null,null,null,null,null,null,null,null,null,null,null,null,null,null,"54","N. DE SANTANDER","820","TOLEDO"]
[null,null,null,null,null,null,null,null,null,null,null,null,null,null,null,"70","SUCRE","823","TOLU VIEJO"]
[null,null,null,null,null,null,null,null,null,null,null,null,null,null,null,"68","SANTANDER","820","TONA"]
[null,null,null,null,null,null,null,null,null,null,null,null,null,null,null,"15","BOYACA","820","TOPAGA"]
[null,null,null,null,null,null,null,null,null,null,null,null,null,null,null,"25","CUNDINAMARCA","823","TOPAIPI"]
[null,null,null,null,null,null,null,null,null,null,null,null,null,null,null,"19","CAUCA","821","TORIBIO"]
[null,null,null,null,null,null,null,null,null,null,null,null,null,null,null,"76","VALLE DEL CAUCA","823","TORO"]
[null,null,null,null,null,null,null,null,null,null,null,null,null,null,null,"15","BOYACA","822","TOTA"]
[null,null,null,null,null,null,null,null,null,null,null,null,null,null,null,"19","CAUCA","824","TOTORO"]
[null,null,null,null,null,null,null,null,null,null,null,null,null,null,null,"85","CASANARE","430","TRINIDAD"]
[null,null,null,null,null,null,null,null,null,null,null,null,null,null,null,"76","VALLE DEL CAUCA","828","TRUJILLO"]
[null,null,null,null,null,null,null,null,null,null,null,null,null,null,null,"08","ATLANTICO","832","TUBARA"]
[null,null,null,null,null,null,null,null,null,null,null,null,null,null,null,"76","VALLE DEL CAUCA","834","TULUA"]
[null,null,null,null,null,null,null,null,null,null,null,null,null,null,null,"15","BOYACA","001","TUNJA"]
[null,null,null,null,null,null,null,null,null,null,null,null,null,null,null,"15","BOYACA","832","TUNUNGUA"]
[null,null,null,null,null,null,null,null,null,null,null,null,null,null,null,"52","NARIÑO","838","TUQUERRES"]
[null,null,null,null,null,null,null,null,null,null,null,null,null,null,null,"13","BOLIVAR","836","TURBACO"]
[null,null,null,null,null,null,null,null,null,null,null,null,null,null,null,"13","BOLIVAR","838","TURBANA"]
[null,null,null,null,null,null,null,null,null,null,null,null,null,null,null,"05","ANTIOQUIA","837","TURBO"]
[null,null,null,null,null,null,null,null,null,null,null,null,null,null,null,"15","BOYACA","835","TURMEQUE"]
[null,null,null,null,null,null,null,null,null,null,null,null,null,null,null,"15","BOYACA","837","TUTA"]
[null,null,null,null,null,null,null,null,null,null,null,null,null,null,null,"15","BOYACA","839","TUTAZA"]
[null,null,null,null,null,null,null,null,null,null,null,null,null,null,null,"25","CUNDINAMARCA","839","UBALA"]
[null,null,null,null,null,null,null,null,null,null,null,null,null,null,null,"25","CUNDINAMARCA","841","UBAQUE"]
[null,null,null,null,null,null,null,null,null,null,null,null,null,null,null,"25","CUNDINAMARCA",843,"UBATE"]
[null,null,null,null,null,null,null,null,null,null,null,null,null,null,null,"76","VALLE DEL CAUCA","845","ULLOA"]
[null,null,null,null,null,null,null,null,null,null,null,null,null,null,null,"15","BOYACA","842","UMBITA"]
[null,null,null,null,null,null,null,null,null,null,null,null,null,null,null,"25","CUNDINAMARCA","845","UNE"]
[null,null,null,null,null,null,null,null,null,null,null,null,null,null,null,"27","CHOCO","800","UNGUIA"]
[null,null,null,null,null,null,null,null,null,null,null,null,null,null,null,"27","CHOCO","810","UNION PANAMERICANA"]
[null,null,null,null,null,null,null,null,null,null,null,null,null,null,null,"05","ANTIOQUIA","842","URAMITA"]
[null,null,null,null,null,null,null,null,null,null,null,null,null,null,null,"50","META","370","URIBE"]
[null,null,null,null,null,null,null,null,null,null,null,null,null,null,null,"44","LA GUAJIRA","847","URIBIA"]
[null,null,null,null,null,null,null,null,null,null,null,null,null,null,null,"05","ANTIOQUIA","847","URRAO"]
[null,null,null,null,null,null,null,null,null,null,null,null,null,null,null,"44","LA GUAJIRA","855","URUMITA"]
[null,null,null,null,null,null,null,null,null,null,null,null,null,null,null,"08","ATLANTICO","849","USIACURI"]
[null,null,null,null,null,null,null,null,null,null,null,null,null,null,null,"25","CUNDINAMARCA","851","UTICA"]
[null,null,null,null,null,null,null,null,null,null,null,null,null,null,null,"05","ANTIOQUIA","854","VALDIVIA"]
[null,null,null,null,null,null,null,null,null,null,null,null,null,null,null,"23","CORDOBA","855","VALENCIA"]
[null,null,null,null,null,null,null,null,null,null,null,null,null,null,null,"68","SANTANDER","855","VALLE DE SAN JOSE"]
[null,null,null,null,null,null,null,null,null,null,null,null,null,null,null,"73","TOLIMA","854","VALLE DE SAN JUAN"]
[null,null,null,null,null,null,null,null,null,null,null,null,null,null,null,"86","PUTUMAYO","865","VALLE DEL GUAMUEZ"]
[null,null,null,null,null,null,null,null,null,null,null,null,null,null,null,"20","CESAR","001","VALLEDUPAR"]
[null,null,null,null,null,null,null,null,null,null,null,null,null,null,null,"05","ANTIOQUIA","856","VALPARAISO"]
[null,null,null,null,null,null,null,null,null,null,null,null,null,null,null,"18","CAQUETA","860","VALPARAISO"]
[null,null,null,null,null,null,null,null,null,null,null,null,null,null,null,"05","ANTIOQUIA","858","VEGACHI"]
[null,null,null,null,null,null,null,null,null,null,null,null,null,null,null,"68","SANTANDER","861","VELEZ"]
[null,null,null,null,null,null,null,null,null,null,null,null,null,null,null,"73","TOLIMA","861","VENADILLO"]
[null,null,null,null,null,null,null,null,null,null,null,null,null,null,null,"05","ANTIOQUIA","861","VENECIA"]
[null,null,null,null,null,null,null,null,null,null,null,null,null,null,null,"25","CUNDINAMARCA","506","VENECIA"]
[null,null,null,null,null,null,null,null,null,null,null,null,null,null,null,"15","BOYACA","861","VENTAQUEMADA"]
[null,null,null,null,null,null,null,null,null,null,null,null,null,null,null,"25","CUNDINAMARCA","862","VERGARA"]
[null,null,null,null,null,null,null,null,null,null,null,null,null,null,null,"76","VALLE DEL CAUCA","863","VERSALLES"]
[null,null,null,null,null,null,null,null,null,null,null,null,null,null,null,"68","SANTANDER","867","VETAS"]
[null,null,null,null,null,null,null,null,null,null,null,null,null,null,null,"25","CUNDINAMARCA","867","VIANI"]
[null,null,null,null,null,null,null,null,null,null,null,null,null,null,null,"17","CALDAS","867","VICTORIA"]
[null,null,null,null,null,null,null,null,null,null,null,null,null,null,null,"05","ANTIOQUIA","873","VIGIA DEL FUERTE"]
[null,null,null,null,null,null,null,null,null,null,null,null,null,null,null,"76","VALLE DEL CAUCA","869","VIJES"]
[null,null,null,null,null,null,null,null,null,null,null,null,null,null,null,"54","N. DE SANTANDER","871","VILLA CARO"]
[null,null,null,null,null,null,null,null,null,null,null,null,null,null,null,"15","BOYACA","407","VILLA DE LEYVA"]
[null,null,null,null,null,null,null,null,null,null,null,null,null,null,null,"25","CUNDINAMARCA","843","VILLA DE SAN DIEGO DE UBATE"]
[null,null,null,null,null,null,null,null,null,null,null,null,null,null,null,"54","N. DE SANTANDER","874","VILLA DEL ROSARIO"]
[null,null,null,null,null,null,null,null,null,null,null,null,null,null,null,"19","CAUCA","845","VILLA RICA"]
[null,null,null,null,null,null,null,null,null,null,null,null,null,null,null,"86","PUTUMAYO","885","VILLAGARZON"]
[null,null,null,null,null,null,null,null,null,null,null,null,null,null,null,"25","CUNDINAMARCA","871","VILLAGOMEZ"]
[null,null,null,null,null,null,null,null,null,null,null,null,null,null,null,"73","TOLIMA","870","VILLAHERMOSA"]
[null,null,null,null,null,null,null,null,null,null,null,null,null,null,null,"17","CALDAS","873","VILLAMARIA"]
[null,null,null,null,null,null,null,null,null,null,null,null,null,null,null,"13","BOLIVAR","873","VILLANUEVA"]
[null,null,null,null,null,null,null,null,null,null,null,null,null,null,null,"44","LA GUAJIRA","874","VILLANUEVA"]
[null,null,null,null,null,null,null,null,null,null,null,null,null,null,null,"68","SANTANDER","872","VILLANUEVA"]
[null,null,null,null,null,null,null,null,null,null,null,null,null,null,null,"85","CASANARE","440","VILLANUEVA"]
[null,null,null,null,null,null,null,null,null,null,null,null,null,null,null,"25","CUNDINAMARCA","873","VILLAPINZON"]
[null,null,null,null,null,null,null,null,null,null,null,null,null,null,null,"73","TOLIMA","873","VILLARRICA"]
[null,null,null,null,null,null,null,null,null,null,null,null,null,null,null,"50","META","001","VILLAVICENCIO"]
[null,null,null,null,null,null,null,null,null,null,null,null,null,null,null,"41","HUILA","872","VILLAVIEJA"]
[null,null,null,null,null,null,null,null,null,null,null,null,null,null,null,"25","CUNDINAMARCA","875","VILLETA"]
[null,null,null,null,null,null,null,null,null,null,null,null,null,null,null,"25","CUNDINAMARCA","878","VIOTA"]
[null,null,null,null,null,null,null,null,null,null,null,null,null,null,null,"15","BOYACA","879","VIRACACHA"]
[null,null,null,null,null,null,null,null,null,null,null,null,null,null,null,"50","META","711","VISTAHERMOSA"]
[null,null,null,null,null,null,null,null,null,null,null,null,null,null,null,"17","CALDAS","877","VITERBO"]
[null,null,null,null,null,null,null,null,null,null,null,null,null,null,null,"25","CUNDINAMARCA","885","YACOPI"]
[null,null,null,null,null,null,null,null,null,null,null,null,null,null,null,"52","NARIÑO","885","YACUANQUER"]
[null,null,null,null,null,null,null,null,null,null,null,null,null,null,null,"41","HUILA","885","YAGUARA"]
[null,null,null,null,null,null,null,null,null,null,null,null,null,null,null,"05","ANTIOQUIA","885","YALI"]
[null,null,null,null,null,null,null,null,null,null,null,null,null,null,null,"05","ANTIOQUIA","887","YARUMAL"]
[null,null,null,null,null,null,null,null,null,null,null,null,null,null,null,"97","VAUPES","889","YAVARATE"]
[null,null,null,null,null,null,null,null,null,null,null,null,null,null,null,"05","ANTIOQUIA","890","YOLOMBO"]
[null,null,null,null,null,null,null,null,null,null,null,null,null,null,null,"05","ANTIOQUIA","893","YONDO"]
[null,null,null,null,null,null,null,null,null,null,null,null,null,null,null,"85","CASANARE","001","YOPAL"]
[null,null,null,null,null,null,null,null,null,null,null,null,null,null,null,"76","VALLE DEL CAUCA","890","YOTOCO"]
[null,null,null,null,null,null,null,null,null,null,null,null,null,null,null,"76","VALLE DEL CAUCA","892","YUMBO"]
[null,null,null,null,null,null,null,null,null,null,null,null,null,null,null,"13","BOLIVAR","894","ZAMBRANO"]
[null,null,null,null,null,null,null,null,null,null,null,null,null,null,null,"68","SANTANDER","895","ZAPATOCA"]
[null,null,null,null,null,null,null,null,null,null,null,null,null,null,null,"47","MAGDALENA","960","ZAPAYAN"]
[null,null,null,null,null,null,null,null,null,null,null,null,null,null,null,"05","ANTIOQUIA","895","ZARAGOZA"]
[null,null,null,null,null,null,null,null,null,null,null,null,null,null,null,"76","VALLE DEL CAUCA","895","ZARZAL"]
[null,null,null,null,null,null,null,null,null,null,null,null,null,null,null,"15","BOYACA","897","ZETAQUIRA"]
[null,null,null,null,null,null,null,null,null,null,null,null,null,null,null,"25","CUNDINAMARCA","898","ZIPACON"]
[null,null,null,null,null,null,null,null,null,null,null,null,null,null,null,"25","CUNDINAMARCA","899","ZIPAQUIRA"]
[null,null,null,null,null,null,null,null,null,null,null,null,null,null,null,"47","MAGDALENA","980","ZONA BANANERA"]

{"sheet":"CalculoDígitoChequeo","index":5,"n_rows":10,"n_cols":33,"rows_kept":10,"cut":false,"hidden":true,"merged":[[0,4,0,14],[0,19,0,29],[1,4,1,14],[1,19,1,29],[2,4,2,9],[2,11,2,14],[2,19,2,24],[2,26,2,29],[3,4,3,14],[3,19,3,29],[4,4,4,9],[4,11,4,14],[4,19,4,24],[4,26,4,29],[8,4,8,14],[8,19,8,29],[9,4,9,9],[9,11,9,14],[9,19,9,24],[9,26,9,29]]}
[null,null,null,null,"CALCULA EL DIGITO DE CHEQUEO DE UNA CUENTA o CDT",null,null,null,null,null,null,null,null,null,null,null,null,null,null,"CALCULA EL DIGITO DE CHEQUEO DE UN NIT"]
[]
[null,null,null,null,"Numero de cuenta sin dìgito de chequeo. (Capturar los 8 números para los que se quiere calcular el dígito de chequeo)",null,null,null,null,null,null,"23456789",null,null,null,null,null,null,null,"Numero de NIT sin dìgito de chequeo (Capturar los números para los que se quiere calcular el dígito de chequeo. Mínimo 8 cifras)",null,null,null,null,null,null,800093117]
[]
[null,null,null,null,"Digito de chequeo",null,null,null,null,null,null,{"$f":"IF(L3=\"\",\"\",IF(MOD(SUM(L8:T8),10)=0,0,10-MOD(SUM(L8:T8),10)))","v":9},null,null,null,null,null,null,null,null,null,null,null,null,null,null,{"$f":"+IF(LEN(AA3)=9,AF5,AG5)","v":3},null,null,null,null,{"$f":"IF(AA3=\"\",\"\",IF(MOD((MID(AA3,1,1)*41+MID(AA3,2,1)*37+MID(AA3,3,1)*29+MID(AA3,4,1)*23+MID(AA3,5,1)*19+MID(AA3,6,1)*17+MID(AA3,7,1)*13+MID(AA3,8,1)*7+MID(AA3,9,1)*3),11)=0,0,IF(MOD((MID(AA3,1,1)*41+MID(AA3,2,1)*37+MID(AA3,3,1)*29+MID(AA3,4,1)*23+MID(AA3,5,1)*19+MID(AA3,6,1)*17+MID(AA3,7,1)*13+MID(AA3,8,1)*7+MID(AA3,9,1)*3),11)=1,1,11-(MOD((MID(AA3,1,1)*41+MID(AA3,2,1)*37+MID(AA3,3,1)*29+MID(AA3,4,1)*23+MID(AA3,5,1)*19+MID(AA3,6,1)*17+MID(AA3,7,1)*13+MID(AA3,8,1)*7+MID(AA3,9,1)*3),11)))))","v":3},{"$f":"IF(AA3=\"\",\"\",IF(MOD((MID(AA3,1,1)*37+MID(AA3,2,1)*29+MID(AA3,3,1)*23+MID(AA3,4,1)*19+MID(AA3,5,1)*17+MID(AA3,6,1)*13+MID(AA3,7,1)*7+MID(AA3,8,1)*3),11)=0,0,IF(MOD((MID(AA3,1,1)*37+MID(AA3,2,1)*29+MID(AA3,3,1)*23+MID(AA3,4,1)*19+MID(AA3,5,1)*17+MID(AA3,6,1)*13+MID(AA3,7,1)*7+MID(AA3,8,1)*3),11)=1,1,11-(MOD((MID(AA3,1,1)*37+MID(AA3,2,1)*29+MID(AA3,3,1)*23+MID(AA3,4,1)*19+MID(AA3,5,1)*17+MID(AA3,6,1)*13+MID(AA3,7,1)*7+MID(AA3,8,1)*3),11)))))","v":8}]
[null,null,null,null,null,null,null,null,null,null,null,1,2,3,4,5,6,7,8,null,null,null,null,null,null,null,1,2,3,4]
[null,null,null,null,null,null,null,null,null,null,null,1,2,1,2,1,2,1,2,null,null,null,null,null,null,null,1,2,1,2]
[null,null,null,null,null,null,null,null,null,null,null,{"$f":"+IF(VALUE(MID($L$3,1,1)*L7)>10,10-VALUE(MID($L$3,1,1)*L7),VALUE(MID($L$3,1,1)*L7))","v":2},{"$f":"+IF(VALUE(IF(VALUE(MID($L$3,L6,1))*L7>9,1+VALUE(MID($L$3,M6,1))*M7,VALUE(MID($L$3,M6,1))*M7))>9,VALUE(IF(VALUE(MID($L$3,L6,1))*L7>9,1+VALUE(MID($L$3,M6,1))*M7,VALUE(MID($L$3,M6,1))*M7))-10,VALUE(IF(VALUE(MID($L$3,L6,1))*L7>9,1+VALUE(MID($L$3,M6,1))*M7,VALUE(MID($L$3,M6,1))*M7)))","v":6},4,0,7,4,9,8,{"$f":"+IF(VALUE(IF(VALUE(MID($L$3,R6,1))*R7>9,1+VALUE(MID($L$3,S6,1))*S7,VALUE(MID($L$3,S6,1))*S7))>9,1,0)","v":1},null,null,null,null,null,null,{"$f":"+IF(VALUE(MID($L$3,1,1)*AA7)>10,10-VALUE(MID($L$3,1,1)*AA7),VALUE(MID($L$3,1,1)*AA7))","v":2},{"$f":"+IF(VALUE(IF(VALUE(MID($L$3,AA6,1))*AA7>9,1+VALUE(MID($L$3,AB6,1))*AB7,VALUE(MID($L$3,AB6,1))*AB7))>9,10-VALUE(IF(VALUE(MID($L$3,AA6,1))*AA7>9,1+VALUE(MID($L$3,AB6,1))*AB7,VALUE(MID($L$3,AB6,1))*AB7)),VALUE(IF(VALUE(MID($L$3,AA6,1))*AA7>9,1+VALUE(MID($L$3,AB6,1))*AB7,VALUE(MID($L$3,AB6,1))*AB7)))","v":6},{"$f":"+IF(VALUE(IF(VALUE(MID($L$3,AB6,1))*AB7>9,1+VALUE(MID($L$3,AC6,1))*AC7,VALUE(MID($L$3,AC6,1))*AC7))>9,10-VALUE(IF(VALUE(MID($L$3,AB6,1))*AB7>9,1+VALUE(MID($L$3,AC6,1))*AC7,VALUE(MID($L$3,AC6,1))*AC7)),VALUE(IF(VALUE(MID($L$3,AB6,1))*AB7>9,1+VALUE(MID($L$3,AC6,1))*AC7,VALUE(MID($L$3,AC6,1))*AC7)))","v":4},{"$f":"+IF(VALUE(IF(VALUE(MID($L$3,AC6,1))*AC7>9,1+VALUE(MID($L$3,AD6,1))*AD7,VALUE(MID($L$3,AD6,1))*AD7))>9,10-VALUE(IF(VALUE(MID($L$3,AC6,1))*AC7>9,1+VALUE(MID($L$3,AD6,1))*AD7,VALUE(MID($L$3,AD6,1))*AD7)),VALUE(IF(VALUE(MID($L$3,AC6,1))*AC7>9,1+VALUE(MID($L$3,AD6,1))*AD7,VALUE(MID($L$3,AD6,1))*AD7)))","v":0}]
[]
[null,null,null,null,"Numero de CUENTA o CDT",null,null,null,null,null,null,{"$f":"+IF(L3=\"\",\"\",CONCATENATE(L3,L5))","v":"234567899"},null,null,null,null,null,null,null,null,null,null,null,null,null,null,{"$f":"+IF(AA3=\"\",\"\",CONCATENATE(AA3,AA5))","v":"8000931173"}]